Workbook

Sheet Содержание
A1: Свернуть
A7: Газпром в цифрах 2017 г. Справочник.
B8: Примечания
B9: Газпром в энергетике России и мира
B10: Финансовые показатели
B11: Макроэкономические данные
B12: Рыночные индикаторы
B13: Разведка и добыча на территории Российской Федерации
A14: + | B14: Запасы
B15: Запасы углеводородов Группы Газпром на территории Российской Федерации
B16: Месторождения и залежи углеводородов, открытые Группой Газпром на территории Российской Федерации
B17: Коэффициент восполнения разведанных запасов углеводородов Группы Газпром по российской классификации
B18: Обеспеченность разведанными запасами углеводородов Группы Газпром по российской классификации
B19: Запасы природного газа Группы Газпром по стандартам PRMS на территории Российской Федерации
B20: Запасы газового конденсата Группы Газпром по стандартам PRMS на территории Российской Федерации
B21: Запасы нефти Группы Газпром по стандартам PRMS на территории Российской Федерации
B22: Распределение разведанных запасов углеводородов по российской классификации Группы Газпром на территории Российской Федерации
B23: Разведанные запасы углеводородов по российской классификации ассоциированных организаций и совместных предприятий на территории Российской Федерации в доле, приходящейся на Группу Газпром
B24: Движение разведанных запасов углеводородов Группы Газпром по российской классификации на территории Российской Федерации
B25: Наименования месторождений углеводородов, открытых Группой Газпром на территории Российской Федерации
A26: + | B26: Лицензии
B27: Площадь лицензионных участков на территории Российской Федерации
B28: Лицензии на основные месторождения углеводородов
A29: + | B29: Добыча
B30: Добыча углеводородов Группой Газпром на территории Российской Федерации
B31: Среднесуточная добыча углеводородов Группой Газпром на территории Российской Федерации
B32: Добыча углеводородов Группой Газпром на территории Российской Федерации
B33: Распределение добычи углеводородов Группы Газпром на территории Российской Федерации
B34: Полезное использование ПНГ Группой Газпром на территории Российской Федерации
B35: Добыча углеводородов ассоциированными организациями и совместными предприятиями на территории России в доле, приходящейся на Группу Газпром
A36: + | B36: Геологоразведка, эксплуатационное бурение и промысловые мощности
B37: Основные показатели ГРР Группы Газпром на углеводороды
B38: Основные показатели ГРР на углеводороды организаций, инвестиции в которые классифицированы как совместные операции
B39: Эксплуатационное бурение Группы Газпром
B40: Эксплуатационное бурение организаций, инвестиции в которые классифицированы как совместные операции
B41: Производственные мощности Группы Газпром в добыче углеводородов
B42: Производственные мощности в добыче углеводородов организаций, инвестиции в которые классифицированы как совместные операции
A43: + | B43: Перспективные месторождения
B44: Разрабатываемые месторождения Группы Газпром
B45: Разведываемые месторождения Группы Газпром
B46: Месторождения совместных предприятий Группы Газпром
A47: + | B47: Разведка и добыча на территории зарубежных стран
B48: Основные показатели ГРР Группы Газпром на углеводороды на территории зарубежных стран
B49: Производственные мощности Группы Газпром в добыче углеводородов на территории зарубежных стран
B50: Эксплуатационное бурение Группы Газпром на газ и нефть на территории зарубежных стран
B51: Добыча углеводородов в рамках зарубежных проектов с участием Группы Газпром
B52: Проекты Группы Газпром в области поиска и разведки углеводородов в зарубежных странах
B53: Деятельность ассоциированных организаций и совместных предприятий в области поиска и разведки углеводородов в зарубежных странах
A54: - | B54: Транспортировка и подземное хранение
A55: + | B55: Транспортировка
B56: Развитие и капитальный ремонт ГТС на территории России
B57: Диагностическое обследование ГТС на территории России
B58: Основные технические характеристики газотранспортных активов Группы в России
B59: Структура магистральных газопроводов Группы Газпром на территории России по сроку эксплуатации
B60: Поступление и распределение газа, транспортированного по ГТС Газпрома на территории Российской Федерации
B61: Объем транспортировки газа по газопроводам «Северный поток», «Голубой поток»
B62: Основные характеристики объектов транспорта газа дочерних обществ Группы Газпром на территории зарубежных стран
B63: Основные газотранспортные проекты Группы Газпром
A64: + | B64: Подземное хранение газа
B65: Характеристика российских ПХГ Газпрома
B66: Хранение газа на территории России
B67: Закачка и отбор газа Газпрома из ПХГ зарубежных стран
B68: Основные проекты по развитию подземного хранения газа на территории России
B69: Характеристика зарубежных объектов ПХГ с участием Группы Газпром
B70: Использование ООО «Газпром экспорт» мощностей ПХГ на основании соглашений об аренде
B71: Перспективные объекты ПХГ с участием Группы Газпром за рубежом
A72: + | B72: Переработка углеводородного сырья, газо- и нефтехимия
B73: Объемы переработки углеводородов Группой Газпром
B74: Первичная переработка жидкого углеводородного сырья основными дочерними обществами ПАО «Газпром»
B75: Переработка на мощностях основных дочерних обществ ПАО «Газпром» природного и попутного газа компаний, не входящих в Группу Газпром
B76: Производство основных видов продукции переработки, газо- и нефтехимии Группой Газпром
B77: Области применения отдельных видов продукции переработки, газо- и нефтехимии, производимой Группой Газпром
B78: Производство основных видов продукции переработки дочерними обществами Группы Газпром
B79: Предприятия по переработке углеводородного сырья и производству газо- и нефтехимической продукции
B80: Основные проекты Группы Газпром по созданию новых предприятий по переработке углеводородного сырья, производству продукции газо- и нефтехимии
B81: Проекты Группы Газпром по транспортировке жидких углеводородов
A82: + | B82: Электроэнергетика
B83: Генерирующие мощности Группы Газпром
B84: Производство тепла и электроэнергии Группой Газпром
B85: Основные проекты Группы Газпром в электроэнергетике
A86: - | B86: Маркетинг
A87: + | B87: Реализация газа
B88: Выручка от продажи газа
B89: Средняя цена реализации газа
B90: Реализация газа Группой Газпром
B91: Реализация газа Группой Газпром в зарубежные страны
B92: Участие Газпрома в обеспечении внутреннего потребления газа в России
B93: Средневзвешенные оптовые регулируемые цены на газ в России
B94: Объемы реализации газа конечным потребителям дочерними обществами Группы Газпром в странах дальнего зарубежья
B95: Объемы продаж СПГ Группой Газпром
B96: Проекты Группы Газпром по созданию мощностей регазификации СПГ
B97: Перспективные проекты производства крупнотоннажного СПГ с участием Группы Газпром
B98: Перспективные проекты производства мало- и среднетоннажного СПГ с участием Группы Газпром
B99: Газораспределение и газификация в России
B100: Деятельность Группы Газпром в области газораспределения на территории зарубежных стран
A101: + | B101: Реализация нефти, газового конденсата и продуктов переработки
B102: Выручка от реализации нефти и газового конденсата
B103: Объемы реализации нефти и газового конденсата Группой Газпром по географическим сегментам
B104: Выручка от реализации продуктов нефтегазопереработки
B105: Объемы реализация продуктов переработки Группой Газпром по географическим сегментам
B106: Реализация продуктов переработки, газо- и нефтехимии Группой Газпром по видам
B107: Реализация гелия Группой Газпром
A108: + | B108: Реализация электроэнергии и тепла, услуг по транспортировке газа
B109: Чистая выручка от продажи электрической и тепловой энергии
B110: Выручка от продажи услуг по транспортировке газа
B111: Оказание услуг по транспортировке газа компаниям, не входящим в Группу Газпром
A112: + | B112: Экология, энергосбережение, НИОКР
B113: Основные показатели воздействия Группы Газпром на окружающую среду в Российской Федерации
B114: Затраты на охрану окружающей среды по Группе Газпром в Российской Федерации
B115: Энергосбережение ПАО «Газпром» и его основных дочерних обществ
B116: Количество патентов на объекты патентных прав, принадлежащих ПАО «Газпром» и его дочерним обществам
B117: Объем НИОКР в денежном выражении, выполненных по заказу Группы Газпром
A118: - | B118: Персонал
A119: + | B119: Справочная информация
B120: Условные обозначения
B121: Коэффициенты пересчета
B122: Порядок расчета финансовых коэффициентов
B123: Глоссарий основных понятий и сокращений
A124: +

Sheet Примечания
A1: Примечания
A2: Настоящий информационно-статистический материал подготовлен в формате электронных таблиц на основе Cправочника «Газпром в цифрах 2013–2017 гг.»
A3: Справочник «Газпром в цифрах 2013–2017» является информационно-статистическим изданием, подготовленным к годовому Общему собранию акционеров ПАО «Газпром» в 2018 г. Справочник подготовлен на основе данных корпоративной отчетности ПАО «Газпром», а также с использованием материалов, содержащихся в российских и зарубежных информационных изданиях.
A4: Показатели консолидированной финансовой отчетности Группы Газпром, подготовленной в соответствии с МСФО (далее – консолидированная финансовая отчетность по МСФО) дополнены данными за 2010–2012 гг., а производственные и иные показатели – сопоставимыми данными из Справочников, Годовых отчетов, Отчетов руководства ПАО «Газпром» за 2012 г. и предыдущие периоды. | B4: При этом показатели консолидированной финансовой отчетности Группы Газпром, подготовленной в соответствии с МСФО (далее – консолидированная финансовая отчетность по МСФО) дополнены данными за 2010 г.,а производственные и иные показатели – сопоставимыми данными из Справочников, Годовых отчетов, Отчетов руководства ПАО «Газпром» за 2010 г. и предыдущие периоды. | C4: При этом показатели консолидированной финансовой отчетности Группы Газпром, подготовленной в соответствии с МСФО (далее – консолидированная финансовая отчетность по МСФО) дополнены данными за 2010 г.,а производственные и иные показатели – сопоставимыми данными из Справочников, Годовых отчетов, Отчетов руководства ПАО «Газпром» за 2010 г. и предыдущие периоды. | D4: При этом показатели консолидированной финансовой отчетности Группы Газпром, подготовленной в соответствии с МСФО (далее – консолидированная финансовая отчетность по МСФО) дополнены данными за 2010 г.,а производственные и иные показатели – сопоставимыми данными из Справочников, Годовых отчетов, Отчетов руководства ПАО «Газпром» за 2010 г. и предыдущие периоды. | E4: При этом показатели консолидированной финансовой отчетности Группы Газпром, подготовленной в соответствии с МСФО (далее – консолидированная финансовая отчетность по МСФО) дополнены данными за 2010 г.,а производственные и иные показатели – сопоставимыми данными из Справочников, Годовых отчетов, Отчетов руководства ПАО «Газпром» за 2010 г. и предыдущие периоды. | F4: При этом показатели консолидированной финансовой отчетности Группы Газпром, подготовленной в соответствии с МСФО (далее – консолидированная финансовая отчетность по МСФО) дополнены данными за 2010 г.,а производственные и иные показатели – сопоставимыми данными из Справочников, Годовых отчетов, Отчетов руководства ПАО «Газпром» за 2010 г. и предыдущие периоды. | G4: При этом показатели консолидированной финансовой отчетности Группы Газпром, подготовленной в соответствии с МСФО (далее – консолидированная финансовая отчетность по МСФО) дополнены данными за 2010 г.,а производственные и иные показатели – сопоставимыми данными из Справочников, Годовых отчетов, Отчетов руководства ПАО «Газпром» за 2010 г. и предыдущие периоды. | H4: При этом показатели консолидированной финансовой отчетности Группы Газпром, подготовленной в соответствии с МСФО (далее – консолидированная финансовая отчетность по МСФО) дополнены данными за 2010 г.,а производственные и иные показатели – сопоставимыми данными из Справочников, Годовых отчетов, Отчетов руководства ПАО «Газпром» за 2010 г. и предыдущие периоды. | I4: При этом показатели консолидированной финансовой отчетности Группы Газпром, подготовленной в соответствии с МСФО (далее – консолидированная финансовая отчетность по МСФО) дополнены данными за 2010 г.,а производственные и иные показатели – сопоставимыми данными из Справочников, Годовых отчетов, Отчетов руководства ПАО «Газпром» за 2010 г. и предыдущие периоды. | J4: При этом показатели консолидированной финансовой отчетности Группы Газпром, подготовленной в соответствии с МСФО (далее – консолидированная финансовая отчетность по МСФО) дополнены данными за 2010 г.,а производственные и иные показатели – сопоставимыми данными из Справочников, Годовых отчетов, Отчетов руководства ПАО «Газпром» за 2010 г. и предыдущие периоды. | K4: При этом показатели консолидированной финансовой отчетности Группы Газпром, подготовленной в соответствии с МСФО (далее – консолидированная финансовая отчетность по МСФО) дополнены данными за 2010 г.,а производственные и иные показатели – сопоставимыми данными из Справочников, Годовых отчетов, Отчетов руководства ПАО «Газпром» за 2010 г. и предыдущие периоды. | L4: При этом показатели консолидированной финансовой отчетности Группы Газпром, подготовленной в соответствии с МСФО (далее – консолидированная финансовая отчетность по МСФО) дополнены данными за 2010 г.,а производственные и иные показатели – сопоставимыми данными из Справочников, Годовых отчетов, Отчетов руководства ПАО «Газпром» за 2010 г. и предыдущие периоды. | M4: При этом показатели консолидированной финансовой отчетности Группы Газпром, подготовленной в соответствии с МСФО (далее – консолидированная финансовая отчетность по МСФО) дополнены данными за 2010 г.,а производственные и иные показатели – сопоставимыми данными из Справочников, Годовых отчетов, Отчетов руководства ПАО «Газпром» за 2010 г. и предыдущие периоды. | N4: При этом показатели консолидированной финансовой отчетности Группы Газпром, подготовленной в соответствии с МСФО (далее – консолидированная финансовая отчетность по МСФО) дополнены данными за 2010 г.,а производственные и иные показатели – сопоставимыми данными из Справочников, Годовых отчетов, Отчетов руководства ПАО «Газпром» за 2010 г. и предыдущие периоды. | O4: При этом показатели консолидированной финансовой отчетности Группы Газпром, подготовленной в соответствии с МСФО (далее – консолидированная финансовая отчетность по МСФО) дополнены данными за 2010 г.,а производственные и иные показатели – сопоставимыми данными из Справочников, Годовых отчетов, Отчетов руководства ПАО «Газпром» за 2010 г. и предыдущие периоды. | P4: При этом показатели консолидированной финансовой отчетности Группы Газпром, подготовленной в соответствии с МСФО (далее – консолидированная финансовая отчетность по МСФО) дополнены данными за 2010 г.,а производственные и иные показатели – сопоставимыми данными из Справочников, Годовых отчетов, Отчетов руководства ПАО «Газпром» за 2010 г. и предыдущие периоды. | Q4: При этом показатели консолидированной финансовой отчетности Группы Газпром, подготовленной в соответствии с МСФО (далее – консолидированная финансовая отчетность по МСФО) дополнены данными за 2010 г.,а производственные и иные показатели – сопоставимыми данными из Справочников, Годовых отчетов, Отчетов руководства ПАО «Газпром» за 2010 г. и предыдущие периоды. | R4: При этом показатели консолидированной финансовой отчетности Группы Газпром, подготовленной в соответствии с МСФО (далее – консолидированная финансовая отчетность по МСФО) дополнены данными за 2010 г.,а производственные и иные показатели – сопоставимыми данными из Справочников, Годовых отчетов, Отчетов руководства ПАО «Газпром» за 2010 г. и предыдущие периоды. | S4: При этом показатели консолидированной финансовой отчетности Группы Газпром, подготовленной в соответствии с МСФО (далее – консолидированная финансовая отчетность по МСФО) дополнены данными за 2010 г.,а производственные и иные показатели – сопоставимыми данными из Справочников, Годовых отчетов, Отчетов руководства ПАО «Газпром» за 2010 г. и предыдущие периоды. | T4: При этом показатели консолидированной финансовой отчетности Группы Газпром, подготовленной в соответствии с МСФО (далее – консолидированная финансовая отчетность по МСФО) дополнены данными за 2010 г.,а производственные и иные показатели – сопоставимыми данными из Справочников, Годовых отчетов, Отчетов руководства ПАО «Газпром» за 2010 г. и предыдущие периоды. | U4: При этом показатели консолидированной финансовой отчетности Группы Газпром, подготовленной в соответствии с МСФО (далее – консолидированная финансовая отчетность по МСФО) дополнены данными за 2010 г.,а производственные и иные показатели – сопоставимыми данными из Справочников, Годовых отчетов, Отчетов руководства ПАО «Газпром» за 2010 г. и предыдущие периоды. | V4: При этом показатели консолидированной финансовой отчетности Группы Газпром, подготовленной в соответствии с МСФО (далее – консолидированная финансовая отчетность по МСФО) дополнены данными за 2010 г.,а производственные и иные показатели – сопоставимыми данными из Справочников, Годовых отчетов, Отчетов руководства ПАО «Газпром» за 2010 г. и предыдущие периоды. | W4: При этом показатели консолидированной финансовой отчетности Группы Газпром, подготовленной в соответствии с МСФО (далее – консолидированная финансовая отчетность по МСФО) дополнены данными за 2010 г.,а производственные и иные показатели – сопоставимыми данными из Справочников, Годовых отчетов, Отчетов руководства ПАО «Газпром» за 2010 г. и предыдущие периоды. | X4: При этом показатели консолидированной финансовой отчетности Группы Газпром, подготовленной в соответствии с МСФО (далее – консолидированная финансовая отчетность по МСФО) дополнены данными за 2010 г.,а производственные и иные показатели – сопоставимыми данными из Справочников, Годовых отчетов, Отчетов руководства ПАО «Газпром» за 2010 г. и предыдущие периоды. | Y4: При этом показатели консолидированной финансовой отчетности Группы Газпром, подготовленной в соответствии с МСФО (далее – консолидированная финансовая отчетность по МСФО) дополнены данными за 2010 г.,а производственные и иные показатели – сопоставимыми данными из Справочников, Годовых отчетов, Отчетов руководства ПАО «Газпром» за 2010 г. и предыдущие периоды. | Z4: При этом показатели консолидированной финансовой отчетности Группы Газпром, подготовленной в соответствии с МСФО (далее – консолидированная финансовая отчетность по МСФО) дополнены данными за 2010 г.,а производственные и иные показатели – сопоставимыми данными из Справочников, Годовых отчетов, Отчетов руководства ПАО «Газпром» за 2010 г. и предыдущие периоды. | AA4: При этом показатели консолидированной финансовой отчетности Группы Газпром, подготовленной в соответствии с МСФО (далее – консолидированная финансовая отчетность по МСФО) дополнены данными за 2010 г.,а производственные и иные показатели – сопоставимыми данными из Справочников, Годовых отчетов, Отчетов руководства ПАО «Газпром» за 2010 г. и предыдущие периоды. | AB4: При этом показатели консолидированной финансовой отчетности Группы Газпром, подготовленной в соответствии с МСФО (далее – консолидированная финансовая отчетность по МСФО) дополнены данными за 2010 г.,а производственные и иные показатели – сопоставимыми данными из Справочников, Годовых отчетов, Отчетов руководства ПАО «Газпром» за 2010 г. и предыдущие периоды. | AC4: При этом показатели консолидированной финансовой отчетности Группы Газпром, подготовленной в соответствии с МСФО (далее – консолидированная финансовая отчетность по МСФО) дополнены данными за 2010 г.,а производственные и иные показатели – сопоставимыми данными из Справочников, Годовых отчетов, Отчетов руководства ПАО «Газпром» за 2010 г. и предыдущие периоды. | AD4: При этом показатели консолидированной финансовой отчетности Группы Газпром, подготовленной в соответствии с МСФО (далее – консолидированная финансовая отчетность по МСФО) дополнены данными за 2010 г.,а производственные и иные показатели – сопоставимыми данными из Справочников, Годовых отчетов, Отчетов руководства ПАО «Газпром» за 2010 г. и предыдущие периоды. | AE4: При этом показатели консолидированной финансовой отчетности Группы Газпром, подготовленной в соответствии с МСФО (далее – консолидированная финансовая отчетность по МСФО) дополнены данными за 2010 г.,а производственные и иные показатели – сопоставимыми данными из Справочников, Годовых отчетов, Отчетов руководства ПАО «Газпром» за 2010 г. и предыдущие периоды. | AF4: При этом показатели консолидированной финансовой отчетности Группы Газпром, подготовленной в соответствии с МСФО (далее – консолидированная финансовая отчетность по МСФО) дополнены данными за 2010 г.,а производственные и иные показатели – сопоставимыми данными из Справочников, Годовых отчетов, Отчетов руководства ПАО «Газпром» за 2010 г. и предыдущие периоды. | AG4: При этом показатели консолидированной финансовой отчетности Группы Газпром, подготовленной в соответствии с МСФО (далее – консолидированная финансовая отчетность по МСФО) дополнены данными за 2010 г.,а производственные и иные показатели – сопоставимыми данными из Справочников, Годовых отчетов, Отчетов руководства ПАО «Газпром» за 2010 г. и предыдущие периоды. | AH4: При этом показатели консолидированной финансовой отчетности Группы Газпром, подготовленной в соответствии с МСФО (далее – консолидированная финансовая отчетность по МСФО) дополнены данными за 2010 г.,а производственные и иные показатели – сопоставимыми данными из Справочников, Годовых отчетов, Отчетов руководства ПАО «Газпром» за 2010 г. и предыдущие периоды. | AI4: При этом показатели консолидированной финансовой отчетности Группы Газпром, подготовленной в соответствии с МСФО (далее – консолидированная финансовая отчетность по МСФО) дополнены данными за 2010 г.,а производственные и иные показатели – сопоставимыми данными из Справочников, Годовых отчетов, Отчетов руководства ПАО «Газпром» за 2010 г. и предыдущие периоды. | AJ4: При этом показатели консолидированной финансовой отчетности Группы Газпром, подготовленной в соответствии с МСФО (далее – консолидированная финансовая отчетность по МСФО) дополнены данными за 2010 г.,а производственные и иные показатели – сопоставимыми данными из Справочников, Годовых отчетов, Отчетов руководства ПАО «Газпром» за 2010 г. и предыдущие периоды. | AK4: При этом показатели консолидированной финансовой отчетности Группы Газпром, подготовленной в соответствии с МСФО (далее – консолидированная финансовая отчетность по МСФО) дополнены данными за 2010 г.,а производственные и иные показатели – сопоставимыми данными из Справочников, Годовых отчетов, Отчетов руководства ПАО «Газпром» за 2010 г. и предыдущие периоды. | AL4: При этом показатели консолидированной финансовой отчетности Группы Газпром, подготовленной в соответствии с МСФО (далее – консолидированная финансовая отчетность по МСФО) дополнены данными за 2010 г.,а производственные и иные показатели – сопоставимыми данными из Справочников, Годовых отчетов, Отчетов руководства ПАО «Газпром» за 2010 г. и предыдущие периоды. | AM4: При этом показатели консолидированной финансовой отчетности Группы Газпром, подготовленной в соответствии с МСФО (далее – консолидированная финансовая отчетность по МСФО) дополнены данными за 2010 г.,а производственные и иные показатели – сопоставимыми данными из Справочников, Годовых отчетов, Отчетов руководства ПАО «Газпром» за 2010 г. и предыдущие периоды. | AN4: При этом показатели консолидированной финансовой отчетности Группы Газпром, подготовленной в соответствии с МСФО (далее – консолидированная финансовая отчетность по МСФО) дополнены данными за 2010 г.,а производственные и иные показатели – сопоставимыми данными из Справочников, Годовых отчетов, Отчетов руководства ПАО «Газпром» за 2010 г. и предыдущие периоды. | AO4: При этом показатели консолидированной финансовой отчетности Группы Газпром, подготовленной в соответствии с МСФО (далее – консолидированная финансовая отчетность по МСФО) дополнены данными за 2010 г.,а производственные и иные показатели – сопоставимыми данными из Справочников, Годовых отчетов, Отчетов руководства ПАО «Газпром» за 2010 г. и предыдущие периоды. | AP4: При этом показатели консолидированной финансовой отчетности Группы Газпром, подготовленной в соответствии с МСФО (далее – консолидированная финансовая отчетность по МСФО) дополнены данными за 2010 г.,а производственные и иные показатели – сопоставимыми данными из Справочников, Годовых отчетов, Отчетов руководства ПАО «Газпром» за 2010 г. и предыдущие периоды. | AQ4: При этом показатели консолидированной финансовой отчетности Группы Газпром, подготовленной в соответствии с МСФО (далее – консолидированная финансовая отчетность по МСФО) дополнены данными за 2010 г.,а производственные и иные показатели – сопоставимыми данными из Справочников, Годовых отчетов, Отчетов руководства ПАО «Газпром» за 2010 г. и предыдущие периоды. | AR4: При этом показатели консолидированной финансовой отчетности Группы Газпром, подготовленной в соответствии с МСФО (далее – консолидированная финансовая отчетность по МСФО) дополнены данными за 2010 г.,а производственные и иные показатели – сопоставимыми данными из Справочников, Годовых отчетов, Отчетов руководства ПАО «Газпром» за 2010 г. и предыдущие периоды. | AS4: При этом показатели консолидированной финансовой отчетности Группы Газпром, подготовленной в соответствии с МСФО (далее – консолидированная финансовая отчетность по МСФО) дополнены данными за 2010 г.,а производственные и иные показатели – сопоставимыми данными из Справочников, Годовых отчетов, Отчетов руководства ПАО «Газпром» за 2010 г. и предыдущие периоды. | AT4: При этом показатели консолидированной финансовой отчетности Группы Газпром, подготовленной в соответствии с МСФО (далее – консолидированная финансовая отчетность по МСФО) дополнены данными за 2010 г.,а производственные и иные показатели – сопоставимыми данными из Справочников, Годовых отчетов, Отчетов руководства ПАО «Газпром» за 2010 г. и предыдущие периоды. | AU4: При этом показатели консолидированной финансовой отчетности Группы Газпром, подготовленной в соответствии с МСФО (далее – консолидированная финансовая отчетность по МСФО) дополнены данными за 2010 г.,а производственные и иные показатели – сопоставимыми данными из Справочников, Годовых отчетов, Отчетов руководства ПАО «Газпром» за 2010 г. и предыдущие периоды. | AV4: При этом показатели консолидированной финансовой отчетности Группы Газпром, подготовленной в соответствии с МСФО (далее – консолидированная финансовая отчетность по МСФО) дополнены данными за 2010 г.,а производственные и иные показатели – сопоставимыми данными из Справочников, Годовых отчетов, Отчетов руководства ПАО «Газпром» за 2010 г. и предыдущие периоды. | AW4: При этом показатели консолидированной финансовой отчетности Группы Газпром, подготовленной в соответствии с МСФО (далее – консолидированная финансовая отчетность по МСФО) дополнены данными за 2010 г.,а производственные и иные показатели – сопоставимыми данными из Справочников, Годовых отчетов, Отчетов руководства ПАО «Газпром» за 2010 г. и предыдущие периоды. | AX4: При этом показатели консолидированной финансовой отчетности Группы Газпром, подготовленной в соответствии с МСФО (далее – консолидированная финансовая отчетность по МСФО) дополнены данными за 2010 г.,а производственные и иные показатели – сопоставимыми данными из Справочников, Годовых отчетов, Отчетов руководства ПАО «Газпром» за 2010 г. и предыдущие периоды. | AY4: При этом показатели консолидированной финансовой отчетности Группы Газпром, подготовленной в соответствии с МСФО (далее – консолидированная финансовая отчетность по МСФО) дополнены данными за 2010 г.,а производственные и иные показатели – сопоставимыми данными из Справочников, Годовых отчетов, Отчетов руководства ПАО «Газпром» за 2010 г. и предыдущие периоды. | AZ4: При этом показатели консолидированной финансовой отчетности Группы Газпром, подготовленной в соответствии с МСФО (далее – консолидированная финансовая отчетность по МСФО) дополнены данными за 2010 г.,а производственные и иные показатели – сопоставимыми данными из Справочников, Годовых отчетов, Отчетов руководства ПАО «Газпром» за 2010 г. и предыдущие периоды. | BA4: При этом показатели консолидированной финансовой отчетности Группы Газпром, подготовленной в соответствии с МСФО (далее – консолидированная финансовая отчетность по МСФО) дополнены данными за 2010 г.,а производственные и иные показатели – сопоставимыми данными из Справочников, Годовых отчетов, Отчетов руководства ПАО «Газпром» за 2010 г. и предыдущие периоды. | BB4: При этом показатели консолидированной финансовой отчетности Группы Газпром, подготовленной в соответствии с МСФО (далее – консолидированная финансовая отчетность по МСФО) дополнены данными за 2010 г.,а производственные и иные показатели – сопоставимыми данными из Справочников, Годовых отчетов, Отчетов руководства ПАО «Газпром» за 2010 г. и предыдущие периоды. | BC4: При этом показатели консолидированной финансовой отчетности Группы Газпром, подготовленной в соответствии с МСФО (далее – консолидированная финансовая отчетность по МСФО) дополнены данными за 2010 г.,а производственные и иные показатели – сопоставимыми данными из Справочников, Годовых отчетов, Отчетов руководства ПАО «Газпром» за 2010 г. и предыдущие периоды. | BD4: При этом показатели консолидированной финансовой отчетности Группы Газпром, подготовленной в соответствии с МСФО (далее – консолидированная финансовая отчетность по МСФО) дополнены данными за 2010 г.,а производственные и иные показатели – сопоставимыми данными из Справочников, Годовых отчетов, Отчетов руководства ПАО «Газпром» за 2010 г. и предыдущие периоды. | BE4: При этом показатели консолидированной финансовой отчетности Группы Газпром, подготовленной в соответствии с МСФО (далее – консолидированная финансовая отчетность по МСФО) дополнены данными за 2010 г.,а производственные и иные показатели – сопоставимыми данными из Справочников, Годовых отчетов, Отчетов руководства ПАО «Газпром» за 2010 г. и предыдущие периоды. | BF4: При этом показатели консолидированной финансовой отчетности Группы Газпром, подготовленной в соответствии с МСФО (далее – консолидированная финансовая отчетность по МСФО) дополнены данными за 2010 г.,а производственные и иные показатели – сопоставимыми данными из Справочников, Годовых отчетов, Отчетов руководства ПАО «Газпром» за 2010 г. и предыдущие периоды. | BG4: При этом показатели консолидированной финансовой отчетности Группы Газпром, подготовленной в соответствии с МСФО (далее – консолидированная финансовая отчетность по МСФО) дополнены данными за 2010 г.,а производственные и иные показатели – сопоставимыми данными из Справочников, Годовых отчетов, Отчетов руководства ПАО «Газпром» за 2010 г. и предыдущие периоды. | BH4: При этом показатели консолидированной финансовой отчетности Группы Газпром, подготовленной в соответствии с МСФО (далее – консолидированная финансовая отчетность по МСФО) дополнены данными за 2010 г.,а производственные и иные показатели – сопоставимыми данными из Справочников, Годовых отчетов, Отчетов руководства ПАО «Газпром» за 2010 г. и предыдущие периоды. | BI4: При этом показатели консолидированной финансовой отчетности Группы Газпром, подготовленной в соответствии с МСФО (далее – консолидированная финансовая отчетность по МСФО) дополнены данными за 2010 г.,а производственные и иные показатели – сопоставимыми данными из Справочников, Годовых отчетов, Отчетов руководства ПАО «Газпром» за 2010 г. и предыдущие периоды. | BJ4: При этом показатели консолидированной финансовой отчетности Группы Газпром, подготовленной в соответствии с МСФО (далее – консолидированная финансовая отчетность по МСФО) дополнены данными за 2010 г.,а производственные и иные показатели – сопоставимыми данными из Справочников, Годовых отчетов, Отчетов руководства ПАО «Газпром» за 2010 г. и предыдущие периоды. | BK4: При этом показатели консолидированной финансовой отчетности Группы Газпром, подготовленной в соответствии с МСФО (далее – консолидированная финансовая отчетность по МСФО) дополнены данными за 2010 г.,а производственные и иные показатели – сопоставимыми данными из Справочников, Годовых отчетов, Отчетов руководства ПАО «Газпром» за 2010 г. и предыдущие периоды. | BL4: При этом показатели консолидированной финансовой отчетности Группы Газпром, подготовленной в соответствии с МСФО (далее – консолидированная финансовая отчетность по МСФО) дополнены данными за 2010 г.,а производственные и иные показатели – сопоставимыми данными из Справочников, Годовых отчетов, Отчетов руководства ПАО «Газпром» за 2010 г. и предыдущие периоды. | BM4: При этом показатели консолидированной финансовой отчетности Группы Газпром, подготовленной в соответствии с МСФО (далее – консолидированная финансовая отчетность по МСФО) дополнены данными за 2010 г.,а производственные и иные показатели – сопоставимыми данными из Справочников, Годовых отчетов, Отчетов руководства ПАО «Газпром» за 2010 г. и предыдущие периоды. | BN4: При этом показатели консолидированной финансовой отчетности Группы Газпром, подготовленной в соответствии с МСФО (далее – консолидированная финансовая отчетность по МСФО) дополнены данными за 2010 г.,а производственные и иные показатели – сопоставимыми данными из Справочников, Годовых отчетов, Отчетов руководства ПАО «Газпром» за 2010 г. и предыдущие периоды. | BO4: При этом показатели консолидированной финансовой отчетности Группы Газпром, подготовленной в соответствии с МСФО (далее – консолидированная финансовая отчетность по МСФО) дополнены данными за 2010 г.,а производственные и иные показатели – сопоставимыми данными из Справочников, Годовых отчетов, Отчетов руководства ПАО «Газпром» за 2010 г. и предыдущие периоды. | BP4: При этом показатели консолидированной финансовой отчетности Группы Газпром, подготовленной в соответствии с МСФО (далее – консолидированная финансовая отчетность по МСФО) дополнены данными за 2010 г.,а производственные и иные показатели – сопоставимыми данными из Справочников, Годовых отчетов, Отчетов руководства ПАО «Газпром» за 2010 г. и предыдущие периоды. | BQ4: При этом показатели консолидированной финансовой отчетности Группы Газпром, подготовленной в соответствии с МСФО (далее – консолидированная финансовая отчетность по МСФО) дополнены данными за 2010 г.,а производственные и иные показатели – сопоставимыми данными из Справочников, Годовых отчетов, Отчетов руководства ПАО «Газпром» за 2010 г. и предыдущие периоды. | BR4: При этом показатели консолидированной финансовой отчетности Группы Газпром, подготовленной в соответствии с МСФО (далее – консолидированная финансовая отчетность по МСФО) дополнены данными за 2010 г.,а производственные и иные показатели – сопоставимыми данными из Справочников, Годовых отчетов, Отчетов руководства ПАО «Газпром» за 2010 г. и предыдущие периоды. | BS4: При этом показатели консолидированной финансовой отчетности Группы Газпром, подготовленной в соответствии с МСФО (далее – консолидированная финансовая отчетность по МСФО) дополнены данными за 2010 г.,а производственные и иные показатели – сопоставимыми данными из Справочников, Годовых отчетов, Отчетов руководства ПАО «Газпром» за 2010 г. и предыдущие периоды. | BT4: При этом показатели консолидированной финансовой отчетности Группы Газпром, подготовленной в соответствии с МСФО (далее – консолидированная финансовая отчетность по МСФО) дополнены данными за 2010 г.,а производственные и иные показатели – сопоставимыми данными из Справочников, Годовых отчетов, Отчетов руководства ПАО «Газпром» за 2010 г. и предыдущие периоды. | BU4: При этом показатели консолидированной финансовой отчетности Группы Газпром, подготовленной в соответствии с МСФО (далее – консолидированная финансовая отчетность по МСФО) дополнены данными за 2010 г.,а производственные и иные показатели – сопоставимыми данными из Справочников, Годовых отчетов, Отчетов руководства ПАО «Газпром» за 2010 г. и предыдущие периоды. | BV4: При этом показатели консолидированной финансовой отчетности Группы Газпром, подготовленной в соответствии с МСФО (далее – консолидированная финансовая отчетность по МСФО) дополнены данными за 2010 г.,а производственные и иные показатели – сопоставимыми данными из Справочников, Годовых отчетов, Отчетов руководства ПАО «Газпром» за 2010 г. и предыдущие периоды. | BW4: При этом показатели консолидированной финансовой отчетности Группы Газпром, подготовленной в соответствии с МСФО (далее – консолидированная финансовая отчетность по МСФО) дополнены данными за 2010 г.,а производственные и иные показатели – сопоставимыми данными из Справочников, Годовых отчетов, Отчетов руководства ПАО «Газпром» за 2010 г. и предыдущие периоды. | BX4: При этом показатели консолидированной финансовой отчетности Группы Газпром, подготовленной в соответствии с МСФО (далее – консолидированная финансовая отчетность по МСФО) дополнены данными за 2010 г.,а производственные и иные показатели – сопоставимыми данными из Справочников, Годовых отчетов, Отчетов руководства ПАО «Газпром» за 2010 г. и предыдущие периоды. | BY4: При этом показатели консолидированной финансовой отчетности Группы Газпром, подготовленной в соответствии с МСФО (далее – консолидированная финансовая отчетность по МСФО) дополнены данными за 2010 г.,а производственные и иные показатели – сопоставимыми данными из Справочников, Годовых отчетов, Отчетов руководства ПАО «Газпром» за 2010 г. и предыдущие периоды. | BZ4: При этом показатели консолидированной финансовой отчетности Группы Газпром, подготовленной в соответствии с МСФО (далее – консолидированная финансовая отчетность по МСФО) дополнены данными за 2010 г.,а производственные и иные показатели – сопоставимыми данными из Справочников, Годовых отчетов, Отчетов руководства ПАО «Газпром» за 2010 г. и предыдущие периоды. | CA4: При этом показатели консолидированной финансовой отчетности Группы Газпром, подготовленной в соответствии с МСФО (далее – консолидированная финансовая отчетность по МСФО) дополнены данными за 2010 г.,а производственные и иные показатели – сопоставимыми данными из Справочников, Годовых отчетов, Отчетов руководства ПАО «Газпром» за 2010 г. и предыдущие периоды. | CB4: При этом показатели консолидированной финансовой отчетности Группы Газпром, подготовленной в соответствии с МСФО (далее – консолидированная финансовая отчетность по МСФО) дополнены данными за 2010 г.,а производственные и иные показатели – сопоставимыми данными из Справочников, Годовых отчетов, Отчетов руководства ПАО «Газпром» за 2010 г. и предыдущие периоды. | CC4: При этом показатели консолидированной финансовой отчетности Группы Газпром, подготовленной в соответствии с МСФО (далее – консолидированная финансовая отчетность по МСФО) дополнены данными за 2010 г.,а производственные и иные показатели – сопоставимыми данными из Справочников, Годовых отчетов, Отчетов руководства ПАО «Газпром» за 2010 г. и предыдущие периоды. | CD4: При этом показатели консолидированной финансовой отчетности Группы Газпром, подготовленной в соответствии с МСФО (далее – консолидированная финансовая отчетность по МСФО) дополнены данными за 2010 г.,а производственные и иные показатели – сопоставимыми данными из Справочников, Годовых отчетов, Отчетов руководства ПАО «Газпром» за 2010 г. и предыдущие периоды. | CE4: При этом показатели консолидированной финансовой отчетности Группы Газпром, подготовленной в соответствии с МСФО (далее – консолидированная финансовая отчетность по МСФО) дополнены данными за 2010 г.,а производственные и иные показатели – сопоставимыми данными из Справочников, Годовых отчетов, Отчетов руководства ПАО «Газпром» за 2010 г. и предыдущие периоды. | CF4: При этом показатели консолидированной финансовой отчетности Группы Газпром, подготовленной в соответствии с МСФО (далее – консолидированная финансовая отчетность по МСФО) дополнены данными за 2010 г.,а производственные и иные показатели – сопоставимыми данными из Справочников, Годовых отчетов, Отчетов руководства ПАО «Газпром» за 2010 г. и предыдущие периоды. | CG4: При этом показатели консолидированной финансовой отчетности Группы Газпром, подготовленной в соответствии с МСФО (далее – консолидированная финансовая отчетность по МСФО) дополнены данными за 2010 г.,а производственные и иные показатели – сопоставимыми данными из Справочников, Годовых отчетов, Отчетов руководства ПАО «Газпром» за 2010 г. и предыдущие периоды. | CH4: При этом показатели консолидированной финансовой отчетности Группы Газпром, подготовленной в соответствии с МСФО (далее – консолидированная финансовая отчетность по МСФО) дополнены данными за 2010 г.,а производственные и иные показатели – сопоставимыми данными из Справочников, Годовых отчетов, Отчетов руководства ПАО «Газпром» за 2010 г. и предыдущие периоды. | CI4: При этом показатели консолидированной финансовой отчетности Группы Газпром, подготовленной в соответствии с МСФО (далее – консолидированная финансовая отчетность по МСФО) дополнены данными за 2010 г.,а производственные и иные показатели – сопоставимыми данными из Справочников, Годовых отчетов, Отчетов руководства ПАО «Газпром» за 2010 г. и предыдущие периоды. | CJ4: При этом показатели консолидированной финансовой отчетности Группы Газпром, подготовленной в соответствии с МСФО (далее – консолидированная финансовая отчетность по МСФО) дополнены данными за 2010 г.,а производственные и иные показатели – сопоставимыми данными из Справочников, Годовых отчетов, Отчетов руководства ПАО «Газпром» за 2010 г. и предыдущие периоды. | CK4: При этом показатели консолидированной финансовой отчетности Группы Газпром, подготовленной в соответствии с МСФО (далее – консолидированная финансовая отчетность по МСФО) дополнены данными за 2010 г.,а производственные и иные показатели – сопоставимыми данными из Справочников, Годовых отчетов, Отчетов руководства ПАО «Газпром» за 2010 г. и предыдущие периоды. | CL4: При этом показатели консолидированной финансовой отчетности Группы Газпром, подготовленной в соответствии с МСФО (далее – консолидированная финансовая отчетность по МСФО) дополнены данными за 2010 г.,а производственные и иные показатели – сопоставимыми данными из Справочников, Годовых отчетов, Отчетов руководства ПАО «Газпром» за 2010 г. и предыдущие периоды. | CM4: При этом показатели консолидированной финансовой отчетности Группы Газпром, подготовленной в соответствии с МСФО (далее – консолидированная финансовая отчетность по МСФО) дополнены данными за 2010 г.,а производственные и иные показатели – сопоставимыми данными из Справочников, Годовых отчетов, Отчетов руководства ПАО «Газпром» за 2010 г. и предыдущие периоды. | CN4: При этом показатели консолидированной финансовой отчетности Группы Газпром, подготовленной в соответствии с МСФО (далее – консолидированная финансовая отчетность по МСФО) дополнены данными за 2010 г.,а производственные и иные показатели – сопоставимыми данными из Справочников, Годовых отчетов, Отчетов руководства ПАО «Газпром» за 2010 г. и предыдущие периоды. | CO4: При этом показатели консолидированной финансовой отчетности Группы Газпром, подготовленной в соответствии с МСФО (далее – консолидированная финансовая отчетность по МСФО) дополнены данными за 2010 г.,а производственные и иные показатели – сопоставимыми данными из Справочников, Годовых отчетов, Отчетов руководства ПАО «Газпром» за 2010 г. и предыдущие периоды. | CP4: При этом показатели консолидированной финансовой отчетности Группы Газпром, подготовленной в соответствии с МСФО (далее – консолидированная финансовая отчетность по МСФО) дополнены данными за 2010 г.,а производственные и иные показатели – сопоставимыми данными из Справочников, Годовых отчетов, Отчетов руководства ПАО «Газпром» за 2010 г. и предыдущие периоды. | CQ4: При этом показатели консолидированной финансовой отчетности Группы Газпром, подготовленной в соответствии с МСФО (далее – консолидированная финансовая отчетность по МСФО) дополнены данными за 2010 г.,а производственные и иные показатели – сопоставимыми данными из Справочников, Годовых отчетов, Отчетов руководства ПАО «Газпром» за 2010 г. и предыдущие периоды. | CR4: При этом показатели консолидированной финансовой отчетности Группы Газпром, подготовленной в соответствии с МСФО (далее – консолидированная финансовая отчетность по МСФО) дополнены данными за 2010 г.,а производственные и иные показатели – сопоставимыми данными из Справочников, Годовых отчетов, Отчетов руководства ПАО «Газпром» за 2010 г. и предыдущие периоды. | CS4: При этом показатели консолидированной финансовой отчетности Группы Газпром, подготовленной в соответствии с МСФО (далее – консолидированная финансовая отчетность по МСФО) дополнены данными за 2010 г.,а производственные и иные показатели – сопоставимыми данными из Справочников, Годовых отчетов, Отчетов руководства ПАО «Газпром» за 2010 г. и предыдущие периоды. | CT4: При этом показатели консолидированной финансовой отчетности Группы Газпром, подготовленной в соответствии с МСФО (далее – консолидированная финансовая отчетность по МСФО) дополнены данными за 2010 г.,а производственные и иные показатели – сопоставимыми данными из Справочников, Годовых отчетов, Отчетов руководства ПАО «Газпром» за 2010 г. и предыдущие периоды. | CU4: При этом показатели консолидированной финансовой отчетности Группы Газпром, подготовленной в соответствии с МСФО (далее – консолидированная финансовая отчетность по МСФО) дополнены данными за 2010 г.,а производственные и иные показатели – сопоставимыми данными из Справочников, Годовых отчетов, Отчетов руководства ПАО «Газпром» за 2010 г. и предыдущие периоды. | CV4: При этом показатели консолидированной финансовой отчетности Группы Газпром, подготовленной в соответствии с МСФО (далее – консолидированная финансовая отчетность по МСФО) дополнены данными за 2010 г.,а производственные и иные показатели – сопоставимыми данными из Справочников, Годовых отчетов, Отчетов руководства ПАО «Газпром» за 2010 г. и предыдущие периоды. | CW4: При этом показатели консолидированной финансовой отчетности Группы Газпром, подготовленной в соответствии с МСФО (далее – консолидированная финансовая отчетность по МСФО) дополнены данными за 2010 г.,а производственные и иные показатели – сопоставимыми данными из Справочников, Годовых отчетов, Отчетов руководства ПАО «Газпром» за 2010 г. и предыдущие периоды. | CX4: При этом показатели консолидированной финансовой отчетности Группы Газпром, подготовленной в соответствии с МСФО (далее – консолидированная финансовая отчетность по МСФО) дополнены данными за 2010 г.,а производственные и иные показатели – сопоставимыми данными из Справочников, Годовых отчетов, Отчетов руководства ПАО «Газпром» за 2010 г. и предыдущие периоды. | CY4: При этом показатели консолидированной финансовой отчетности Группы Газпром, подготовленной в соответствии с МСФО (далее – консолидированная финансовая отчетность по МСФО) дополнены данными за 2010 г.,а производственные и иные показатели – сопоставимыми данными из Справочников, Годовых отчетов, Отчетов руководства ПАО «Газпром» за 2010 г. и предыдущие периоды. | CZ4: При этом показатели консолидированной финансовой отчетности Группы Газпром, подготовленной в соответствии с МСФО (далее – консолидированная финансовая отчетность по МСФО) дополнены данными за 2010 г.,а производственные и иные показатели – сопоставимыми данными из Справочников, Годовых отчетов, Отчетов руководства ПАО «Газпром» за 2010 г. и предыдущие периоды. | DA4: При этом показатели консолидированной финансовой отчетности Группы Газпром, подготовленной в соответствии с МСФО (далее – консолидированная финансовая отчетность по МСФО) дополнены данными за 2010 г.,а производственные и иные показатели – сопоставимыми данными из Справочников, Годовых отчетов, Отчетов руководства ПАО «Газпром» за 2010 г. и предыдущие периоды. | DB4: При этом показатели консолидированной финансовой отчетности Группы Газпром, подготовленной в соответствии с МСФО (далее – консолидированная финансовая отчетность по МСФО) дополнены данными за 2010 г.,а производственные и иные показатели – сопоставимыми данными из Справочников, Годовых отчетов, Отчетов руководства ПАО «Газпром» за 2010 г. и предыдущие периоды. | DC4: При этом показатели консолидированной финансовой отчетности Группы Газпром, подготовленной в соответствии с МСФО (далее – консолидированная финансовая отчетность по МСФО) дополнены данными за 2010 г.,а производственные и иные показатели – сопоставимыми данными из Справочников, Годовых отчетов, Отчетов руководства ПАО «Газпром» за 2010 г. и предыдущие периоды. | DD4: При этом показатели консолидированной финансовой отчетности Группы Газпром, подготовленной в соответствии с МСФО (далее – консолидированная финансовая отчетность по МСФО) дополнены данными за 2010 г.,а производственные и иные показатели – сопоставимыми данными из Справочников, Годовых отчетов, Отчетов руководства ПАО «Газпром» за 2010 г. и предыдущие периоды. | DE4: При этом показатели консолидированной финансовой отчетности Группы Газпром, подготовленной в соответствии с МСФО (далее – консолидированная финансовая отчетность по МСФО) дополнены данными за 2010 г.,а производственные и иные показатели – сопоставимыми данными из Справочников, Годовых отчетов, Отчетов руководства ПАО «Газпром» за 2010 г. и предыдущие периоды. | DF4: При этом показатели консолидированной финансовой отчетности Группы Газпром, подготовленной в соответствии с МСФО (далее – консолидированная финансовая отчетность по МСФО) дополнены данными за 2010 г.,а производственные и иные показатели – сопоставимыми данными из Справочников, Годовых отчетов, Отчетов руководства ПАО «Газпром» за 2010 г. и предыдущие периоды. | DG4: При этом показатели консолидированной финансовой отчетности Группы Газпром, подготовленной в соответствии с МСФО (далее – консолидированная финансовая отчетность по МСФО) дополнены данными за 2010 г.,а производственные и иные показатели – сопоставимыми данными из Справочников, Годовых отчетов, Отчетов руководства ПАО «Газпром» за 2010 г. и предыдущие периоды. | DH4: При этом показатели консолидированной финансовой отчетности Группы Газпром, подготовленной в соответствии с МСФО (далее – консолидированная финансовая отчетность по МСФО) дополнены данными за 2010 г.,а производственные и иные показатели – сопоставимыми данными из Справочников, Годовых отчетов, Отчетов руководства ПАО «Газпром» за 2010 г. и предыдущие периоды. | DI4: При этом показатели консолидированной финансовой отчетности Группы Газпром, подготовленной в соответствии с МСФО (далее – консолидированная финансовая отчетность по МСФО) дополнены данными за 2010 г.,а производственные и иные показатели – сопоставимыми данными из Справочников, Годовых отчетов, Отчетов руководства ПАО «Газпром» за 2010 г. и предыдущие периоды. | DJ4: При этом показатели консолидированной финансовой отчетности Группы Газпром, подготовленной в соответствии с МСФО (далее – консолидированная финансовая отчетность по МСФО) дополнены данными за 2010 г.,а производственные и иные показатели – сопоставимыми данными из Справочников, Годовых отчетов, Отчетов руководства ПАО «Газпром» за 2010 г. и предыдущие периоды. | DK4: При этом показатели консолидированной финансовой отчетности Группы Газпром, подготовленной в соответствии с МСФО (далее – консолидированная финансовая отчетность по МСФО) дополнены данными за 2010 г.,а производственные и иные показатели – сопоставимыми данными из Справочников, Годовых отчетов, Отчетов руководства ПАО «Газпром» за 2010 г. и предыдущие периоды. | DL4: При этом показатели консолидированной финансовой отчетности Группы Газпром, подготовленной в соответствии с МСФО (далее – консолидированная финансовая отчетность по МСФО) дополнены данными за 2010 г.,а производственные и иные показатели – сопоставимыми данными из Справочников, Годовых отчетов, Отчетов руководства ПАО «Газпром» за 2010 г. и предыдущие периоды. | DM4: При этом показатели консолидированной финансовой отчетности Группы Газпром, подготовленной в соответствии с МСФО (далее – консолидированная финансовая отчетность по МСФО) дополнены данными за 2010 г.,а производственные и иные показатели – сопоставимыми данными из Справочников, Годовых отчетов, Отчетов руководства ПАО «Газпром» за 2010 г. и предыдущие периоды. | DN4: При этом показатели консолидированной финансовой отчетности Группы Газпром, подготовленной в соответствии с МСФО (далее – консолидированная финансовая отчетность по МСФО) дополнены данными за 2010 г.,а производственные и иные показатели – сопоставимыми данными из Справочников, Годовых отчетов, Отчетов руководства ПАО «Газпром» за 2010 г. и предыдущие периоды. | DO4: При этом показатели консолидированной финансовой отчетности Группы Газпром, подготовленной в соответствии с МСФО (далее – консолидированная финансовая отчетность по МСФО) дополнены данными за 2010 г.,а производственные и иные показатели – сопоставимыми данными из Справочников, Годовых отчетов, Отчетов руководства ПАО «Газпром» за 2010 г. и предыдущие периоды. | DP4: При этом показатели консолидированной финансовой отчетности Группы Газпром, подготовленной в соответствии с МСФО (далее – консолидированная финансовая отчетность по МСФО) дополнены данными за 2010 г.,а производственные и иные показатели – сопоставимыми данными из Справочников, Годовых отчетов, Отчетов руководства ПАО «Газпром» за 2010 г. и предыдущие периоды. | DQ4: При этом показатели консолидированной финансовой отчетности Группы Газпром, подготовленной в соответствии с МСФО (далее – консолидированная финансовая отчетность по МСФО) дополнены данными за 2010 г.,а производственные и иные показатели – сопоставимыми данными из Справочников, Годовых отчетов, Отчетов руководства ПАО «Газпром» за 2010 г. и предыдущие периоды. | DR4: При этом показатели консолидированной финансовой отчетности Группы Газпром, подготовленной в соответствии с МСФО (далее – консолидированная финансовая отчетность по МСФО) дополнены данными за 2010 г.,а производственные и иные показатели – сопоставимыми данными из Справочников, Годовых отчетов, Отчетов руководства ПАО «Газпром» за 2010 г. и предыдущие периоды. | DS4: При этом показатели консолидированной финансовой отчетности Группы Газпром, подготовленной в соответствии с МСФО (далее – консолидированная финансовая отчетность по МСФО) дополнены данными за 2010 г.,а производственные и иные показатели – сопоставимыми данными из Справочников, Годовых отчетов, Отчетов руководства ПАО «Газпром» за 2010 г. и предыдущие периоды. | DT4: При этом показатели консолидированной финансовой отчетности Группы Газпром, подготовленной в соответствии с МСФО (далее – консолидированная финансовая отчетность по МСФО) дополнены данными за 2010 г.,а производственные и иные показатели – сопоставимыми данными из Справочников, Годовых отчетов, Отчетов руководства ПАО «Газпром» за 2010 г. и предыдущие периоды. | DU4: При этом показатели консолидированной финансовой отчетности Группы Газпром, подготовленной в соответствии с МСФО (далее – консолидированная финансовая отчетность по МСФО) дополнены данными за 2010 г.,а производственные и иные показатели – сопоставимыми данными из Справочников, Годовых отчетов, Отчетов руководства ПАО «Газпром» за 2010 г. и предыдущие периоды. | DV4: При этом показатели консолидированной финансовой отчетности Группы Газпром, подготовленной в соответствии с МСФО (далее – консолидированная финансовая отчетность по МСФО) дополнены данными за 2010 г.,а производственные и иные показатели – сопоставимыми данными из Справочников, Годовых отчетов, Отчетов руководства ПАО «Газпром» за 2010 г. и предыдущие периоды. | DW4: При этом показатели консолидированной финансовой отчетности Группы Газпром, подготовленной в соответствии с МСФО (далее – консолидированная финансовая отчетность по МСФО) дополнены данными за 2010 г.,а производственные и иные показатели – сопоставимыми данными из Справочников, Годовых отчетов, Отчетов руководства ПАО «Газпром» за 2010 г. и предыдущие периоды. | DX4: При этом показатели консолидированной финансовой отчетности Группы Газпром, подготовленной в соответствии с МСФО (далее – консолидированная финансовая отчетность по МСФО) дополнены данными за 2010 г.,а производственные и иные показатели – сопоставимыми данными из Справочников, Годовых отчетов, Отчетов руководства ПАО «Газпром» за 2010 г. и предыдущие периоды. | DY4: При этом показатели консолидированной финансовой отчетности Группы Газпром, подготовленной в соответствии с МСФО (далее – консолидированная финансовая отчетность по МСФО) дополнены данными за 2010 г.,а производственные и иные показатели – сопоставимыми данными из Справочников, Годовых отчетов, Отчетов руководства ПАО «Газпром» за 2010 г. и предыдущие периоды. | DZ4: При этом показатели консолидированной финансовой отчетности Группы Газпром, подготовленной в соответствии с МСФО (далее – консолидированная финансовая отчетность по МСФО) дополнены данными за 2010 г.,а производственные и иные показатели – сопоставимыми данными из Справочников, Годовых отчетов, Отчетов руководства ПАО «Газпром» за 2010 г. и предыдущие периоды. | EA4: При этом показатели консолидированной финансовой отчетности Группы Газпром, подготовленной в соответствии с МСФО (далее – консолидированная финансовая отчетность по МСФО) дополнены данными за 2010 г.,а производственные и иные показатели – сопоставимыми данными из Справочников, Годовых отчетов, Отчетов руководства ПАО «Газпром» за 2010 г. и предыдущие периоды. | EB4: При этом показатели консолидированной финансовой отчетности Группы Газпром, подготовленной в соответствии с МСФО (далее – консолидированная финансовая отчетность по МСФО) дополнены данными за 2010 г.,а производственные и иные показатели – сопоставимыми данными из Справочников, Годовых отчетов, Отчетов руководства ПАО «Газпром» за 2010 г. и предыдущие периоды. | EC4: При этом показатели консолидированной финансовой отчетности Группы Газпром, подготовленной в соответствии с МСФО (далее – консолидированная финансовая отчетность по МСФО) дополнены данными за 2010 г.,а производственные и иные показатели – сопоставимыми данными из Справочников, Годовых отчетов, Отчетов руководства ПАО «Газпром» за 2010 г. и предыдущие периоды. | ED4: При этом показатели консолидированной финансовой отчетности Группы Газпром, подготовленной в соответствии с МСФО (далее – консолидированная финансовая отчетность по МСФО) дополнены данными за 2010 г.,а производственные и иные показатели – сопоставимыми данными из Справочников, Годовых отчетов, Отчетов руководства ПАО «Газпром» за 2010 г. и предыдущие периоды. | EE4: При этом показатели консолидированной финансовой отчетности Группы Газпром, подготовленной в соответствии с МСФО (далее – консолидированная финансовая отчетность по МСФО) дополнены данными за 2010 г.,а производственные и иные показатели – сопоставимыми данными из Справочников, Годовых отчетов, Отчетов руководства ПАО «Газпром» за 2010 г. и предыдущие периоды. | EF4: При этом показатели консолидированной финансовой отчетности Группы Газпром, подготовленной в соответствии с МСФО (далее – консолидированная финансовая отчетность по МСФО) дополнены данными за 2010 г.,а производственные и иные показатели – сопоставимыми данными из Справочников, Годовых отчетов, Отчетов руководства ПАО «Газпром» за 2010 г. и предыдущие периоды. | EG4: При этом показатели консолидированной финансовой отчетности Группы Газпром, подготовленной в соответствии с МСФО (далее – консолидированная финансовая отчетность по МСФО) дополнены данными за 2010 г.,а производственные и иные показатели – сопоставимыми данными из Справочников, Годовых отчетов, Отчетов руководства ПАО «Газпром» за 2010 г. и предыдущие периоды. | EH4: При этом показатели консолидированной финансовой отчетности Группы Газпром, подготовленной в соответствии с МСФО (далее – консолидированная финансовая отчетность по МСФО) дополнены данными за 2010 г.,а производственные и иные показатели – сопоставимыми данными из Справочников, Годовых отчетов, Отчетов руководства ПАО «Газпром» за 2010 г. и предыдущие периоды. | EI4: При этом показатели консолидированной финансовой отчетности Группы Газпром, подготовленной в соответствии с МСФО (далее – консолидированная финансовая отчетность по МСФО) дополнены данными за 2010 г.,а производственные и иные показатели – сопоставимыми данными из Справочников, Годовых отчетов, Отчетов руководства ПАО «Газпром» за 2010 г. и предыдущие периоды. | EJ4: При этом показатели консолидированной финансовой отчетности Группы Газпром, подготовленной в соответствии с МСФО (далее – консолидированная финансовая отчетность по МСФО) дополнены данными за 2010 г.,а производственные и иные показатели – сопоставимыми данными из Справочников, Годовых отчетов, Отчетов руководства ПАО «Газпром» за 2010 г. и предыдущие периоды. | EK4: При этом показатели консолидированной финансовой отчетности Группы Газпром, подготовленной в соответствии с МСФО (далее – консолидированная финансовая отчетность по МСФО) дополнены данными за 2010 г.,а производственные и иные показатели – сопоставимыми данными из Справочников, Годовых отчетов, Отчетов руководства ПАО «Газпром» за 2010 г. и предыдущие периоды. | EL4: При этом показатели консолидированной финансовой отчетности Группы Газпром, подготовленной в соответствии с МСФО (далее – консолидированная финансовая отчетность по МСФО) дополнены данными за 2010 г.,а производственные и иные показатели – сопоставимыми данными из Справочников, Годовых отчетов, Отчетов руководства ПАО «Газпром» за 2010 г. и предыдущие периоды. | EM4: При этом показатели консолидированной финансовой отчетности Группы Газпром, подготовленной в соответствии с МСФО (далее – консолидированная финансовая отчетность по МСФО) дополнены данными за 2010 г.,а производственные и иные показатели – сопоставимыми данными из Справочников, Годовых отчетов, Отчетов руководства ПАО «Газпром» за 2010 г. и предыдущие периоды. | EN4: При этом показатели консолидированной финансовой отчетности Группы Газпром, подготовленной в соответствии с МСФО (далее – консолидированная финансовая отчетность по МСФО) дополнены данными за 2010 г.,а производственные и иные показатели – сопоставимыми данными из Справочников, Годовых отчетов, Отчетов руководства ПАО «Газпром» за 2010 г. и предыдущие периоды. | EO4: При этом показатели консолидированной финансовой отчетности Группы Газпром, подготовленной в соответствии с МСФО (далее – консолидированная финансовая отчетность по МСФО) дополнены данными за 2010 г.,а производственные и иные показатели – сопоставимыми данными из Справочников, Годовых отчетов, Отчетов руководства ПАО «Газпром» за 2010 г. и предыдущие периоды. | EP4: При этом показатели консолидированной финансовой отчетности Группы Газпром, подготовленной в соответствии с МСФО (далее – консолидированная финансовая отчетность по МСФО) дополнены данными за 2010 г.,а производственные и иные показатели – сопоставимыми данными из Справочников, Годовых отчетов, Отчетов руководства ПАО «Газпром» за 2010 г. и предыдущие периоды. | EQ4: При этом показатели консолидированной финансовой отчетности Группы Газпром, подготовленной в соответствии с МСФО (далее – консолидированная финансовая отчетность по МСФО) дополнены данными за 2010 г.,а производственные и иные показатели – сопоставимыми данными из Справочников, Годовых отчетов, Отчетов руководства ПАО «Газпром» за 2010 г. и предыдущие периоды. | ER4: При этом показатели консолидированной финансовой отчетности Группы Газпром, подготовленной в соответствии с МСФО (далее – консолидированная финансовая отчетность по МСФО) дополнены данными за 2010 г.,а производственные и иные показатели – сопоставимыми данными из Справочников, Годовых отчетов, Отчетов руководства ПАО «Газпром» за 2010 г. и предыдущие периоды. | ES4: При этом показатели консолидированной финансовой отчетности Группы Газпром, подготовленной в соответствии с МСФО (далее – консолидированная финансовая отчетность по МСФО) дополнены данными за 2010 г.,а производственные и иные показатели – сопоставимыми данными из Справочников, Годовых отчетов, Отчетов руководства ПАО «Газпром» за 2010 г. и предыдущие периоды. | ET4: При этом показатели консолидированной финансовой отчетности Группы Газпром, подготовленной в соответствии с МСФО (далее – консолидированная финансовая отчетность по МСФО) дополнены данными за 2010 г.,а производственные и иные показатели – сопоставимыми данными из Справочников, Годовых отчетов, Отчетов руководства ПАО «Газпром» за 2010 г. и предыдущие периоды. | EU4: При этом показатели консолидированной финансовой отчетности Группы Газпром, подготовленной в соответствии с МСФО (далее – консолидированная финансовая отчетность по МСФО) дополнены данными за 2010 г.,а производственные и иные показатели – сопоставимыми данными из Справочников, Годовых отчетов, Отчетов руководства ПАО «Газпром» за 2010 г. и предыдущие периоды. | EV4: При этом показатели консолидированной финансовой отчетности Группы Газпром, подготовленной в соответствии с МСФО (далее – консолидированная финансовая отчетность по МСФО) дополнены данными за 2010 г.,а производственные и иные показатели – сопоставимыми данными из Справочников, Годовых отчетов, Отчетов руководства ПАО «Газпром» за 2010 г. и предыдущие периоды. | EW4: При этом показатели консолидированной финансовой отчетности Группы Газпром, подготовленной в соответствии с МСФО (далее – консолидированная финансовая отчетность по МСФО) дополнены данными за 2010 г.,а производственные и иные показатели – сопоставимыми данными из Справочников, Годовых отчетов, Отчетов руководства ПАО «Газпром» за 2010 г. и предыдущие периоды. | EX4: При этом показатели консолидированной финансовой отчетности Группы Газпром, подготовленной в соответствии с МСФО (далее – консолидированная финансовая отчетность по МСФО) дополнены данными за 2010 г.,а производственные и иные показатели – сопоставимыми данными из Справочников, Годовых отчетов, Отчетов руководства ПАО «Газпром» за 2010 г. и предыдущие периоды. | EY4: При этом показатели консолидированной финансовой отчетности Группы Газпром, подготовленной в соответствии с МСФО (далее – консолидированная финансовая отчетность по МСФО) дополнены данными за 2010 г.,а производственные и иные показатели – сопоставимыми данными из Справочников, Годовых отчетов, Отчетов руководства ПАО «Газпром» за 2010 г. и предыдущие периоды. | EZ4: При этом показатели консолидированной финансовой отчетности Группы Газпром, подготовленной в соответствии с МСФО (далее – консолидированная финансовая отчетность по МСФО) дополнены данными за 2010 г.,а производственные и иные показатели – сопоставимыми данными из Справочников, Годовых отчетов, Отчетов руководства ПАО «Газпром» за 2010 г. и предыдущие периоды. | FA4: При этом показатели консолидированной финансовой отчетности Группы Газпром, подготовленной в соответствии с МСФО (далее – консолидированная финансовая отчетность по МСФО) дополнены данными за 2010 г.,а производственные и иные показатели – сопоставимыми данными из Справочников, Годовых отчетов, Отчетов руководства ПАО «Газпром» за 2010 г. и предыдущие периоды. | FB4: При этом показатели консолидированной финансовой отчетности Группы Газпром, подготовленной в соответствии с МСФО (далее – консолидированная финансовая отчетность по МСФО) дополнены данными за 2010 г.,а производственные и иные показатели – сопоставимыми данными из Справочников, Годовых отчетов, Отчетов руководства ПАО «Газпром» за 2010 г. и предыдущие периоды. | FC4: При этом показатели консолидированной финансовой отчетности Группы Газпром, подготовленной в соответствии с МСФО (далее – консолидированная финансовая отчетность по МСФО) дополнены данными за 2010 г.,а производственные и иные показатели – сопоставимыми данными из Справочников, Годовых отчетов, Отчетов руководства ПАО «Газпром» за 2010 г. и предыдущие периоды. | FD4: При этом показатели консолидированной финансовой отчетности Группы Газпром, подготовленной в соответствии с МСФО (далее – консолидированная финансовая отчетность по МСФО) дополнены данными за 2010 г.,а производственные и иные показатели – сопоставимыми данными из Справочников, Годовых отчетов, Отчетов руководства ПАО «Газпром» за 2010 г. и предыдущие периоды. | FE4: При этом показатели консолидированной финансовой отчетности Группы Газпром, подготовленной в соответствии с МСФО (далее – консолидированная финансовая отчетность по МСФО) дополнены данными за 2010 г.,а производственные и иные показатели – сопоставимыми данными из Справочников, Годовых отчетов, Отчетов руководства ПАО «Газпром» за 2010 г. и предыдущие периоды. | FF4: При этом показатели консолидированной финансовой отчетности Группы Газпром, подготовленной в соответствии с МСФО (далее – консолидированная финансовая отчетность по МСФО) дополнены данными за 2010 г.,а производственные и иные показатели – сопоставимыми данными из Справочников, Годовых отчетов, Отчетов руководства ПАО «Газпром» за 2010 г. и предыдущие периоды. | FG4: При этом показатели консолидированной финансовой отчетности Группы Газпром, подготовленной в соответствии с МСФО (далее – консолидированная финансовая отчетность по МСФО) дополнены данными за 2010 г.,а производственные и иные показатели – сопоставимыми данными из Справочников, Годовых отчетов, Отчетов руководства ПАО «Газпром» за 2010 г. и предыдущие периоды. | FH4: При этом показатели консолидированной финансовой отчетности Группы Газпром, подготовленной в соответствии с МСФО (далее – консолидированная финансовая отчетность по МСФО) дополнены данными за 2010 г.,а производственные и иные показатели – сопоставимыми данными из Справочников, Годовых отчетов, Отчетов руководства ПАО «Газпром» за 2010 г. и предыдущие периоды. | FI4: При этом показатели консолидированной финансовой отчетности Группы Газпром, подготовленной в соответствии с МСФО (далее – консолидированная финансовая отчетность по МСФО) дополнены данными за 2010 г.,а производственные и иные показатели – сопоставимыми данными из Справочников, Годовых отчетов, Отчетов руководства ПАО «Газпром» за 2010 г. и предыдущие периоды. | FJ4: При этом показатели консолидированной финансовой отчетности Группы Газпром, подготовленной в соответствии с МСФО (далее – консолидированная финансовая отчетность по МСФО) дополнены данными за 2010 г.,а производственные и иные показатели – сопоставимыми данными из Справочников, Годовых отчетов, Отчетов руководства ПАО «Газпром» за 2010 г. и предыдущие периоды. | FK4: При этом показатели консолидированной финансовой отчетности Группы Газпром, подготовленной в соответствии с МСФО (далее – консолидированная финансовая отчетность по МСФО) дополнены данными за 2010 г.,а производственные и иные показатели – сопоставимыми данными из Справочников, Годовых отчетов, Отчетов руководства ПАО «Газпром» за 2010 г. и предыдущие периоды. | FL4: При этом показатели консолидированной финансовой отчетности Группы Газпром, подготовленной в соответствии с МСФО (далее – консолидированная финансовая отчетность по МСФО) дополнены данными за 2010 г.,а производственные и иные показатели – сопоставимыми данными из Справочников, Годовых отчетов, Отчетов руководства ПАО «Газпром» за 2010 г. и предыдущие периоды. | FM4: При этом показатели консолидированной финансовой отчетности Группы Газпром, подготовленной в соответствии с МСФО (далее – консолидированная финансовая отчетность по МСФО) дополнены данными за 2010 г.,а производственные и иные показатели – сопоставимыми данными из Справочников, Годовых отчетов, Отчетов руководства ПАО «Газпром» за 2010 г. и предыдущие периоды. | FN4: При этом показатели консолидированной финансовой отчетности Группы Газпром, подготовленной в соответствии с МСФО (далее – консолидированная финансовая отчетность по МСФО) дополнены данными за 2010 г.,а производственные и иные показатели – сопоставимыми данными из Справочников, Годовых отчетов, Отчетов руководства ПАО «Газпром» за 2010 г. и предыдущие периоды. | FO4: При этом показатели консолидированной финансовой отчетности Группы Газпром, подготовленной в соответствии с МСФО (далее – консолидированная финансовая отчетность по МСФО) дополнены данными за 2010 г.,а производственные и иные показатели – сопоставимыми данными из Справочников, Годовых отчетов, Отчетов руководства ПАО «Газпром» за 2010 г. и предыдущие периоды. | FP4: При этом показатели консолидированной финансовой отчетности Группы Газпром, подготовленной в соответствии с МСФО (далее – консолидированная финансовая отчетность по МСФО) дополнены данными за 2010 г.,а производственные и иные показатели – сопоставимыми данными из Справочников, Годовых отчетов, Отчетов руководства ПАО «Газпром» за 2010 г. и предыдущие периоды. | FQ4: При этом показатели консолидированной финансовой отчетности Группы Газпром, подготовленной в соответствии с МСФО (далее – консолидированная финансовая отчетность по МСФО) дополнены данными за 2010 г.,а производственные и иные показатели – сопоставимыми данными из Справочников, Годовых отчетов, Отчетов руководства ПАО «Газпром» за 2010 г. и предыдущие периоды. | FR4: При этом показатели консолидированной финансовой отчетности Группы Газпром, подготовленной в соответствии с МСФО (далее – консолидированная финансовая отчетность по МСФО) дополнены данными за 2010 г.,а производственные и иные показатели – сопоставимыми данными из Справочников, Годовых отчетов, Отчетов руководства ПАО «Газпром» за 2010 г. и предыдущие периоды. | FS4: При этом показатели консолидированной финансовой отчетности Группы Газпром, подготовленной в соответствии с МСФО (далее – консолидированная финансовая отчетность по МСФО) дополнены данными за 2010 г.,а производственные и иные показатели – сопоставимыми данными из Справочников, Годовых отчетов, Отчетов руководства ПАО «Газпром» за 2010 г. и предыдущие периоды. | FT4: При этом показатели консолидированной финансовой отчетности Группы Газпром, подготовленной в соответствии с МСФО (далее – консолидированная финансовая отчетность по МСФО) дополнены данными за 2010 г.,а производственные и иные показатели – сопоставимыми данными из Справочников, Годовых отчетов, Отчетов руководства ПАО «Газпром» за 2010 г. и предыдущие периоды. | FU4: При этом показатели консолидированной финансовой отчетности Группы Газпром, подготовленной в соответствии с МСФО (далее – консолидированная финансовая отчетность по МСФО) дополнены данными за 2010 г.,а производственные и иные показатели – сопоставимыми данными из Справочников, Годовых отчетов, Отчетов руководства ПАО «Газпром» за 2010 г. и предыдущие периоды. | FV4: При этом показатели консолидированной финансовой отчетности Группы Газпром, подготовленной в соответствии с МСФО (далее – консолидированная финансовая отчетность по МСФО) дополнены данными за 2010 г.,а производственные и иные показатели – сопоставимыми данными из Справочников, Годовых отчетов, Отчетов руководства ПАО «Газпром» за 2010 г. и предыдущие периоды. | FW4: При этом показатели консолидированной финансовой отчетности Группы Газпром, подготовленной в соответствии с МСФО (далее – консолидированная финансовая отчетность по МСФО) дополнены данными за 2010 г.,а производственные и иные показатели – сопоставимыми данными из Справочников, Годовых отчетов, Отчетов руководства ПАО «Газпром» за 2010 г. и предыдущие периоды. | FX4: При этом показатели консолидированной финансовой отчетности Группы Газпром, подготовленной в соответствии с МСФО (далее – консолидированная финансовая отчетность по МСФО) дополнены данными за 2010 г.,а производственные и иные показатели – сопоставимыми данными из Справочников, Годовых отчетов, Отчетов руководства ПАО «Газпром» за 2010 г. и предыдущие периоды. | FY4: При этом показатели консолидированной финансовой отчетности Группы Газпром, подготовленной в соответствии с МСФО (далее – консолидированная финансовая отчетность по МСФО) дополнены данными за 2010 г.,а производственные и иные показатели – сопоставимыми данными из Справочников, Годовых отчетов, Отчетов руководства ПАО «Газпром» за 2010 г. и предыдущие периоды. | FZ4: При этом показатели консолидированной финансовой отчетности Группы Газпром, подготовленной в соответствии с МСФО (далее – консолидированная финансовая отчетность по МСФО) дополнены данными за 2010 г.,а производственные и иные показатели – сопоставимыми данными из Справочников, Годовых отчетов, Отчетов руководства ПАО «Газпром» за 2010 г. и предыдущие периоды. | GA4: При этом показатели консолидированной финансовой отчетности Группы Газпром, подготовленной в соответствии с МСФО (далее – консолидированная финансовая отчетность по МСФО) дополнены данными за 2010 г.,а производственные и иные показатели – сопоставимыми данными из Справочников, Годовых отчетов, Отчетов руководства ПАО «Газпром» за 2010 г. и предыдущие периоды. | GB4: При этом показатели консолидированной финансовой отчетности Группы Газпром, подготовленной в соответствии с МСФО (далее – консолидированная финансовая отчетность по МСФО) дополнены данными за 2010 г.,а производственные и иные показатели – сопоставимыми данными из Справочников, Годовых отчетов, Отчетов руководства ПАО «Газпром» за 2010 г. и предыдущие периоды. | GC4: При этом показатели консолидированной финансовой отчетности Группы Газпром, подготовленной в соответствии с МСФО (далее – консолидированная финансовая отчетность по МСФО) дополнены данными за 2010 г.,а производственные и иные показатели – сопоставимыми данными из Справочников, Годовых отчетов, Отчетов руководства ПАО «Газпром» за 2010 г. и предыдущие периоды. | GD4: При этом показатели консолидированной финансовой отчетности Группы Газпром, подготовленной в соответствии с МСФО (далее – консолидированная финансовая отчетность по МСФО) дополнены данными за 2010 г.,а производственные и иные показатели – сопоставимыми данными из Справочников, Годовых отчетов, Отчетов руководства ПАО «Газпром» за 2010 г. и предыдущие периоды. | GE4: При этом показатели консолидированной финансовой отчетности Группы Газпром, подготовленной в соответствии с МСФО (далее – консолидированная финансовая отчетность по МСФО) дополнены данными за 2010 г.,а производственные и иные показатели – сопоставимыми данными из Справочников, Годовых отчетов, Отчетов руководства ПАО «Газпром» за 2010 г. и предыдущие периоды. | GF4: При этом показатели консолидированной финансовой отчетности Группы Газпром, подготовленной в соответствии с МСФО (далее – консолидированная финансовая отчетность по МСФО) дополнены данными за 2010 г.,а производственные и иные показатели – сопоставимыми данными из Справочников, Годовых отчетов, Отчетов руководства ПАО «Газпром» за 2010 г. и предыдущие периоды. | GG4: При этом показатели консолидированной финансовой отчетности Группы Газпром, подготовленной в соответствии с МСФО (далее – консолидированная финансовая отчетность по МСФО) дополнены данными за 2010 г.,а производственные и иные показатели – сопоставимыми данными из Справочников, Годовых отчетов, Отчетов руководства ПАО «Газпром» за 2010 г. и предыдущие периоды. | GH4: При этом показатели консолидированной финансовой отчетности Группы Газпром, подготовленной в соответствии с МСФО (далее – консолидированная финансовая отчетность по МСФО) дополнены данными за 2010 г.,а производственные и иные показатели – сопоставимыми данными из Справочников, Годовых отчетов, Отчетов руководства ПАО «Газпром» за 2010 г. и предыдущие периоды. | GI4: При этом показатели консолидированной финансовой отчетности Группы Газпром, подготовленной в соответствии с МСФО (далее – консолидированная финансовая отчетность по МСФО) дополнены данными за 2010 г.,а производственные и иные показатели – сопоставимыми данными из Справочников, Годовых отчетов, Отчетов руководства ПАО «Газпром» за 2010 г. и предыдущие периоды. | GJ4: При этом показатели консолидированной финансовой отчетности Группы Газпром, подготовленной в соответствии с МСФО (далее – консолидированная финансовая отчетность по МСФО) дополнены данными за 2010 г.,а производственные и иные показатели – сопоставимыми данными из Справочников, Годовых отчетов, Отчетов руководства ПАО «Газпром» за 2010 г. и предыдущие периоды. | GK4: При этом показатели консолидированной финансовой отчетности Группы Газпром, подготовленной в соответствии с МСФО (далее – консолидированная финансовая отчетность по МСФО) дополнены данными за 2010 г.,а производственные и иные показатели – сопоставимыми данными из Справочников, Годовых отчетов, Отчетов руководства ПАО «Газпром» за 2010 г. и предыдущие периоды. | GL4: При этом показатели консолидированной финансовой отчетности Группы Газпром, подготовленной в соответствии с МСФО (далее – консолидированная финансовая отчетность по МСФО) дополнены данными за 2010 г.,а производственные и иные показатели – сопоставимыми данными из Справочников, Годовых отчетов, Отчетов руководства ПАО «Газпром» за 2010 г. и предыдущие периоды. | GM4: При этом показатели консолидированной финансовой отчетности Группы Газпром, подготовленной в соответствии с МСФО (далее – консолидированная финансовая отчетность по МСФО) дополнены данными за 2010 г.,а производственные и иные показатели – сопоставимыми данными из Справочников, Годовых отчетов, Отчетов руководства ПАО «Газпром» за 2010 г. и предыдущие периоды. | GN4: При этом показатели консолидированной финансовой отчетности Группы Газпром, подготовленной в соответствии с МСФО (далее – консолидированная финансовая отчетность по МСФО) дополнены данными за 2010 г.,а производственные и иные показатели – сопоставимыми данными из Справочников, Годовых отчетов, Отчетов руководства ПАО «Газпром» за 2010 г. и предыдущие периоды. | GO4: При этом показатели консолидированной финансовой отчетности Группы Газпром, подготовленной в соответствии с МСФО (далее – консолидированная финансовая отчетность по МСФО) дополнены данными за 2010 г.,а производственные и иные показатели – сопоставимыми данными из Справочников, Годовых отчетов, Отчетов руководства ПАО «Газпром» за 2010 г. и предыдущие периоды. | GP4: При этом показатели консолидированной финансовой отчетности Группы Газпром, подготовленной в соответствии с МСФО (далее – консолидированная финансовая отчетность по МСФО) дополнены данными за 2010 г.,а производственные и иные показатели – сопоставимыми данными из Справочников, Годовых отчетов, Отчетов руководства ПАО «Газпром» за 2010 г. и предыдущие периоды. | GQ4: При этом показатели консолидированной финансовой отчетности Группы Газпром, подготовленной в соответствии с МСФО (далее – консолидированная финансовая отчетность по МСФО) дополнены данными за 2010 г.,а производственные и иные показатели – сопоставимыми данными из Справочников, Годовых отчетов, Отчетов руководства ПАО «Газпром» за 2010 г. и предыдущие периоды. | GR4: При этом показатели консолидированной финансовой отчетности Группы Газпром, подготовленной в соответствии с МСФО (далее – консолидированная финансовая отчетность по МСФО) дополнены данными за 2010 г.,а производственные и иные показатели – сопоставимыми данными из Справочников, Годовых отчетов, Отчетов руководства ПАО «Газпром» за 2010 г. и предыдущие периоды. | GS4: При этом показатели консолидированной финансовой отчетности Группы Газпром, подготовленной в соответствии с МСФО (далее – консолидированная финансовая отчетность по МСФО) дополнены данными за 2010 г.,а производственные и иные показатели – сопоставимыми данными из Справочников, Годовых отчетов, Отчетов руководства ПАО «Газпром» за 2010 г. и предыдущие периоды. | GT4: При этом показатели консолидированной финансовой отчетности Группы Газпром, подготовленной в соответствии с МСФО (далее – консолидированная финансовая отчетность по МСФО) дополнены данными за 2010 г.,а производственные и иные показатели – сопоставимыми данными из Справочников, Годовых отчетов, Отчетов руководства ПАО «Газпром» за 2010 г. и предыдущие периоды. | GU4: При этом показатели консолидированной финансовой отчетности Группы Газпром, подготовленной в соответствии с МСФО (далее – консолидированная финансовая отчетность по МСФО) дополнены данными за 2010 г.,а производственные и иные показатели – сопоставимыми данными из Справочников, Годовых отчетов, Отчетов руководства ПАО «Газпром» за 2010 г. и предыдущие периоды. | GV4: При этом показатели консолидированной финансовой отчетности Группы Газпром, подготовленной в соответствии с МСФО (далее – консолидированная финансовая отчетность по МСФО) дополнены данными за 2010 г.,а производственные и иные показатели – сопоставимыми данными из Справочников, Годовых отчетов, Отчетов руководства ПАО «Газпром» за 2010 г. и предыдущие периоды. | GW4: При этом показатели консолидированной финансовой отчетности Группы Газпром, подготовленной в соответствии с МСФО (далее – консолидированная финансовая отчетность по МСФО) дополнены данными за 2010 г.,а производственные и иные показатели – сопоставимыми данными из Справочников, Годовых отчетов, Отчетов руководства ПАО «Газпром» за 2010 г. и предыдущие периоды. | GX4: При этом показатели консолидированной финансовой отчетности Группы Газпром, подготовленной в соответствии с МСФО (далее – консолидированная финансовая отчетность по МСФО) дополнены данными за 2010 г.,а производственные и иные показатели – сопоставимыми данными из Справочников, Годовых отчетов, Отчетов руководства ПАО «Газпром» за 2010 г. и предыдущие периоды. | GY4: При этом показатели консолидированной финансовой отчетности Группы Газпром, подготовленной в соответствии с МСФО (далее – консолидированная финансовая отчетность по МСФО) дополнены данными за 2010 г.,а производственные и иные показатели – сопоставимыми данными из Справочников, Годовых отчетов, Отчетов руководства ПАО «Газпром» за 2010 г. и предыдущие периоды. | GZ4: При этом показатели консолидированной финансовой отчетности Группы Газпром, подготовленной в соответствии с МСФО (далее – консолидированная финансовая отчетность по МСФО) дополнены данными за 2010 г.,а производственные и иные показатели – сопоставимыми данными из Справочников, Годовых отчетов, Отчетов руководства ПАО «Газпром» за 2010 г. и предыдущие периоды. | HA4: При этом показатели консолидированной финансовой отчетности Группы Газпром, подготовленной в соответствии с МСФО (далее – консолидированная финансовая отчетность по МСФО) дополнены данными за 2010 г.,а производственные и иные показатели – сопоставимыми данными из Справочников, Годовых отчетов, Отчетов руководства ПАО «Газпром» за 2010 г. и предыдущие периоды. | HB4: При этом показатели консолидированной финансовой отчетности Группы Газпром, подготовленной в соответствии с МСФО (далее – консолидированная финансовая отчетность по МСФО) дополнены данными за 2010 г.,а производственные и иные показатели – сопоставимыми данными из Справочников, Годовых отчетов, Отчетов руководства ПАО «Газпром» за 2010 г. и предыдущие периоды. | HC4: При этом показатели консолидированной финансовой отчетности Группы Газпром, подготовленной в соответствии с МСФО (далее – консолидированная финансовая отчетность по МСФО) дополнены данными за 2010 г.,а производственные и иные показатели – сопоставимыми данными из Справочников, Годовых отчетов, Отчетов руководства ПАО «Газпром» за 2010 г. и предыдущие периоды. | HD4: При этом показатели консолидированной финансовой отчетности Группы Газпром, подготовленной в соответствии с МСФО (далее – консолидированная финансовая отчетность по МСФО) дополнены данными за 2010 г.,а производственные и иные показатели – сопоставимыми данными из Справочников, Годовых отчетов, Отчетов руководства ПАО «Газпром» за 2010 г. и предыдущие периоды. | HE4: При этом показатели консолидированной финансовой отчетности Группы Газпром, подготовленной в соответствии с МСФО (далее – консолидированная финансовая отчетность по МСФО) дополнены данными за 2010 г.,а производственные и иные показатели – сопоставимыми данными из Справочников, Годовых отчетов, Отчетов руководства ПАО «Газпром» за 2010 г. и предыдущие периоды. | HF4: При этом показатели консолидированной финансовой отчетности Группы Газпром, подготовленной в соответствии с МСФО (далее – консолидированная финансовая отчетность по МСФО) дополнены данными за 2010 г.,а производственные и иные показатели – сопоставимыми данными из Справочников, Годовых отчетов, Отчетов руководства ПАО «Газпром» за 2010 г. и предыдущие периоды. | HG4: При этом показатели консолидированной финансовой отчетности Группы Газпром, подготовленной в соответствии с МСФО (далее – консолидированная финансовая отчетность по МСФО) дополнены данными за 2010 г.,а производственные и иные показатели – сопоставимыми данными из Справочников, Годовых отчетов, Отчетов руководства ПАО «Газпром» за 2010 г. и предыдущие периоды. | HH4: При этом показатели консолидированной финансовой отчетности Группы Газпром, подготовленной в соответствии с МСФО (далее – консолидированная финансовая отчетность по МСФО) дополнены данными за 2010 г.,а производственные и иные показатели – сопоставимыми данными из Справочников, Годовых отчетов, Отчетов руководства ПАО «Газпром» за 2010 г. и предыдущие периоды. | HI4: При этом показатели консолидированной финансовой отчетности Группы Газпром, подготовленной в соответствии с МСФО (далее – консолидированная финансовая отчетность по МСФО) дополнены данными за 2010 г.,а производственные и иные показатели – сопоставимыми данными из Справочников, Годовых отчетов, Отчетов руководства ПАО «Газпром» за 2010 г. и предыдущие периоды. | HJ4: При этом показатели консолидированной финансовой отчетности Группы Газпром, подготовленной в соответствии с МСФО (далее – консолидированная финансовая отчетность по МСФО) дополнены данными за 2010 г.,а производственные и иные показатели – сопоставимыми данными из Справочников, Годовых отчетов, Отчетов руководства ПАО «Газпром» за 2010 г. и предыдущие периоды. | HK4: При этом показатели консолидированной финансовой отчетности Группы Газпром, подготовленной в соответствии с МСФО (далее – консолидированная финансовая отчетность по МСФО) дополнены данными за 2010 г.,а производственные и иные показатели – сопоставимыми данными из Справочников, Годовых отчетов, Отчетов руководства ПАО «Газпром» за 2010 г. и предыдущие периоды. | HL4: При этом показатели консолидированной финансовой отчетности Группы Газпром, подготовленной в соответствии с МСФО (далее – консолидированная финансовая отчетность по МСФО) дополнены данными за 2010 г.,а производственные и иные показатели – сопоставимыми данными из Справочников, Годовых отчетов, Отчетов руководства ПАО «Газпром» за 2010 г. и предыдущие периоды. | HM4: При этом показатели консолидированной финансовой отчетности Группы Газпром, подготовленной в соответствии с МСФО (далее – консолидированная финансовая отчетность по МСФО) дополнены данными за 2010 г.,а производственные и иные показатели – сопоставимыми данными из Справочников, Годовых отчетов, Отчетов руководства ПАО «Газпром» за 2010 г. и предыдущие периоды. | HN4: При этом показатели консолидированной финансовой отчетности Группы Газпром, подготовленной в соответствии с МСФО (далее – консолидированная финансовая отчетность по МСФО) дополнены данными за 2010 г.,а производственные и иные показатели – сопоставимыми данными из Справочников, Годовых отчетов, Отчетов руководства ПАО «Газпром» за 2010 г. и предыдущие периоды. | HO4: При этом показатели консолидированной финансовой отчетности Группы Газпром, подготовленной в соответствии с МСФО (далее – консолидированная финансовая отчетность по МСФО) дополнены данными за 2010 г.,а производственные и иные показатели – сопоставимыми данными из Справочников, Годовых отчетов, Отчетов руководства ПАО «Газпром» за 2010 г. и предыдущие периоды. | HP4: При этом показатели консолидированной финансовой отчетности Группы Газпром, подготовленной в соответствии с МСФО (далее – консолидированная финансовая отчетность по МСФО) дополнены данными за 2010 г.,а производственные и иные показатели – сопоставимыми данными из Справочников, Годовых отчетов, Отчетов руководства ПАО «Газпром» за 2010 г. и предыдущие периоды. | HQ4: При этом показатели консолидированной финансовой отчетности Группы Газпром, подготовленной в соответствии с МСФО (далее – консолидированная финансовая отчетность по МСФО) дополнены данными за 2010 г.,а производственные и иные показатели – сопоставимыми данными из Справочников, Годовых отчетов, Отчетов руководства ПАО «Газпром» за 2010 г. и предыдущие периоды. | HR4: При этом показатели консолидированной финансовой отчетности Группы Газпром, подготовленной в соответствии с МСФО (далее – консолидированная финансовая отчетность по МСФО) дополнены данными за 2010 г.,а производственные и иные показатели – сопоставимыми данными из Справочников, Годовых отчетов, Отчетов руководства ПАО «Газпром» за 2010 г. и предыдущие периоды. | HS4: При этом показатели консолидированной финансовой отчетности Группы Газпром, подготовленной в соответствии с МСФО (далее – консолидированная финансовая отчетность по МСФО) дополнены данными за 2010 г.,а производственные и иные показатели – сопоставимыми данными из Справочников, Годовых отчетов, Отчетов руководства ПАО «Газпром» за 2010 г. и предыдущие периоды. | HT4: При этом показатели консолидированной финансовой отчетности Группы Газпром, подготовленной в соответствии с МСФО (далее – консолидированная финансовая отчетность по МСФО) дополнены данными за 2010 г.,а производственные и иные показатели – сопоставимыми данными из Справочников, Годовых отчетов, Отчетов руководства ПАО «Газпром» за 2010 г. и предыдущие периоды. | HU4: При этом показатели консолидированной финансовой отчетности Группы Газпром, подготовленной в соответствии с МСФО (далее – консолидированная финансовая отчетность по МСФО) дополнены данными за 2010 г.,а производственные и иные показатели – сопоставимыми данными из Справочников, Годовых отчетов, Отчетов руководства ПАО «Газпром» за 2010 г. и предыдущие периоды. | HV4: При этом показатели консолидированной финансовой отчетности Группы Газпром, подготовленной в соответствии с МСФО (далее – консолидированная финансовая отчетность по МСФО) дополнены данными за 2010 г.,а производственные и иные показатели – сопоставимыми данными из Справочников, Годовых отчетов, Отчетов руководства ПАО «Газпром» за 2010 г. и предыдущие периоды. | HW4: При этом показатели консолидированной финансовой отчетности Группы Газпром, подготовленной в соответствии с МСФО (далее – консолидированная финансовая отчетность по МСФО) дополнены данными за 2010 г.,а производственные и иные показатели – сопоставимыми данными из Справочников, Годовых отчетов, Отчетов руководства ПАО «Газпром» за 2010 г. и предыдущие периоды. | HX4: При этом показатели консолидированной финансовой отчетности Группы Газпром, подготовленной в соответствии с МСФО (далее – консолидированная финансовая отчетность по МСФО) дополнены данными за 2010 г.,а производственные и иные показатели – сопоставимыми данными из Справочников, Годовых отчетов, Отчетов руководства ПАО «Газпром» за 2010 г. и предыдущие периоды. | HY4: При этом показатели консолидированной финансовой отчетности Группы Газпром, подготовленной в соответствии с МСФО (далее – консолидированная финансовая отчетность по МСФО) дополнены данными за 2010 г.,а производственные и иные показатели – сопоставимыми данными из Справочников, Годовых отчетов, Отчетов руководства ПАО «Газпром» за 2010 г. и предыдущие периоды. | HZ4: При этом показатели консолидированной финансовой отчетности Группы Газпром, подготовленной в соответствии с МСФО (далее – консолидированная финансовая отчетность по МСФО) дополнены данными за 2010 г.,а производственные и иные показатели – сопоставимыми данными из Справочников, Годовых отчетов, Отчетов руководства ПАО «Газпром» за 2010 г. и предыдущие периоды. | IA4: При этом показатели консолидированной финансовой отчетности Группы Газпром, подготовленной в соответствии с МСФО (далее – консолидированная финансовая отчетность по МСФО) дополнены данными за 2010 г.,а производственные и иные показатели – сопоставимыми данными из Справочников, Годовых отчетов, Отчетов руководства ПАО «Газпром» за 2010 г. и предыдущие периоды. | IB4: При этом показатели консолидированной финансовой отчетности Группы Газпром, подготовленной в соответствии с МСФО (далее – консолидированная финансовая отчетность по МСФО) дополнены данными за 2010 г.,а производственные и иные показатели – сопоставимыми данными из Справочников, Годовых отчетов, Отчетов руководства ПАО «Газпром» за 2010 г. и предыдущие периоды. | IC4: При этом показатели консолидированной финансовой отчетности Группы Газпром, подготовленной в соответствии с МСФО (далее – консолидированная финансовая отчетность по МСФО) дополнены данными за 2010 г.,а производственные и иные показатели – сопоставимыми данными из Справочников, Годовых отчетов, Отчетов руководства ПАО «Газпром» за 2010 г. и предыдущие периоды. | ID4: При этом показатели консолидированной финансовой отчетности Группы Газпром, подготовленной в соответствии с МСФО (далее – консолидированная финансовая отчетность по МСФО) дополнены данными за 2010 г.,а производственные и иные показатели – сопоставимыми данными из Справочников, Годовых отчетов, Отчетов руководства ПАО «Газпром» за 2010 г. и предыдущие периоды. | IE4: При этом показатели консолидированной финансовой отчетности Группы Газпром, подготовленной в соответствии с МСФО (далее – консолидированная финансовая отчетность по МСФО) дополнены данными за 2010 г.,а производственные и иные показатели – сопоставимыми данными из Справочников, Годовых отчетов, Отчетов руководства ПАО «Газпром» за 2010 г. и предыдущие периоды. | IF4: При этом показатели консолидированной финансовой отчетности Группы Газпром, подготовленной в соответствии с МСФО (далее – консолидированная финансовая отчетность по МСФО) дополнены данными за 2010 г.,а производственные и иные показатели – сопоставимыми данными из Справочников, Годовых отчетов, Отчетов руководства ПАО «Газпром» за 2010 г. и предыдущие периоды. | IG4: При этом показатели консолидированной финансовой отчетности Группы Газпром, подготовленной в соответствии с МСФО (далее – консолидированная финансовая отчетность по МСФО) дополнены данными за 2010 г.,а производственные и иные показатели – сопоставимыми данными из Справочников, Годовых отчетов, Отчетов руководства ПАО «Газпром» за 2010 г. и предыдущие периоды. | IH4: При этом показатели консолидированной финансовой отчетности Группы Газпром, подготовленной в соответствии с МСФО (далее – консолидированная финансовая отчетность по МСФО) дополнены данными за 2010 г.,а производственные и иные показатели – сопоставимыми данными из Справочников, Годовых отчетов, Отчетов руководства ПАО «Газпром» за 2010 г. и предыдущие периоды. | II4: При этом показатели консолидированной финансовой отчетности Группы Газпром, подготовленной в соответствии с МСФО (далее – консолидированная финансовая отчетность по МСФО) дополнены данными за 2010 г.,а производственные и иные показатели – сопоставимыми данными из Справочников, Годовых отчетов, Отчетов руководства ПАО «Газпром» за 2010 г. и предыдущие периоды. | IJ4: При этом показатели консолидированной финансовой отчетности Группы Газпром, подготовленной в соответствии с МСФО (далее – консолидированная финансовая отчетность по МСФО) дополнены данными за 2010 г.,а производственные и иные показатели – сопоставимыми данными из Справочников, Годовых отчетов, Отчетов руководства ПАО «Газпром» за 2010 г. и предыдущие периоды. | IK4: При этом показатели консолидированной финансовой отчетности Группы Газпром, подготовленной в соответствии с МСФО (далее – консолидированная финансовая отчетность по МСФО) дополнены данными за 2010 г.,а производственные и иные показатели – сопоставимыми данными из Справочников, Годовых отчетов, Отчетов руководства ПАО «Газпром» за 2010 г. и предыдущие периоды. | IL4: При этом показатели консолидированной финансовой отчетности Группы Газпром, подготовленной в соответствии с МСФО (далее – консолидированная финансовая отчетность по МСФО) дополнены данными за 2010 г.,а производственные и иные показатели – сопоставимыми данными из Справочников, Годовых отчетов, Отчетов руководства ПАО «Газпром» за 2010 г. и предыдущие периоды. | IM4: При этом показатели консолидированной финансовой отчетности Группы Газпром, подготовленной в соответствии с МСФО (далее – консолидированная финансовая отчетность по МСФО) дополнены данными за 2010 г.,а производственные и иные показатели – сопоставимыми данными из Справочников, Годовых отчетов, Отчетов руководства ПАО «Газпром» за 2010 г. и предыдущие периоды. | IN4: При этом показатели консолидированной финансовой отчетности Группы Газпром, подготовленной в соответствии с МСФО (далее – консолидированная финансовая отчетность по МСФО) дополнены данными за 2010 г.,а производственные и иные показатели – сопоставимыми данными из Справочников, Годовых отчетов, Отчетов руководства ПАО «Газпром» за 2010 г. и предыдущие периоды. | IO4: При этом показатели консолидированной финансовой отчетности Группы Газпром, подготовленной в соответствии с МСФО (далее – консолидированная финансовая отчетность по МСФО) дополнены данными за 2010 г.,а производственные и иные показатели – сопоставимыми данными из Справочников, Годовых отчетов, Отчетов руководства ПАО «Газпром» за 2010 г. и предыдущие периоды. | IP4: При этом показатели консолидированной финансовой отчетности Группы Газпром, подготовленной в соответствии с МСФО (далее – консолидированная финансовая отчетность по МСФО) дополнены данными за 2010 г.,а производственные и иные показатели – сопоставимыми данными из Справочников, Годовых отчетов, Отчетов руководства ПАО «Газпром» за 2010 г. и предыдущие периоды. | IQ4: При этом показатели консолидированной финансовой отчетности Группы Газпром, подготовленной в соответствии с МСФО (далее – консолидированная финансовая отчетность по МСФО) дополнены данными за 2010 г.,а производственные и иные показатели – сопоставимыми данными из Справочников, Годовых отчетов, Отчетов руководства ПАО «Газпром» за 2010 г. и предыдущие периоды. | IR4: При этом показатели консолидированной финансовой отчетности Группы Газпром, подготовленной в соответствии с МСФО (далее – консолидированная финансовая отчетность по МСФО) дополнены данными за 2010 г.,а производственные и иные показатели – сопоставимыми данными из Справочников, Годовых отчетов, Отчетов руководства ПАО «Газпром» за 2010 г. и предыдущие периоды. | IS4: При этом показатели консолидированной финансовой отчетности Группы Газпром, подготовленной в соответствии с МСФО (далее – консолидированная финансовая отчетность по МСФО) дополнены данными за 2010 г.,а производственные и иные показатели – сопоставимыми данными из Справочников, Годовых отчетов, Отчетов руководства ПАО «Газпром» за 2010 г. и предыдущие периоды. | IT4: При этом показатели консолидированной финансовой отчетности Группы Газпром, подготовленной в соответствии с МСФО (далее – консолидированная финансовая отчетность по МСФО) дополнены данными за 2010 г.,а производственные и иные показатели – сопоставимыми данными из Справочников, Годовых отчетов, Отчетов руководства ПАО «Газпром» за 2010 г. и предыдущие периоды. | IU4: При этом показатели консолидированной финансовой отчетности Группы Газпром, подготовленной в соответствии с МСФО (далее – консолидированная финансовая отчетность по МСФО) дополнены данными за 2010 г.,а производственные и иные показатели – сопоставимыми данными из Справочников, Годовых отчетов, Отчетов руководства ПАО «Газпром» за 2010 г. и предыдущие периоды. | IV4: При этом показатели консолидированной финансовой отчетности Группы Газпром, подготовленной в соответствии с МСФО (далее – консолидированная финансовая отчетность по МСФО) дополнены данными за 2010 г.,а производственные и иные показатели – сопоставимыми данными из Справочников, Годовых отчетов, Отчетов руководства ПАО «Газпром» за 2010 г. и предыдущие периоды.
A5: В настоящем Справочнике термины ПАО «Газпром», Компания относятся к головной компании Группы Газпром — Публичному акционерному обществу «Газпром» (до 17 июля 2015 г. — Открытое акционерное общество «Газпром», ОАО «Газпром»).
A6: Под Группой Газпром, Группой или Газпромом следует понимать совокупность компаний, состоящую из ПАО «Газпром» и его дочерних организаций. Для целей настоящего Справочника использованы перечни дочерних организаций, организаций, инвестиции в которые классифицированы как совместные операции, ассоциированных организаций и совместных предприятий Группы Газпром, составленные на основе принципов формирования консолидированной финансовой отчетности ПАО «Газпром», подготовленной в соответствии с Международными стандартами финансовой отчетности (МСФО). Аналогично под терминами Группа Газпром нефть и Газпром нефть подразумеваются ПАО «Газпром нефть» и его дочерние организации, под термином Газпром энергохолдинг — ООО «Газпром энергохолдинг» и его дочерние общества, под термином Газпром нефтехим Салават — ООО «Газпром нефтехим Салават» и его дочерние общества.
A7: Приведенные в издании показатели деятельности Газпрома в целом сформированы на основании принципов составления консолидированной финансовой отчетности Группы Газпром, подготовленной в соответствии с МСФО (далее — консолидированная финансовая отчетность по МСФО), и (или) в отношении совокупности организаций Группы Газпром, принятой для целей составления консолидированной финансовой отчетности Группы Газпром по МСФО. В соответствии с МСФО 11 «Совместная деятельность» объемы запасов, добычи и переработки углеводородного сырья отражаются с учетом доли Группы Газпром в показателях организаций, инвестиции в которые классифицированы как совместные операции.
A8: Ряд показателей деятельности ПАО «Газпром», его дочерних организаций приводится на основе управленческой отчетности. В связи с различиями в методологии подготовки консолидированной финансовой отчетности и ведения управленческой отчетности показатели, рассчитанные по данным методикам, могут быть несопоставимы.
A9: Группа осуществляет управленческий учет в метрических единицах измерения. Приведенные данные в баррелях нефтяного эквивалента (барр. н. э.) получены расчетным путем по указанным коэффициентам пересчета.
A10: Финансовые показатели Группы приводятся в соответствии с консолидированной финансовой отчетностью Группы Газпром по МСФО. Валютой отчетности Группы Газпром является российский рубль. Приведенные данные в долларах США и евро получены расчетным путем по указанным обменным курсам и не являются данными финансовой отчетности Группы.
A12: Вернуться к Содержанию

Sheet Газпром в мире
A1: Газпром в энергетике России и мира
B2: За год и по состоянию на конец года
B3: 2005 | C3: 2006 | D3: 2007 | E3: 2008 | F3: 2009 | G3: 2010 | H3: 2011 | I3: 2012 | J3: 2013 | K3: 2014 | L3: 2015 | M3: 2016 | N3: 2017
A4: Вклад в формирование показателей мировой газовой промышленности
A5: Запасы газа*,*** | B5: 0.166 | C5: 0.168 | D5: 0.165 | E5: 0.18 | F5: 0.18 | G5: 0.176 | H5: 0.183 | I5: 0.183 | J5: 0.166 | K5: 0.168 | L5: 0.169 | M5: 0.171 | N5: 0.167
A6: Добыча газа*,*** | B6: =0.185 -> 0.185 | C6: =0.181 -> 0.181 | D6: =0.174 -> 0.174 | E6: 0.167 | F6: 0.145 | G6: 0.148 | H6: 0.145 | I6: 0.136 | J6: 0.135 | K6: 0.121 | L6: 0.112 | M6: 0.112 | N6: 0.121
A7: Вклад в формирование показателей топливно-энергетического комплекса России
A8: Контролируемые российские запасы газа*** | B8: 0.609 | C8: 0.624 | D8: 0.621 | E8: 0.689 | F8: 0.698 | G8: 0.687 | H8: 0.718 | I8: 0.72 | J8: 0.723 | K8: 0.723 | L8: 0.716 | M8: 0.717 | N8: 0.717
A9: Добыча газа**,*** | B9: 0.866 | C9: 0.847 | D9: 0.839 | E9: 0.827 | F9: 0.792 | G9: 0.781 | H9: 0.765 | I9: 0.746 | J9: 0.731 | K9: 0.693 | L9: 0.66 | M9: 0.656 | N9: 0.683
A10: Добыча нефти и газового конденсата**,*** | B10: 0.045 | C10: 0.094 | D10: 0.092 | E10: 0.088 | F10: 0.084 | G10: 0.086 | H10: 0.087 | I10: 0.106 | J10: 0.109 | K10: 0.11 | L10: 0.111 | M10: 0.115 | N10: 0.118
A11: Первичная переработка нефти и стабильного газового конденсата**,*** | B11: 0.049 | C11: 0.14 | D11: 0.141 | E11: 0.145 | F11: 0.155 | G11: 0.165 | H11: 0.172 | I11: 0.188 | J11: 0.194 | K11: 0.189 | L11: 0.185 | M11: 0.184 | N11: 0.177
A12: Выработка электроэнергии**,*** | B12: – | C12: – | D12: 0.031 | E12: 0.105 | F12: 0.139 | G12: 0.169 | H12: 0.169 | I12: 0.162 | J12: 0.153 | K12: 0.146 | L12: 0.143 | M12: 0.146 | N12: 0.148
A13: Протяженность магистральных газопроводов и отводов на территории России****, тыс. км | B13: 155 | C13: 156.9 | D13: 158.2 | E13: 159.5 | F13: 160.4 | G13: 161.7 | H13: 164.7 | I13: 168.3 | J13: 168.9 | K13: 170.7 | L13: 171.2 | M13: 171.8 | N13: 172.1
A14: * Рассчитано на основе данных Международного центра по природному газу CEDIGAZ и ПАО «Газпром». Данные международной статистики по добыче приведены к российским стандартным условиям с применением коэффициента 1,07.
A15: ** Рассчитано на основе данных Росстата, Минэнерго России, Системного оператора Единой энергетической системы России и ПАО «Газпром».
A16: *** Начиная с 1 января 2012 г. рассчитано с учетом доли Группы Газпром в запасах и добыче компаний, инвестиции в которые классифицированы как совместные операции.
A17: **** Начиная с данных по состоянию на 31 декабря 2013 г., протяженность приведена с учетом технологических перемычек.
A19: Вернуться к Содержанию

Sheet Фин. показатели
A1: Финансовые показатели
A2: Основные финансовые показатели и коэффициенты Группы Газпром
B3: За год и по состоянию на конец года
B4: 2010 | C4: 2011 | D4: 2012 | E4: 2013 | F4: 2014 | G4: 2015 | H4: 2016 | I4: 2017
A5: Показатели отчета о прибылях и убытках
A6: Выручка от продаж, млн руб. | B6: 3597054 | C6: 4637090 | D6: 4766495 | E6: 5249965 | F6: 5589811 | G6: 6073318 | H6: 6111051 | I6: 6546143
A7: Операционные расходы, млн руб. | B7: 2440777 | C7: 2942181 | D7: 3421847 | E7: 3600908 | F7: 3943669 | G7: 4635502 | H7: 5244983 | I7: 5714090
A8: Прибыль от продаж, млн руб. | B8: 1113822 | C8: 1656843 | D8: 1350677 | E8: 1587209 | F8: 1310424 | G8: 1228301 | H8: 725580 | I8: 870623
A9: Приведенный показатель EBITDA, млн руб. | B9: 1363778 | C9: 1930533 | D9: 1645921 | E9: 2009475 | F9: 1962558 | G9: 1874726 | H9: 1322199 | I9: 1466910
A10: Прибыль за год, млн руб. | B10: 997993 | C10: 1342442 | D10: 1252415 | E10: 1165705 | F10: 157192 | G10: 805199 | H10: 997104 | I10: 766879
A11: Прибыль за год, относящаяся к акционерам ПАО «Газпром», млн руб. | B11: 968557 | C11: 1307018 | D11: 1224474 | E11: 1139261 | F11: 159004 | G11: 787056 | H11: 951637 | I11: 714302
A12: Базовая и разводненная прибыль в расчете на одну акцию, относящаяся к акционерам ПАО «Газпром», руб. | B12: 42.2 | C12: 56.95 | D12: 53.35 | E12: 49.64 | F12: 6.93 | G12: 34.29 | H12: 42.19 | I12: 32.32
A13: Показатели бухгалтерского баланса
A14: Активы, млн руб. | B14: 9235993 | C14: 10900696 | D14: 11956836 | E14: 13436236 | F14: 15177470 | G14: 17052040 | H14: 16918938 | I14: 18238770
A15: Оборотные активы, млн руб. | B15: 1865895 | C15: 2240293 | D15: 2420803 | E15: 2862670 | F15: 3461155 | G15: 3993722 | H15: 3234346 | I15: 3469266
A16: Товарно-материальные запасы, млн руб. | B16: 325739 | C16: 407530 | D16: 462746 | E16: 569724 | F16: 671916 | G16: 804364 | H16: 711199 | I16: 772314
A17: Краткосрочные обязательства, млн руб. | B17: 1011261 | C17: 1309255 | D17: 1492066 | E17: 1391465 | F17: 1855947 | G17: 2124701 | H17: 1921808 | I17: 2589516
A18: Общий долг, млн руб. | B18: 1315447 | C18: 1536819 | D18: 1500592 | E18: 1801928 | F18: 2688824 | G18: 3442215 | H18: 2829623 | I18: 3266518
A19: Чистый долг, млн руб. | B19: 870993 | C19: 1028176 | D19: 1 071 214 | E19: 1112798 | F19: 1650633 | G19: 2083120 | H19: 1932895 | I19: 2397511
A20: Акционерный (собственный) капитал, не включая неконтролирующую долю участия, млн руб. | B20: 6249751 | C20: 7463571 | D20: 8170733 | E20: 9319590 | F20: 9816558 | G20: 10589586 | H20: 11094531 | I20: 11629086
A21: Акционерный (собственный) капитал, включая неконтролирующую долю участия, млн руб. | B21: 6536361 | C21: 7760991 | D21: 8479945 | E21: 9634354 | F21: 10120021 | G21: 10914622 | H21: 11441839 | I21: 12015481
A22: Капитальные вложения*, млн руб. | B22: 920133 | C22: 1351590 | D22: 1233210 | E22: 1213850 | F22: 1221328 | G22: 1349635 | H22: 1357336 | I22: 1504600
A23: Показатели отчета о движении денежных средств
A24: Чистые денежные средства от операционной деятельности, млн руб. | B24: 1460116 | C24: 1637450 | D24: 1472779 | E24: 1741804 | F24: 1915769 | G24: 2030927 | H24: 1571323 | I24: 1187022
A25: Капитальные вложения, млн руб. | B25: 1042642 | C25: 1553118 | D25: 1349114 | E25: 1397195 | F25: 1262140 | G25: 1641024 | H25: 1369052 | I25: 1405780
A26: Коэффициент самофинансирования | B26: 1.4 | C26: 1.05 | D26: 1.09 | E26: 1.25 | F26: 1.52 | G26: 1.24 | H26: 1.15 | I26: 0.84
A27: Чистые денежные средства, использованные в инвестиционной деятельности, млн руб. | B27: 1050307 | C27: 1605245 | D27: 1287216 | E27: 1466512 | F27: 1441305 | G27: 1664156 | H27: 1445965 | I27: 1368131
A28: Чистые денежные средства, использованные в (полученные от) финансовой деятельности, млн руб. | B28: 212384 | C28: -31814 | D28: 253870 | E28: 33262 | F28: 262587 | G28: 138305 | H28: 460479 | I28: -149944
A29: Денежные средства и их эквиваленты на конец отчетного года, млн руб. | B29: 440786 | C29: 501344 | D29: 425720 | E29: 689130 | F29: 1038191 | G29: 1359095 | H29: 896728 | I29: 869007
A30: Коэффициенты рентабельности**
A31: Рентабельность прибыли от продаж (операционная рентабельность) | B31: 0.31 | C31: 0.36 | D31: 0.28 | E31: 0.3 | F31: 0.23 | G31: 0.2 | H31: 0.12 | I31: 0.13
A32: Рентабельность приведенного показателя EBITDA | B32: 0.38 | C32: 0.42 | D32: 0.35 | E32: 0.38 | F32: 0.35 | G32: 0.31 | H32: 0.22 | I32: 0.22
A33: Рентабельность прибыли за год | B33: 0.28 | C33: 0.29 | D33: 0.26 | E33: 0.22 | F33: 0.03 | G33: 0.13 | H33: 0.16 | I33: 0.12
A34: Рентабельность активов (ROA) | B34: 0.1133791712 | C34: 0.13 | D34: 0.11 | E34: 0.09 | F34: 0.01 | G34: 0.05 | H34: 0.06 | I34: 0.04
A35: Рентабельность акционерного (собственного) капитала (ROE) | B35: 0.1637976438 | C35: 0.19 | D35: 0.15 | E35: 0.13 | F35: 0.02 | G35: 0.08 | H35: 0.09 | I35: 0.07
A36: Коэффициенты общего и чистого долга**
A37: Отношение общего долга к сумме акционерного капитала и неконтролирующей доле участия | B37: 0.2 | C37: 0.2 | D37: 0.18 | E37: 0.19 | F37: 0.27 | G37: 0.32 | H37: 0.25 | I37: 0.27
A38: Отношение общего долга к сумме общего долга, акционерного капитала и неконтролирующей доле участия | B38: 0.17 | C38: 0.17 | D38: 0.15 | E38: 0.16 | F38: 0.21 | G38: 0.24 | H38: 0.2 | I38: 0.21
A39: Отношение общего долга к общим активам | B39: 0.14 | C39: 0.14 | D39: 0.13 | E39: 0.13 | F39: 0.18 | G39: 0.2 | H39: 0.17 | I39: 0.18
A40: Отношение общего долга к приведенному показателю EBITDA | B40: 0.96 | C40: 0.8 | D40: 0.91 | E40: 0.9 | F40: 1.37 | G40: 1.84 | H40: 2.14 | I40: 2.23
A41: Отношение чистого долга к приведенному показателю EBITDA | B41: 0.64 | C41: 0.54 | D41: 0.65 | E41: 0.55 | F41: 0.84 | G41: 1.11 | H41: 1.46 | I41: 1.63
A42: Коэффициенты ликвидности**
A43: Коэффициент текущей ликвидности | B43: 1.85 | C43: 1.71 | D43: 1.62 | E43: 2.06 | F43: 1.86 | G43: 1.88 | H43: 1.68 | I43: 1.34
A44: Коэффициент быстрой ликвидности | B44: 1.523005436 | C44: 1.4 | D44: 1.31 | E44: 1.65 | F44: 1.5 | G44: 1.5 | H44: 1.31 | I44: 1.04
A45: Прочие коэффициенты**
A46: Коэффициент EV / EBITDA | B46: 3.999667518 | C46: 2.6 | D46: 2.7 | E46: 2.2 | F46: 2.4 | G46: 2.8 | H46: 4.2 | I46: 3.7
A47: Коэффициент P / E | B47: 4.588151659 | C47: 3 | D47: 2.7 | E47: 2.8 | F47: 18.8 | G47: 4 | H47: 3.7 | I47: 4
A48: Коэффициент P / S | B48: 1.274283224 | C48: 0.9 | D48: 0.7 | E48: 0.6 | F48: 0.6 | G48: 0.5 | H48: 0.6 | I48: 0.5
A49: * Приведены капитальные вложения, отраженные в составе информации по сегментам в консолидированной финансовой отчетности ПАО «Газпром» по МСФО.
A50: ** Формулы расчета коэффициентов приведены в разделе «Порядок расчета финансовых коэффициентов».
A52: Вернуться к Содержанию

Sheet Макроэкономика
A1: Макроэкономические данные
A2: Показатель* | B2: Единица измерения | C2: За год и по состоянию на конец года
C3: 2005 | D3: 2006 | E3: 2007 | F3: 2008 | G3: 2009 | H3: 2010 | I3: 2011 | J3: 2012 | K3: 2013 | L3: 2014 | M3: 2015 | N3: 2016 | O3: 2017
A4: Индекс потребительских цен (декабрь к декабрю предыдущего года), прирост | B4: % | C4: 0.109 | D4: 0.09 | E4: 0.119 | F4: 0.133 | G4: 0.088 | H4: 0.088 | I4: 0.061 | J4: 0.066 | K4: 0.065 | L4: 0.114 | M4: 0.129 | N4: 0.054 | O4: 0.025
A5: Индекс цен производителей промышленных товаров (декабрь к декабрю предыдущего года), прирост | B5: % | C5: 0.134 | D5: 0.104 | E5: 0.251 | F5: -0.07 | G5: 0.139 | H5: 0.167 | I5: 0.12 | J5: 0.051 | K5: 0.037 | L5: 0.059 | M5: 0.107 | N5: 0.074 | O5: 0.084
A6: Средний обменный курс рубля к доллару за период | B6: руб./долл. | C6: 28.32 | D6: 27.14 | E6: 25.55 | F6: 24.87 | G6: 31.75 | H6: 30.38 | I6: 29.39 | J6: 31.08 | K6: 31.9 | L6: 38.6 | M6: 61.32 | N6: 66.83 | O6: 58.31
A7: Обменный курс рубля к доллару на конец периода | B7: руб./долл. | C7: 28.78 | D7: 26.33 | E7: 24.55 | F7: 29.38 | G7: 30.24 | H7: 30.36 | I7: 32.2 | J7: 30.37 | K7: 32, 73 | L7: 56.26 | M7: 72.88 | N7: 60.66 | O7: 57.6
A8: Средний обменный курс рубля к евро за период | B8: руб./евро | C8: 35.15 | D8: 34.11 | E8: 35.03 | F8: 36.45 | G8: 44.19 | H8: 40.21 | I8: 40.9 | J8: 39.92 | K8: 42.39 | L8: 50.99 | M8: 67.99 | N8: 73.99 | O8: 66.02
A9: Обменный курс рубля к евро на конец периода | B9: руб./евро | C9: 34.19 | D9: 34.7 | E9: 35.93 | F9: 41.44 | G9: 43.39 | H9: 39.9 | I9: 41.67 | J9: 40.23 | K9: 44.97 | L9: 68.34 | M9: 79.7 | N9: 63.81 | O9: 68.87
A10: Цена нефти Brent (Dated)** | B10: долл./барр. | C10: 58.21 | D10: 58.93 | E10: 96.02 | F10: 36.55 | G10: 77.67 | H10: 92.54 | I10: 106.51 | J10: 109.99 | K10: 110.28 | L10: 55,98 | M10: 35.74 | N10: 54.94 | O10: 66.54
A11: Цена нефти Urals (среднее CIF MED/RDAM)** | B11: долл./барр. | C11: 53.61 | D11: 55.26 | E11: 93.09 | F11: 35.89 | G11: 77 | H11: 90.27 | I11: 104.29 | J11: 108.09 | K11: 109.1 | L11: 53,40 | M11: 33.11 | N11: 53.27 | O11: 66.19
A12: Среднегодовая цена нефти Brent (Dated)** | B12: долл./барр. | C12: 54.52 | D12: 65.14 | E12: 72.39 | F12: 97.28 | G12: 61.67 | H12: 79.5 | I12: 111.26 | J12: 111.67 | K12: 108.66 | L12: 98,95 | M12: 52.39 | N12: 43.73 | O12: 64.19
A13: Среднегодовая цена нефти Urals (среднее CIF MED/RDAM)** | B13: долл./барр. | C13: 50.59 | D13: 61.28 | E13: 69.28 | F13: 94.82 | G13: 61.18 | H13: 78.28 | I13: 109.1 | J13: 110.37 | K13: 107.71 | L13: 96,94 | M13: 51.42 | N13: 42.1 | O13: 63.45
A14: * Экономические показатели и обменные курсы представлены по данным Банка России и Росстата. Средние обменные курсы рассчитаны по данным Банка России как среднее значение курсов в рабочие дни соответствующего года.
A15: ** По данным агентства Platts.
A17: Вернуться к Содержанию

Sheet Индикаторы
A1: Рыночные индикаторы
A2: Показатель | B2: Единица измерения | C2: За год и по состоянию на конец года
C3: 2005 | D3: 2006 | E3: 2007 | F3: 2008 | G3: 2009 | H3: 2010 | I3: 2011 | J3: 2012 | K3: 2013 | L3: 2014 | M3: 2015 | N3: 2016 | O3: 2017
A4: Цена за акцию на закрытие торгов на ПАО Московская Биржа
A5: на конец года | B5: руб. | C5: 194.3 | D5: 302.89 | E5: 342.88 | F5: 108.6 | G5: 183.21 | H5: 193.62 | I5: 171.37 | J5: 143.91 | K5: 138.75 | L5: 130,31 | M5: 136.09 | N5: 154.55 | O5: 130.5
A6: минимальная за год | B6: руб. | C6: 69.6 | D6: 216 | E6: 227.99 | F6: 86.6 | G6: 101.91 | H6: 142.84 | I6: 143.03 | J6: 137.18 | K6: 107.17 | L6: 117,87 | M6: 130.9 | N6: 124.6 | O6: 115.35
A7: максимальная за год | B7: руб. | C7: 195 | D7: 350.25 | E7: 357.2 | F7: 367.4 | G7: 200.16 | H7: 197.34 | I7: 243.93 | J7: 199.69 | K7: 158 | L7: 153,25 | M7: 163 | N7: 168.47 | O7: 157.97
A8: Цена за АДР* на закрытие торгов на ЛФБ
A9: на конец года | B9: долл. | C9: 28.68 | D9: 46 | E9: 56.7 | F9: 14.25 | G9: 25.5 | H9: 25.25 | I9: 10.66 | J9: 9.46 | K9: 8.55 | L9: 4,65 | M9: 3.69 | N9: 5.05 | O9: 4.41
A10: минимальная за год | B10: долл. | C10: 11.92 | D10: 29.48 | E10: 35.4 | F10: 11.91 | G10: 12.26 | H10: 18.06 | I10: 8.74 | J10: 8.7 | K10: 6.48 | L10: 3,73 | M10: 3.62 | N10: 3.02 | O10: 3.85
A11: максимальная за год | B11: долл. | C11: 31.4 | D11: 52.64 | E11: 58.5 | F11: 62.5 | G11: 27.3 | H11: 26.64 | I11: 17.4 | J11: 13.53 | K11: 9.82 | L11: 9,06 | M11: 6.24 | N11: 5.27 | O11: 5.27
A12: Количество выпущенных обыкновенных акций ПАО «Газпром» по состоянию на конец года | B12: млн шт. | C12: 23674 | D12: 23674 | E12: 23674 | F12: 23674 | G12: 23674 | H12: 23674 | I12: 23674 | J12: 23674 | K12: 23674 | L12: 23 674 | M12: 23 674 | N12: 23673.5129 | O12: 23673.5129
A13: Количество обыкновенных акций в собственности дочерних обществ ПАО «Газпром» по состоянию на конец года | B13: млн шт. | C13: 848 | D13: 749 | E13: 66 | F13: 30 | G13: 724 | H13: 723 | I13: 726 | J13: 724 | K13: 723 | L13: 723 | M13: 723 | N13: 1573 | O13: 1573
A14: Количество выпущенных обыкновенных акций ПАО «Газпром» за вычетом акций, находящихся в собственности дочерних обществ ПАО «Газпром», по состоянию на конец года** | B14: млн шт. | C14: =C12-C13 -> 22826 | D14: 22925 | E14: 23608 | F14: 23644 | G14: 22950 | H14: 22951 | I14: 22948 | J14: 22950 | K14: 22 951 | L14: 22 951 | M14: 22 951 | N14: 22101 | O14: 22101
A15: Рыночная капитализация на конец года*** | B15: млрд долл. | C15: 160.3 | D15: 272 | E15: 330.9 | F15: 86 | G15: 144.5 | H15: 150.9 | I15: 122.6 | J15: 111.6 | K15: 99.9 | L15: 54,8 | M15: 44.2 | N15: 60.3 | O15: 53.6
A16: изменение к прошлому году | B16: % | C16: 1.418 | D16: =ROUND((D15-C15)/C15,3) -> 0.697 | E16: 0.217 | F16: -0.74 | G16: 0.68 | H16: 0.044 | I16: -0.188 | J16: -0.09 | K16: -0.105 | L16: -0.451 | M16: -0.193 | N16: 0.364 | O16: =O15/N15-1 -> -0.1111111111
A17: Индекс МосБиржи (ранее - индекс ММВБ) | B17: пункты | C17: 1011 | D17: 1693 | E17: 1889 | F17: 620 | G17: 1370 | H17: 1688 | I17: 1402 | J17: 1475 | K17: 1504 | L17: 1 397 | M17: 1761 | N17: 2233 | O17: 2110
A18: изменение к прошлому году | B18: % | C18: 0.832 | D18: =ROUND((D17-C17)/C17,3) -> 0.675 | E18: 0.116 | F18: -0.672 | G18: 1.21 | H18: 0.232 | I18: -0.169 | J18: 0.052 | K18: 0.02 | L18: -0.071 | M18: 0.261 | N18: 0.268 | O18: =O17/N17-1 -> -0.05508284819
A19: Индекс РТС | B19: пункты | C19: 1126 | D19: 1922 | E19: 2291 | F19: 632 | G19: 1445 | H19: 1770 | I19: 1382 | J19: 1527 | K19: 1443 | L19: 791 | M19: 757 | N19: 1152 | O19: 1154
A20: изменение к прошлому году | B20: % | C20: 0.858 | D20: =ROUND((D19-C19)/C19,3) -> 0.707 | E20: 0.192 | F20: -0.724 | G20: 1.286 | H20: 0.225 | I20: -0.219 | J20: 0.105 | K20: -0.055 | L20: -0.452 | M20: -0.043 | N20: 0.522 | O20: =O19/N19-1 -> 0.001736111111
A21: Среднедневной объем торгов на ПАО Московская Биржа | B21: млн акций | C21: 20.8 | D21: 49.2 | E21: 47.8 | F21: 67.2 | G21: 85.2 | H21: 56.4 | I21: 74.6 | J21: 39.4 | K21: 43.9 | L21: 52,5 | M21: 32.5 | N21: 29.9 | O21: 28.8
A22: Среднедневной объем торгов на ЛФБ | B22: млн АДР | C22: 1.7 | D22: 4.4 | E22: 7.2 | F22: 16.9 | G22: 12.6 | H22: 13.7 | I22: 43.2 | J22: 32.1 | K22: 25 | L22: 27,6 | M22: 16.4 | N22: 15.9 | O22: 12
A23: Дивиденды на обыкновенную акцию**** | B23: руб. | C23: 1.5 | D23: 2.54 | E23: 2.66 | F23: 0.36 | G23: 2.39 | H23: 3.85 | I23: 8.97 | J23: 5.99 | K23: 7.2 | L23: 7,20 | M23: 7.89 | N23: 8.0397 | O23: 8.04
A24: Структура акционерного капитала
A25: Доля, контролируемая Российской Федерацией
A26: Федеральным агентством по управлению государственным имуществом | B26: % | C26: 0.38373 | D26: 0.38373 | E26: 0.38373 | F26: 0.38373 | G26: 0.38373 | H26: 0.38373 | I26: 0.3837 | J26: 0.3837 | K26: 0.3837 | L26: 0.3837 | M26: 0.3837 | N26: 0.3837 | O26: 0.3837
A27: АО «РОСНЕФТЕГАЗ» | B27: % | C27: 0.1074 | D27: 0.1074 | E27: 0.1074 | F27: 0.1074 | G27: 0.1074 | H27: 0.1074 | I27: 0.1074 | J27: 0.1074 | K27: 0.1097 | L27: 0.1097 | M27: 0.1097 | N27: 0.1097 | O27: 0.1097
A28: АО «Росгазификация» | B28: % | C28: 0.00889 | D28: 0.00889 | E28: 0.00889 | F28: 0.00889 | G28: 0.00889 | H28: 0.00889 | I28: 0.0089 | J28: 0.0089 | K28: 0.0089 | L28: 0.0089 | M28: 0.0089 | N28: 0.0089 | O28: 0.0089
A29: Владельцы АДР***** | B29: % | C29: 0.04422 | D29: 0.132 | E29: 0.2102 | F29: 0.2215 | G29: 0.2435 | H29: 0.2757 | I29: 0.2835 | J29: 0.2696 | K29: 0.2578 | L29: 0.2805 | M29: 0.2783 | N29: 0.2686 | O29: 0.252
A30: Прочие зарегистрированные лица | B30: % | C30: 0.45576 | D30: 0.36798 | E30: 0.28978 | F30: 0.27848 | G30: 0.25648 | H30: 0.22428 | I30: 0.2165 | J30: 0.2304 | K30: 0.2399 | L30: 0.2172 | M30: 0.2194 | N30: 0.2291 | O30: 0.2457
A31: Всего | B31: % | C31: =SUM(C26:C30) -> 1 | D31: 1 | E31: 1 | F31: 1 | G31: 1 | H31: 1 | I31: 1 | J31: 1 | K31: 1 | L31: 1 | M31: 1 | N31: 1 | O31: 1
A32: * До апреля 2011 г. одна АДР предоставляла право на четыре обыкновенные акции ОАО «Газпром». Начиная с апреля 2011 г. одна АДР предоставляет право на две обыкновенные акции ОАО «Газпром» (после 17 июля 2015 г. – ПАО «Газпром»).
A33: ** По состоянию на 31 декабря соответствующего года отсутствовали акции ПАО «Газпром», право собственности на которые перешло к Компании.
A34: *** Рыночная капитализация рассчитана по котировкам ПАО Московская Биржа, конвертирована в доллары.
A35: **** За 2017 г. приведены рекомендуемые дивиденды.
A36: ***** Банк-эмитент АДР на акции ПАО «Газпром» – The Bank of New York Mellon.
A38: Вернуться к Содержанию

Sheet Запасы
A1: Разведка и добыча на территории Российской Федерации
A2: Запасы
A3: Запасы углеводородов Группы Газпром на территории Российской Федерации
A4: (с учетом доли в запасах организаций, инвестиции в которые классифицированы как совместные операции)
A5: Метрические единицы
B6: По состоянию на 31 декабря
B7: 2005* | C7: 2006* | D7: 2007* | E7: 2008* | F7: 2009* | G7: 2010* | H7: 2011* | I7: 2012 | J7: 2013 | K7: 2014 | L7: 2015 | M7: 2016 | N7: 2017
A8: Природный газ, млрд м3
A9: Разведанные запасы по российской классификации | B9: 29130.7 | C9: 29854.2 | D9: 29785.4 | E9: 33123.2 | F9: 33578.4 | G9: 33052.3 | H9: 35046.9 | I9: 35169.8 | J9: 35696.6 | K9: 36101.4 | L9: 36147.3 | M9: 36443.9 | N9: 35355.4
A10: из них прошедшие оценку по стандартам PRMS | B10: 0.95 | C10: 0.93 | D10: 0.95 | E10: 0.88 | F10: 0.89 | G10: 0.93 | H10: 0.9 | I10: 0.94 | J10: 0.93 | K10: 0.94 | L10: 0.94 | M10: 0.95 | N10: 0.94
A11: Доказанные | B11: 16052.1 | C11: 18187.6 | D11: 18286.5 | E11: 18187.8 | F11: 18609.9 | G11: 18991.3 | H11: 19212.6 | I11: 19133 | J11: 18939.3 | K11: 18894.7 | L11: 18791.2 | M11: 18596.5 | N11: 18253.4
A12: Вероятные | B12: 4757.2 | C12: 2580 | D12: 2551.5 | E12: 3088.2 | F12: 3338.1 | G12: 3529 | H12: 3631.5 | I12: 4254.1 | J12: 4325.2 | K12: 4616 | L12: 4913.8 | M12: 5258.6 | N12: 5893.2
A13: Доказанные и вероятные | B13: 20809.3 | C13: 20767.6 | D13: 20838 | E13: 21276 | F13: 21948 | G13: 22520.3 | H13: 22844.1 | I13: 23387.1 | J13: 23264.5 | K13: 23510.7 | L13: 23705 | M13: 23855.1 | N13: 24146.6
A14: Газовый конденсат, млн т
A15: Разведанные запасы по российской классификации | B15: 1216.3 | C15: 1217 | D15: 1212.5 | E15: 1287.1 | F15: 1325.1 | G15: 1284.8 | H15: 1395.5 | I15: 1386.1 | J15: 1384.4 | K15: 1447 | L15: 1499.5 | M15: 1534.9 | N15: 1595.6
A16: из них прошедшие оценку по стандартам PRMS | B16: 0.9 | C16: 0.9 | D16: 0.9 | E16: 0.85 | F16: 0.82 | G16: 0.86 | H16: 0.83 | I16: 0.89 | J16: 0.89 | K16: 0.92 | L16: 0.92 | M16: 0.94 | N16: 0.93
A17: Доказанные | B17: 507.9 | C17: 528.9 | D17: 568.9 | E17: 587.9 | F17: 586 | G17: 572.1 | H17: 605.2 | I17: 633.8 | J17: 638.8 | K17: 642.3 | L17: 699.5 | M17: 759.2 | N17: 797.7
A18: Вероятные | B18: 184.7 | C18: 130.1 | D18: 117.2 | E18: 141.9 | F18: 141.2 | G18: 147.2 | H18: 152.6 | I18: 174.9 | J18: 193.6 | K18: 206.3 | L18: 233.8 | M18: 259.7 | N18: 308
A19: Доказанные и вероятные | B19: 692.6 | C19: 659 | D19: 686.1 | E19: 729.8 | F19: 727.2 | G19: 719.3 | H19: 757.8 | I19: 808.7 | J19: 832.4 | K19: 848.6 | L19: 933.3 | M19: 1018.9 | N19: 1105.7
A20: Нефть, млн т
A21: Разведанные запасы по российской классификации | B21: 1357.5 | C21: 1386.9 | D21: 1509.9 | E21: 1601.7 | F21: 1785 | G21: 1732.9 | H21: 1767.3 | I21: 1992.2 | J21: 2019 | K21: 2053.1 | L21: 2082 | M21: 2078.5 | N21: 2045.3
A22: из них прошедшие оценку по стандартам PRMS | B22: 0.93 | C22: 0.93 | D22: 0.93 | E22: 0.92 | F22: 0.85 | G22: 0.9 | H22: 0.89 | I22: 0.89 | J22: 0.89 | K22: 0.91 | L22: 0.92 | M22: 0.93 | N22: 0.94
A23: Доказанные | B23: 528.8 | C23: 688.9 | D23: 727 | E23: 713.2 | F23: 718.5 | G23: 717.4 | H23: 723.9 | I23: 819.5 | J23: 834.8 | K23: 830.5 | L23: 792.7 | M23: 789.5 | N23: 736.8
A24: Вероятные | B24: 702.9 | C24: 377.6 | D24: 405.5 | E24: 565 | F24: 435.5 | G24: 464.5 | H24: 492.2 | I24: 588.8 | J24: 572.4 | K24: 543.9 | L24: 562.7 | M24: 589.2 | N24: 623.2
A25: Доказанные и вероятные | B25: 1231.7 | C25: 1066.5 | D25: 1132.5 | E25: 1278.2 | F25: 1154 | G25: 1181.9 | H25: 1216.1 | I25: 1408.3 | J25: 1407.2 | K25: 1374.4 | L25: 1355.4 | M25: 1378.7 | N25: 1360
A26: * Без учета доли Группы Газпром в запасах организаций, инвестиции в которые классифицированы как совместные операции.
A28: Нефтяной эквивалент
B29: По состоянию на 31 декабря
B30: 2005* | C30: 2006* | D30: 2007* | E30: 2008* | F30: 2009* | G30: 2010* | H30: 2011* | I30: 2012 | J30: 2013 | K30: 2014 | L30: 2015 | M30: 2016 | N30: 2017
A31: Природный газ, млн барр. н. э.
A32: Разведанные запасы по российской классификации | B32: =B9*6.49 -> 189058.243 | C32: 193753.758 | D32: 193307.246 | E32: 214969.568 | F32: 217923.816 | G32: 214509.427 | H32: 227454.381 | I32: 228252 | J32: 231670.9 | K32: 234298.1 | L32: 234596 | M32: 236520.9 | N32: 229456.5
A33: Доказанные | B33: 104178.2 | C33: =C11*6.49 -> 118037.524 | D33: 118679.385 | E33: 118038.822 | F33: 120778.2 | G33: 123253.537 | H33: 124689.774 | I33: 124173.2 | J33: 122916.1 | K33: 122626.6 | L33: 121954.9 | M33: 120691.3 | N33: 118464.5
A34: Вероятные | B34: =B12*6.49 -> 30874.228 | C34: 16744.2 | D34: 16559.235 | E34: 20042.418 | F34: 21664.269 | G34: 22903.21 | H34: 23568.435 | I34: 27609.1 | J34: 28070.5 | K34: 29957.8 | L34: 31890.6 | M34: 34128.3 | N34: 38246.9
A35: Доказанные и вероятные | B35: =B13*6.49 -> 135052.357 | C35: =C13*6.49 -> 134781.724 | D35: 135238.62 | E35: 138081.24 | F35: 142442.52 | G35: 146156.747 | H35: 148258.209 | I35: 151782.3 | J35: 150986.6 | K35: 152584.4 | L35: 153845.5 | M35: 154819.6 | N35: 156711.4
A36: Газовый конденсат, млн барр. н. э.
A37: Разведанные запасы по российской классификации | B37: 9949.3 | C37: 9955.1 | D37: 9918.3 | E37: 10528.5 | F37: 10839.3 | G37: 10509.7 | H37: 11415.2 | I37: 11338.3 | J37: 11324.4 | K37: 11836.5 | L37: 12265.9 | M37: 12555.5 | N37: 13052
A38: Доказанные | B38: 4154.6 | C38: 4326.4 | D38: 4653.6 | E38: 4809 | F38: 4793.5 | G38: 4679.8 | H38: 4950.5 | I38: 5184.5 | J38: 5225.4 | K38: 5254 | L38: 5721.9 | M38: 6210.3 | N38: 6525.2
A39: Вероятные | B39: 1510.9 | C39: 1064.2 | D39: 958.7 | E39: 1160.8 | F39: 1155 | G39: 1204.1 | H39: 1248.3 | I39: 1430.7 | J39: 1583.6 | K39: 1687.5 | L39: 1912.5 | M39: 2124.3 | N39: 2519.4
A40: Доказанные и вероятные | B40: 5665.5 | C40: 5390.6 | D40: 5612.3 | E40: 5969.8 | F40: 5948.5 | G40: 5883.9 | H40: 6198.8 | I40: 6615.2 | J40: 6809 | K40: 6941.5 | L40: 7634.4 | M40: 8334.6 | N40: 9044.6
A41: Нефть, млн барр. н. э.
A42: Разведанные запасы по российской классификации | B42: 9950.5 | C42: 10166 | D42: 11067.6 | E42: 11740.5 | F42: 13084.1 | G42: 12702.2 | H42: 12954.3 | I42: 14602.8 | J42: 14799.3 | K42: 15049.2 | L42: 15261.1 | M42: 15235.4 | N42: 14992.1
A43: Доказанные | B43: 3876.1 | C43: 5049.6 | D43: 5328.9 | E43: 5227.8 | F43: 5266.6 | G43: 5258.5 | H43: 5306.2 | I43: 6006.9 | J43: 6119.1 | K43: 6087.6 | L43: 5810.5 | M43: 5787 | N43: 5400.7
A44: Вероятные | B44: 5152.3 | C44: 2767.8 | D44: 2972.3 | E44: 4141.4 | F44: 3192.2 | G44: 3404.8 | H44: 3607.8 | I44: 4315.9 | J44: 4195.7 | K44: 3986.8 | L44: 4124.6 | M44: 4318.8 | N44: 4568.1
A45: Доказанные и вероятные | B45: 9028.4 | C45: 7817.4 | D45: 8301.2 | E45: 9369.2 | F45: 8458.8 | G45: 8663.3 | H45: 8914 | I45: 10322.8 | J45: 10314.8 | K45: 10074.4 | L45: 9935.1 | M45: 10105.9 | N45: 9968.8
A46: Всего, млн барр. н. э.
A47: Разведанные запасы по российской классификации | B47: =B32+B37+B42 -> 208958.043 | C47: 213874.858 | D47: 214293.146 | E47: 237238.568 | F47: 241847.216 | G47: 237721.327 | H47: 251823.881 | I47: 254193.1 | J47: 257794.6 | K47: 261183.8 | L47: 262123 | M47: 264311.8 | N47: 257 500,6
A48: Доказанные | B48: =B33+B38+B43 -> 112208.9 | C48: 127413.524 | D48: 128661.885 | E48: 128075.622 | F48: 130838.3 | G48: 133191.837 | H48: 134946.474 | I48: 135364.6 | J48: 134260.6 | K48: 133968.2 | L48: 133487.3 | M48: 132688.6 | N48: 130 390,4
A49: Вероятные | B49: =B34+B39+B44 -> 37537.428 | C49: 20576.2 | D49: 20490.235 | E49: 25344.618 | F49: 26011.469 | G49: 27512.11 | H49: 28424.535 | I49: 33355.7 | J49: 33849.8 | K49: 35632.1 | L49: 37927.7 | M49: 40571.5 | N49: 45 334,4
A50: Доказанные и вероятные | B50: =B35+B40+B45 -> 149746.257 | C50: 147989.724 | D50: 149152.12 | E50: 153420.24 | F50: 156849.82 | G50: 160703.947 | H50: 163371.009 | I50: 168720.3 | J50: 168110.4 | K50: 169600.3 | L50: 171415 | M50: 173260.1 | N50: 175 724,8
A51: * Без учета доли Группы Газпром в запасах организаций, инвестиции в которые классифицированы как совместные операции.
A52: Примечание. Группа Газпром осуществляет управленческий учет запасов и добычи углеводородов в метрических единицах измерения. В настоящем Справочнике пересчет объемов запасов газа из метрической системы в баррели нефтяного эквивалента выполнен исходя из соотношения 1 тыс. м3 природного газа = 6,49 барр. н. э.
A54: Месторождения и залежи углеводородов, открытые Группой Газпром на территории Российской Федерации
B55: За год, закончившийся 31 декабря
B56: 2005* | C56: 2006 | D56: 2007 | E56: 2008 | F56: 2009 | G56: 2010 | H56: 2011 | I56: 2012 | J56: 2013 | K56: 2014 | L56: 2015 | M56: 2016 | N56: 2017
A57: Группа Газпром
A58: Месторождения | B58: 3 | C58: 4 | D58: 3 | E58: 3 | F58: 7 | G58: 3 | H58: 5 | I58: 5 | J58: 2 | K58: 1 | L58: 2 | M58: 2 | N58: 4
A59: Залежи на ранее открытых месторождениях | B59: 14 | C59: 30 | D59: 24 | E59: 22 | F59: 14 | G59: 26 | H59: 28 | I59: 49 | J59: 27 | K59: 37 | L59: 22 | M59: 15 | N59: 47
A60: Организации, инвестиции в которые классифицированы как совместные операции
A61: Месторождения | B61: x | C61: x | D61: x | E61: x | F61: x | G61: x | H61: x | I61: – | J61: – | K61: – | L61: – | M61: – | N61: 1
A62: Залежи на ранее открытых месторождениях | B62: x | C62: x | D62: x | E62: x | F62: x | G62: x | H62: x | I62: 2 | J62: 1 | K62: 2 | L62: 6 | M62: 3 | N62: 5
A63: * Без учета Группы Газпром нефть.
A65: Коэффициент восполнения разведанных запасов углеводородов Группы Газпром по российской классификации
A66: (с учетом доли в запасах и добыче организаций, инвестиции в которые классифицированы как совместные операции)
B67: За год, закончившийся 31 декабря
B68: 2005* | C68: 2006* | D68: 2007* | E68: 2008* | F68: 2009* | G68: 2010* | H68: 2011* | I68: 2012* | J68: 2013 | K68: 2014 | L68: 2015 | M68: 2016 | N68: 2017
A69: Природный газ | B69: 1 | C69: 1.1 | D69: 1.1 | E69: 1.1 | F69: 1 | G69: 1.1 | H69: 1.4 | I69: 1.18 | J69: 1.33 | K69: 1.86 | L69: 1.27 | M69: 1.1 | N69: 1.82
A70: Газовый конденсат | B70: 1.82 | C70: 1.42 | D70: 1.18 | E70: 0.86 | F70: 5.28 | G70: 3.99 | H70: 4.41 | I70: 2.31 | J70: 0.52 | K70: 10.88 | L70: 6.12 | M70: 3.25 | N70: 7.97
A71: Нефть | B71: 0.51 | C71: 1.38 | D71: 0.59 | E71: 1.69 | F71: 1.83 | G71: 2.6 | H71: 1.78 | I71: 1.67 | J71: 1.14 | K71: 0.57 | L71: 0.47 | M71: 0.41 | N71: 0.07
A72: Всего | B72: 1.02 | C72: 1.09 | D72: 1.04 | E72: 1.1 | F72: 1.15 | G72: 1.24 | H72: 1.49 | I72: 1.24 | J72: 1.29 | K72: 1.95 | L72: 1.32 | M72: 1.08 | N72: 1.81
A73: * Без учета доли Группы Газпром в запасах и добыче организаций, инвестиции в которые классифицированы как совместные операции.
A75: Обеспеченность разведанными запасами углеводородов Группы Газпром по российской классификации, лет
A76: (с учетом доли в запасах и добыче организаций, инвестиции в которые классифицированы как совместные операции)
H77: По состоянию на 31 декабря
H78: 2011* | I78: 2012* | J78: 2013 | K78: 2014 | L78: 2015 | M78: 2016 | N78: 2017
A79: Природный газ | H79: 69 | I79: 73 | J79: 73 | K79: 82 | L79: 87 | M79: 87 | N79: 75
A80: Нефть | H80: 54 | I80: 54 | J80: 48 | K80: 47 | L80: 47 | M80: 44 | N80: 43
A81: * Без учета доли Группы Газпром в запасах и добыче организаций, инвестиции в которые классифицированы как совместные операции.
A83: Запасы природного газа Группы Газпром по стандартам PRMS на территории Российской Федерации, млрд м3
A84: (с учетом доли в запасах организаций, инвестиции в которые классифицированы как совместные операции)
B85: По состоянию на 31 декабря
B86: 2005* | C86: 2006* | D86: 2007* | E86: 2008* | F86: 2009* | G86: 2010* | H86: 2011* | I86: 2012 | J86: 2013 | K86: 2014 | L86: 2015 | M86: 2016 | N86: 2017
A87: ПАО «Газпром» и его основные дочерние общества**
A88: Доказанные | B88: 15714.7 | C88: 17902.5 | D88: 17319.5 | E88: 17196.8 | F88: 17645.5 | G88: 18029.4 | H88: 18208.1 | I88: 18133.7 | J88: 18036.7 | K88: 18023.7 | L88: 17942.5 | M88: 17780.9 | N88: 17 429,6
A89: Вероятные | B89: =IF(4672<>B90-B88,B90-B88,4672) -> 4671.9 | C89: 2572.4 | D89: 2539.4 | E89: 2908.8 | F89: 3255.2 | G89: 3420.6 | H89: 3505.7 | I89: 4068.2 | J89: 4072.4 | K89: 4303.7 | L89: 4587.6 | M89: 4930.2 | N89: 5 536,8
A90: Доказанные и вероятные | B90: 20386.6 | C90: 20474.9 | D90: 19858.9 | E90: 20105.6 | F90: 20900.7 | G90: 21450 | H90: 21713.8 | I90: 22201.9 | J90: 22109.1 | K90: 22327.4 | L90: 22530.1 | M90: 22711.1 | N90: 22 966,4
A91: ПАО «Газпром нефть» и его дочерние общества
A92: Доказанные | B92: 66.8 | C92: 29.5 | D92: 20.6 | E92: 73.2 | F92: 80.7 | G92: 118.9 | H92: 147.2 | I92: 193.8 | J92: 216.7 | K92: 223.5 | L92: 239.5 | M92: 243 | N92: 288.2
A93: Вероятные | B93: 81.3 | C93: 3.6 | D93: 1.8 | E93: 169.1 | F93: 72.6 | G93: 98.1 | H93: 106.4 | I93: 133.1 | J93: 111.3 | K93: 168.3 | L93: 182.1 | M93: 183 | N93: 210.5
A94: Доказанные и вероятные | B94: 148.1 | C94: 33.1 | D94: 22.4 | E94: 242.3 | F94: 153.3 | G94: 217 | H94: 253.6 | I94: 326.9 | J94: 328 | K94: 391.8 | L94: 421.6 | M94: 426 | N94: 498.7
A95: ЗАО «Пургаз»
A96: Доказанные | B96: 270.6 | C96: 255.6 | D96: 233.1 | E96: 217.9 | F96: 206.4 | G96: 191.3 | H96: 188 | I96: 172.9 | J96: 158.3 | K96: 145 | L96: 132.3 | M96: 120.6 | N96: 109.7
A97: Вероятные | B97: 4 | C97: 4 | D97: 3.9 | E97: 3.9 | F97: 3.9 | G97: 3.9 | H97: 12.8 | I97: 12.9 | J97: 12.9 | K97: 12.9 | L97: 12.9 | M97: 12.9 | N97: 12.9
A98: Доказанные и вероятные | B98: 274.6 | C98: 259.6 | D98: 237 | E98: 221.8 | F98: 210.3 | G98: 195.2 | H98: 200.8 | I98: 185.8 | J98: 171.2 | K98: 157.9 | L98: 145.2 | M98: 133.5 | N98: 122.6
A99: ОАО «Севернефтегазпром»
A100: Доказанные | B100: x | C100: x | D100: 713.3 | E100: 699.9 | F100: 677.3 | G100: 651.7 | H100: 669.3 | I100: 613.7 | J100: 510 | K100: 484.9 | L100: 459.8 | M100: 434.6 | N100: 409.9
A101: Вероятные | B101: x | C101: x | D101: 6.4 | E101: 6.4 | F101: 6.4 | G101: 6.4 | H101: 6.6 | I101: 36.8 | J101: 125.7 | K101: 125.7 | L101: 125.7 | M101: 125.7 | N101: 125.5
A102: Доказанные и вероятные | B102: x | C102: x | D102: 719.7 | E102: 706.3 | F102: 683.7 | G102: 658.1 | H102: 675.9 | I102: 650.5 | J102: 635.7 | K102: 610.6 | L102: 585.5 | M102: 560.3 | N102: 535.4
A103: Всего без учета доли в запасах организаций, инвестиции в которые классифицированы как совместные операции
A104: Доказанные | B104: 16052.1 | C104: 18187.6 | D104: 18286.5 | E104: 18187.8 | F104: 18609.9 | G104: 18991.3 | H104: 19212.6 | I104: 19114.1 | J104: 18921.7 | K104: 18877.1 | L104: 18774.1 | M104: 18579.1 | N104: 18 237,4
A105: Вероятные | B105: 4757.2 | C105: 2580 | D105: 2551.5 | E105: 3088.2 | F105: 3338.1 | G105: 3529 | H105: 3631.5 | I105: 4251 | J105: 4322.3 | K105: 4610.6 | L105: 4908.3 | M105: 5251.8 | N105: 5 885,7
A106: Доказанные и вероятные | B106: 20809.3 | C106: 20767.6 | D106: 20838 | E106: 21276 | F106: 21948 | G106: 22520.3 | H106: 22844.1 | I106: 23365.1 | J106: 23244 | K106: 23487.7 | L106: 23682.4 | M106: 23830.9 | N106: 24123.1
A107: Организации, инвестиции в которые классифицированы как совместные операции в доле, приходящейся на Группу Газпром
A108: Доказанные | B108: x | C108: x | D108: x | E108: x | F108: x | G108: x | H108: x | I108: 18.9 | J108: 17.6 | K108: 17.6 | L108: 17.1 | M108: 17.4 | N108: 16
A109: Вероятные | B109: x | C109: x | D109: x | E109: x | F109: x | G109: x | H109: x | I109: 3.1 | J109: 2.9 | K109: 5.4 | L109: 5.5 | M109: 6.8 | N109: 7.5
A110: Доказанные и вероятные | B110: x | C110: x | D110: x | E110: x | F110: x | G110: x | H110: x | I110: 22 | J110: 20.5 | K110: 23 | L110: 22.6 | M110: 24.2 | N110: 23.5
A111: Всего с учетом доли в запасах организаций, инвестиции в которые классифицированы как совместные операции
A112: Доказанные | B112: x | C112: x | D112: x | E112: x | F112: x | G112: x | H112: x | I112: 19133 | J112: 18939.3 | K112: 18894.7 | L112: 18791.2 | M112: 18596.5 | N112: 18 253,4
A113: Вероятные | B113: x | C113: x | D113: x | E113: x | F113: x | G113: x | H113: x | I113: 4254.1 | J113: 4325.2 | K113: 4616 | L113: 4913.8 | M113: 5258.6 | N113: 5 893,2
A114: Доказанные и вероятные | B114: x | C114: x | D114: x | E114: x | F114: x | G114: x | H114: x | I114: 23387.1 | J114: 23264.5 | K114: 23510.7 | L114: 23705 | M114: 23855.1 | N114: 24 146,6
A115: * Без учета доли Группы Газпром в запасах корганизаций, инвестиции в которые классифицированы как совместные операции.
A116: ** Состав учитываемых обществ приведен в Глоссарии.
A118: Запасы газового конденсата Группы Газпром по стандартам PRMS на территории Российской Федерации, млн т
A119: (с учетом доли в запасах организаций, инвестиции в которые классифицированы как совместные операции)
B120: По состоянию на 31 декабря
B121: 2005* | C121: 2006* | D121: 2007* | E121: 2008* | F121: 2009* | G121: 2010* | H121: 2011* | I121: 2012 | J121: 2013 | K121: 2014 | L121: 2015 | M121: 2016 | N121: 2017
A122: ПАО «Газпром» и его основные дочерние общества**
A123: Доказанные | B123: 507.9 | C123: 528.9 | D123: 568.9 | E123: 587.9 | F123: 586 | G123: 572.1 | H123: 605.2 | I123: 633.8 | J123: 634.4 | K123: 637.3 | L123: 691.9 | M123: 751.7 | N123: 788.9
A124: Вероятные | B124: 184.7 | C124: 130.1 | D124: 117.2 | E124: 141.9 | F124: 141.2 | G124: 147.2 | H124: 152.6 | I124: 174.9 | J124: 190.3 | K124: 202.8 | L124: 230.2 | M124: 257 | N124: 303.5
A125: Доказанные и вероятные | B125: 692.6 | C125: 659 | D125: 686.1 | E125: 729.8 | F125: 727.2 | G125: 719.3 | H125: 757.8 | I125: 808.7 | J125: 824.7 | K125: 840.1 | L125: 922.1 | M125: 1008.7 | N125: 1 092,4
A126: ПАО «Газпром нефть» и его дочерние общества
A127: Доказанные*** | B127: x | C127: x | D127: x | E127: x | F127: x | G127: x | H127: x | I127: x | J127: 4.4 | K127: 5 | L127: 7.6 | M127: 7.5 | N127: 8.8
A128: Вероятные*** | B128: x | C128: x | D128: x | E128: x | F128: x | G128: x | H128: x | I128: x | J128: 3.3 | K128: 3.5 | L128: 3.6 | M128: 2.7 | N128: 4.5
A129: Доказанные и вероятные*** | B129: x | C129: x | D129: x | E129: x | F129: x | G129: x | H129: x | I129: x | J129: 7.7 | K129: 8.5 | L129: 11.2 | M129: 10.2 | N129: 13.3
A130: Всего
A131: Доказанные | B131: 507.9 | C131: 528.9 | D131: 568.9 | E131: 587.9 | F131: 586 | G131: 572.1 | H131: 605.2 | I131: 633.8 | J131: 638.8 | K131: 642.3 | L131: 699.5 | M131: 759.2 | N131: 797.7
A132: Вероятные | B132: 184.7 | C132: 130.1 | D132: 117.2 | E132: 141.9 | F132: 141.2 | G132: 147.2 | H132: 152.6 | I132: 174.9 | J132: 193.6 | K132: 206.3 | L132: 233.8 | M132: 259.7 | N132: 308
A133: Доказанные и вероятные | B133: 692.6 | C133: 659 | D133: 686.1 | E133: 729.8 | F133: 727.2 | G133: 719.3 | H133: 757.8 | I133: 808.7 | J133: 832.4 | K133: 848.6 | L133: 933.3 | M133: 1 018,9 | N133: 1 105,7
A134: * Без учета доли Группы Газпром в запасах и добыче организаций, инвестиции в которые классифицированы как совместные операции.
A135: ** Состав учитываемых обществ приведен в Глоссарии.
A136: *** До оценки, подготовленной по состоянию на 31 декабря 2013 г., запасы газового конденсата Группы Газпром нефть учитывались в запасах нефти.
A138: Запасы нефти Группы Газпром по стандартам PRMS на территории Российской Федерации, млн т
A139: (с учетом доли в запасах организаций, инвестиции в которые классифицированы как совместные операции)
B140: По состоянию на 31 декабря
B141: 2005* | C141: 2006* | D141: 2007* | E141: 2008* | F141: 2009* | G141: 2010* | H141: 2011* | I141: 2012 | J141: 2013 | K141: 2014 | L141: 2015 | M141: 2016 | N141: 2017
A142: ПАО «Газпром» и его основные дочерние общества**
A143: Доказанные | B143: 67.3 | C143: 87.1 | D143: 76.9 | E143: 97.6 | F143: 93 | G143: 82.9 | H143: 57.3 | I143: 58.9 | J143: 55.5 | K143: 55.6 | L143: 44.7 | M143: 44.6 | N143: 16.5
A144: Вероятные | B144: 232.2 | C144: 203.8 | D144: 210 | E144: 185.7 | F144: 159.8 | G144: 179.1 | H144: 171.2 | I144: 105 | J144: 121 | K144: 45.9 | L144: 35 | M144: 35 | N144: 46.5
A145: Доказанные и вероятные | B145: 299.5 | C145: 290.9 | D145: 286.9 | E145: 283.3 | F145: 252.8 | G145: 262 | H145: 228.5 | I145: 163.9 | J145: 176.5 | K145: 101.5 | L145: 79.7 | M145: 79.6 | N145: 63
A146: ПАО «Газпром нефть» и его дочерние общества
A147: Доказанные | B147: 461.5 | C147: 601.8 | D147: 650.1 | E147: 615.6 | F147: 625.5 | G147: 634.5 | H147: 666.6 | I147: 654.9 | J147: 683.9 | K147: 675.9 | L147: 655.6 | M147: 652.8 | N147: 630.8
A148: Вероятные | B148: 470.7 | C148: 173.8 | D148: 195.5 | E148: 379.3 | F148: 275.7 | G148: 285.4 | H148: 321 | I148: 418.8 | J148: 393.8 | K148: 432.8 | L148: 458.7 | M148: 486.1 | N148: 507.4
A149: Доказанные и вероятные | B149: 932.2 | C149: 775.6 | D149: 845.6 | E149: 994.9 | F149: 901.2 | G149: 919.9 | H149: 987.6 | I149: 1073.7 | J149: 1077.7 | K149: 1108.7 | L149: 1114.3 | M149: 1138.9 | N149: 1 138,2
A150: Всего без учета доли в запасах организаций, инвестиции в которые классифицированы как совместные операции
A151: Доказанные | B151: 528.8 | C151: 688.9 | D151: 727 | E151: 713.2 | F151: 718.5 | G151: 717.4 | H151: 723.9 | I151: 713.8 | J151: 739.4 | K151: 731.5 | L151: 700.3 | M151: 697.4 | N151: 647.3
A152: Вероятные | B152: 702.9 | C152: 377.6 | D152: 405.5 | E152: 565 | F152: 435.5 | G152: 464.5 | H152: 492.2 | I152: 523.8 | J152: 514.8 | K152: 478.7 | L152: 493.7 | M152: 521.1 | N152: 553.9
A153: Доказанные и вероятные | B153: 1231.7 | C153: 1066.5 | D153: 1132.5 | E153: 1278.2 | F153: 1154 | G153: 1181.9 | H153: 1216.1 | I153: 1237.6 | J153: 1254.2 | K153: 1210.2 | L153: 1194 | M153: 1218.5 | N153: 1 201,2
A154: Организации, инвестиции в которые классифицированы как совместные операции в доле, приходящейся на Группу Газпром
A155: Доказанные | B155: x | C155: x | D155: x | E155: x | F155: x | G155: x | H155: x | I155: 105.7 | J155: 95.4 | K155: 99.1 | L155: 92.4 | M155: 92.1 | N155: 89.5
A156: Вероятные | B156: x | C156: x | D156: x | E156: x | F156: x | G156: x | H156: x | I156: 65 | J156: 57.6 | K156: 65.1 | L156: 69 | M156: 68.1 | N156: 69.3
A157: Доказанные и вероятные | B157: х | C157: х | D157: х | E157: х | F157: х | G157: х | H157: х | I157: 170.7 | J157: 153 | K157: 164.2 | L157: 161.4 | M157: 160.2 | N157: 158.8
A158: Всего с учетом доли в запасах организаций, инвестиции в которые классифицированы как совместные операции
A159: Доказанные | B159: x | C159: x | D159: x | E159: x | F159: x | G159: x | H159: x | I159: 819.5 | J159: 834.8 | K159: 830.5 | L159: 792.7 | M159: 789.5 | N159: 736.8
A160: Вероятные | B160: x | C160: x | D160: x | E160: x | F160: x | G160: x | H160: x | I160: 588.8 | J160: 572.4 | K160: 543.9 | L160: 562.7 | M160: 589.2 | N160: 623.2
A161: Доказанные и вероятные | B161: x | C161: x | D161: x | E161: x | F161: x | G161: x | H161: x | I161: 1408.3 | J161: 1407.2 | K161: 1374.4 | L161: 1355.4 | M161: 1378.7 | N161: 1 360,0
A162: * Без учета доли Группы Газпром в запасах и добыче организаций, инвестиции в которые классифицированы как совместные операции.
A163: ** Состав учитываемых обществ приведен в Глоссарии.
A165: Распределение разведанных запасов углеводородов по российской классификации Группы Газпром на территории Российской Федерации
A166: (с учетом доли в запасах организаций, инвестиции в которые классифицированы как совместные операции)
B167: По состоянию на 31 декабря
B168: 2005* | C168: 2006* | D168: 2007* | E168: 2008* | F168: 2009* | G168: 2010* | H168: 2011* | I168: 2012 | J168: 2013 | K168: 2014 | L168: 2015 | M168: 2016 | N168: 2017
A169: Природный газ, млрд м3
A170: Уральский ФО | B170: 22341.2 | C170: 21937.3 | D170: 21514.1 | E170: 24265.2 | F170: 24390.6 | G170: 23566.8 | H170: 23401.1 | I170: 23144.2 | J170: 22456.6 | K170: 22032.2 | L170: 21613.5 | M170: 21309 | N170: 20 302,6
A171: Северо-Западный ФО | B171: 94.2 | C171: 93.2 | D171: 93.3 | E171: 92.2 | F171: 90.4 | G171: 89.3 | H171: 88.2 | I171: 87.4 | J171: 86.9 | K171: 85.8 | L171: 85.1 | M171: 307.3 | N171: 319.3
A172: Южный и Северо-Кавказский ФО | B172: 2616.6 | C172: 2594.8 | D172: 2581.8 | E172: 2569 | F172: 2560.7 | G172: 2545.4 | H172: 2523.1 | I172: 2510.5 | J172: 2498.9 | K172: 2997.4 | L172: 2985.3 | M172: 2973.1 | N172: 2 961,1
A173: Приволжский ФО | B173: 830.4 | C173: 810.6 | D173: 792.8 | E173: 774.7 | F173: 758.5 | G173: 751.3 | H173: 735.4 | I173: 717.8 | J173: 696.2 | K173: 684.1 | L173: 663.5 | M173: 648.9 | N173: 640.7
A174: Сибирский ФО | B174: 303.9 | C174: 295 | D174: 275.5 | E174: 291.7 | F174: 284.7 | G174: 308.3 | H174: 1668.1 | I174: 1737.5 | J174: 1755.1 | K174: 1936.7 | L174: 1971.6 | M174: 2103.3 | N174: 2 102,1
A175: Дальневосточный ФО | B175: 8.8 | C175: 8.8 | D175: 22 | E175: 401.7 | F175: 402.2 | G175: 456.6 | H175: 1106.2 | I175: 1181 | J175: 1197.2 | K175: 1197.2 | L175: 1402.1 | M175: 1488.3 | N175: 1 420,1
A176: Континентальный шельф Российской Федерации | B176: 2935.6 | C176: 4114.5 | D176: 4505.9 | E176: 4728.7 | F176: 5091.3 | G176: 5334.6 | H176: 5524.8 | I176: 5791.4 | J176: 7005.7 | K176: 7168 | L176: 7426.2 | M176: 7614 | N176: 7 609,5
A177: Всего | B177: 29130.7 | C177: 29854.2 | D177: 29785.4 | E177: =SUM(E170:E176) -> 33123.2 | F177: =SUM(F170:F176) -> 33578.4 | G177: =SUM(G170:G176) -> 33052.3 | H177: 35046.9 | I177: 35169.8 | J177: 35696.6 | K177: 36101.4 | L177: 36147.3 | M177: 36443.9 | N177: 35 355,4
A178: Газовый конденсат, млн т
A179: Уральский ФО | B179: 688.4 | C179: 689.7 | D179: 690.2 | E179: 760.4 | F179: 770.9 | G179: 724 | H179: 730.5 | I179: 713.8 | J179: 712.4 | K179: 675.7 | L179: 695.2 | M179: 690.6 | N179: 750
A180: Северо-Западный ФО | B180: 21.5 | C180: 21.3 | D180: 21.3 | E180: 21.2 | F180: 20.9 | G180: 20.8 | H180: 20.7 | I180: 20.6 | J180: 20.6 | K180: 20.5 | L180: 20.5 | M180: 31.3 | N180: 33.1
A181: Южный и Северо-Кавказский ФО | B181: 395.8 | C181: 392.4 | D181: 389.2 | E181: 386 | F181: 383.5 | G181: 380.6 | H181: 377.4 | I181: 374.3 | J181: 371.5 | K181: 447.5 | L181: 444.7 | M181: 441.9 | N181: 439
A182: Приволжский ФО | B182: 59.2 | C182: 58.7 | D182: 58 | E182: 57.5 | F182: 57.2 | G182: 57.4 | H182: 57.1 | I182: 57.4 | J182: 56.9 | K182: 56.5 | L182: 56 | M182: 55.7 | N182: 55.6
A183: Сибирский ФО | B183: 26.9 | C183: 26.3 | D183: 21.8 | E183: 22.6 | F183: 21.1 | G183: 21.2 | H183: 89.9 | I183: 92.8 | J183: 91.4 | K183: 92.6 | L183: 92.3 | M183: 97 | N183: 96.9
A184: Дальневосточный ФО | B184: 0.1 | C184: 0.1 | D184: 0.1 | E184: 5.8 | F184: 6 | G184: 6.9 | H184: 25.2 | I184: 26.4 | J184: 27.3 | K184: 27.3 | L184: 29.6 | M184: 30.5 | N184: 29.4
A185: Континентальный шельф Российской Федерации | B185: 24.4 | C185: 28.5 | D185: 31.9 | E185: 33.6 | F185: 65.5 | G185: 73.9 | H185: 94.7 | I185: 100.8 | J185: 104.3 | K185: 126.9 | L185: 161.2 | M185: 187.9 | N185: 191.6
A186: Всего | B186: 1216.3 | C186: 1217 | D186: 1212.5 | E186: =SUM(E179:E185) -> 1287.1 | F186: =SUM(F179:F185) -> 1325.1 | G186: =SUM(G179:G185) -> 1284.8 | H186: 1395.5 | I186: 1386.1 | J186: 1384.4 | K186: 1447 | L186: 1499.5 | M186: 1534.9 | N186: 1 595,6
A187: Нефть, млн т
A188: Уральский ФО | B188: 1152 | C188: 1146 | D188: 1261.1 | E188: 1303.1 | F188: 1461.6 | G188: 1400.1 | H188: 1400.3 | I188: 1532.9 | J188: 1550.9 | K188: 1560.1 | L188: 1541.6 | M188: 1531.3 | N188: 1 494,3
A189: Северо-Западный ФО | B189: 2.1 | C189: 13.5 | D189: 14.2 | E189: 15.7 | F189: 16.9 | G189: 17.3 | H189: 17.3 | I189: 4.8 | J189: 4.8 | K189: 4.8 | L189: 5.6 | M189: 19.8 | N189: 20.3
A190: Южный и Северо-Кавказский ФО | B190: 3.5 | C190: 4.5 | D190: 5.4 | E190: 8.8 | F190: 9.7 | G190: 10.6 | H190: 7.4 | I190: 7.3 | J190: 8 | K190: 7.9 | L190: 8 | M190: 7.9 | N190: 7.8
A191: Приволжский ФО | B191: 118.6 | C191: 134.3 | D191: 133.9 | E191: 133.3 | F191: 145.1 | G191: 144.5 | H191: 153.8 | I191: 156.2 | J191: 159 | K191: 159.9 | L191: 200.2 | M191: 202.5 | N191: 228.1
A192: Сибирский ФО | B192: 31.3 | C192: 38.5 | D192: 44.6 | E192: 47.6 | F192: 58.3 | G192: 61.9 | H192: 86 | I192: 188.5 | J192: 191.4 | K192: 198.9 | L192: 205 | M192: 201.3 | N192: 199.6
A193: Дальневосточный ФО | B193: 2.7 | C193: 2.7 | D193: 3.3 | E193: 45.8 | F193: 46 | G193: 51.1 | H193: 55.1 | I193: 55.1 | J193: 57.5 | K193: 57.6 | L193: 58.4 | M193: 54.6 | N193: 36.8
A194: Континентальный шельф Российской Федерации | B194: 47.3 | C194: 47.4 | D194: 47.4 | E194: 47.4 | F194: 47.4 | G194: 47.4 | H194: 47.4 | I194: 47.4 | J194: 47.4 | K194: 63.9 | L194: 63.2 | M194: 61.1 | N194: 58.4
A195: Всего | B195: 1357.5 | C195: 1386.9 | D195: 1509.9 | E195: =SUM(E188:E194) -> 1601.7 | F195: =SUM(F188:F194) -> 1785 | G195: =SUM(G188:G194) -> 1732.9 | H195: 1767.3 | I195: 1992.2 | J195: 2019 | K195: 2053.1 | L195: 2082 | M195: 2078.5 | N195: 2 045,3
A196: * Без учета доли Группы Газпром в запасах организаций, инвестиции в которые классифицированы как совместные операции.
A197: Примечание. До 2016 г. запасы углеводородов приведены по категориям A+B+C1, начиная с оценки по состоянию на 31 декабря 2016 г. — по категориям A+B1+C1. В соответствии с новой Классификацией запасов и ресурсов нефти и горючих газов, утвержденной приказом Минприроды России от 1 ноября 2013 г. № 477 и вступившей в силу с 1 января 2016 г., категории А+В1+С1 представляют собой разведанные запасы с высокой степенью геологической изученности и соответствуют ранее принятым категориям А+В+С1.
A199: Вернуться к Содержанию

Sheet Запасы ассоц. и совм. предпр.
A1: Разведанные запасы углеводородов по российской классификации ассоциированных организаций и совместных предприятий на территории Российской Федерации в доле, приходящейся на Группу Газпром
A2: Метрические единицы
B3: По состоянию на 31 декабря
B4: 2010* | C4: 2011* | D4: 2012 | E4: 2013 | F4: 2014 | G4: 2015 | H4: 2016 | I4: 2017
A5: Природный газ, млрд м3 | B5: 645.4 | C5: 717.4 | D5: 732.2 | E5: 851.5 | F5: 971.7 | G5: 1035.5 | H5: 999.1 | I5: 1 003,8
A6: Газовый конденсат, млн т | B6: 57.8 | C6: 60.1 | D6: 62 | E6: 80.1 | F6: 97 | G6: 112.1 | H6: 104.5 | I6: 100.8
A7: Нефть, млн т | B7: 611.8 | C7: 728.6 | D7: 518.3 | E7: 542 | F7: 575.4 | G7: 566.9 | H7: 571.5 | I7: 578.3
A8: * Включая долю Группы Газпром в запасах организаций, инвестиции в которые классифицированы как совместные операции.
A10: Нефтяной эквивалент
B11: По состоянию на 31 декабря
B12: 2010* | C12: 2011* | D12: 2012 | E12: 2013 | F12: 2014 | G12: 2015 | H12: 2016 | I12: 2017
A13: Природный газ, млн барр. н. э. | B13: =B5*6.49 -> 4188.646 | C13: 4655.926 | D13: 4751.978 | E13: 5526.235 | F13: 6306.333 | G13: 6720.395 | H13: =H5*6.49 -> 6484.159 | I13: 6 514,7
A14: Газовый конденсат, млн барр. н. э. | B14: =B6*8.18 -> 472.804 | C14: 491.618 | D14: 507.16 | E14: 655.218 | F14: 793.46 | G14: 916.978 | H14: =H6*8.18 -> 854.81 | I14: 824.5
A15: Нефть, млн барр. н. э. | B15: 4484.5 | C15: 5340.6 | D15: 3799.1 | E15: 3972.9 | F15: 4217.7 | G15: 4155.4 | H15: =H7*7.33 -> 4189.095 | I15: 4 238,9
A16: Всего, млн барр. н. э. | B16: =B13+B14+B15 -> 9145.95 | C16: 10488.144 | D16: 9058.238 | E16: 10154.353 | F16: 11317.493 | G16: 11792.773 | H16: =H13+H14+H15 -> 11528.064 | I16: 11 578,1
A17: * Включая долю Группы Газпром в запасах организаций, инвестиции в которые классифицированы как совместные операции.
A18: Примечание. Группа Газпром осуществляет управленческий учет запасов и добычи углеводородов в метрических единицах измерения. В настоящем Справочнике пересчет объемов запасов газа из метрической системы в баррели нефтяного эквивалента выполнен исходя из соотношения 1 тыс. м3 природного газа = 6,49 барр. н. э.
A20: Вернуться к Содержанию

Sheet Движение запасов
A1: Движение разведанных запасов углеводородов Группы Газпром по российской классификации на территории Российской Федерации, 2012–2017 гг.
A2: (с учетом доли в запасах организаций, инвестиции в которые классифицированы как совместные операции)
B3: Природный газ | C3: Газовый конденсат * | D3: Нефть
B4: млрд м3 | C4: млн т | D4: млн т
A5: Запасы на 31.12.2012 г. | B5: 35169.8 | C5: 1386.1 | D5: 1992.2
A6: Прирост запасов за счет геологоразведки | B6: 647.8 | C6: 5.4 | D6: 48.2
A7: Передача запасов, разведанных в 2013 г., в нераспределенный фонд недр России** и на баланс других компаний, приобретение с баланса других компаний | B7: -137.2 | C7: -1.9 | D7: -1.4
A8: Получение лицензий, в т. ч.: | B8: 484.1 | C8: 3.6 | D8: –
A9: по факту открытия*** | B9: 0.9 | C9: 0.1 | D9: –
A10: по решению Правительства России без проведения конкурса | B10: 483.2 | C10: 3.5 | D10: –
A11: Сдача лицензий | B11: – | C11: – | D11: –
A12: Приобретение активов | B12: 13.7 | C12: 0.5 | D12: –
A13: Выбытие активов | B13: – | C13: – | D13: –
A14: Переоценка | B14: 5.6 | C14: 1.2 | D14: 22.3
A15: Добыча (включая потери) | B15: -487,2**** | C15: -10.5 | D15: -42.3
A16: Запасы на 31.12.2013 г. | B16: 35696.6 | C16: 1384.4 | D16: 2019
A17: Прирост запасов за счет геологоразведки | B17: 822.5 | C17: 114.2 | D17: 24.7
A18: Передача запасов, разведанных в 2014 г., в нераспределенный фонд недр России** и на баланс других компаний, приобретение с баланса других компаний | B18: -91.1 | C18: -6.9 | D18: 2.3
A19: Получение лицензий, в т. ч.: | B19: 182.3 | C19: 2.8 | D19: 5.8
A20: по факту открытия*** | B20: – | C20: – | D20: –
A21: по решению Правительства России без проведения конкурса | B21: – | C21: – | D21: –
A22: Сдача лицензий | B22: – | C22: – | D22: -0.1
A23: Приобретение активов | B23: – | C23: – | D23: –
A24: Выбытие активов | B24: – | C24: – | D24: –
A25: Переоценка | B25: -66 | C25: -37 | D25: 44.7
A26: Добыча (включая потери) | B26: -442,9**** | C26: -10.5 | D26: -43.3
A27: Запасы на 31.12.2014 г. | B27: 36101.4 | C27: 1447 | D27: 2053.1
A28: Прирост запасов за счет геологоразведки | B28: 531.1 | C28: 68.5 | D28: 20.6
A29: Передача запасов, разведанных в 2015 г., в нераспределенный фонд недр России** и на баланс других компаний, приобретение с баланса других компаний | B29: -62.9 | C29: -4.7 | D29: 0.9
A30: Получение лицензий, в т. ч.: | B30: – | C30: – | D30: 4.2
A31: по факту открытия*** | B31: – | C31: – | D31: –
A32: по решению Правительства России без проведения конкурса | B32: – | C32: – | D32: –
A33: Сдача лицензий | B33: – | C33: – | D33: –
A34: Приобретение активов | B34: – | C34: – | D34: –
A35: Выбытие активов | B35: – | C35: – | D35: –
A36: Переоценка | B36: -5 | C36: -0.1 | D36: 47.1
A37: Добыча (включая потери) | B37: -417,3**** | C37: -11.2 | D37: -43.9
A38: Запасы на 31.12.2015 г. | B38: 36147.3 | C38: 1499.5 | D38: 2082
A39: Прирост запасов за счет геологоразведки | B39: 457.4 | C39: 38 | D39: 19.3
A40: Передача запасов, разведанных в 2016 г., в нераспределенный фонд недр России** и на баланс других компаний, приобретение с баланса других компаний | B40: -2.4 | C40: -1.7 | D40: -2
A41: Получение лицензий, в т. ч.: | B41: 257.5 | C41: 10.9 | D41: 15
A42: по факту открытия*** | B42: − | C42: − | D42: −
A43: по решению Правительства России без проведения конкурса | B43: − | C43: − | D43: −
A44: Сдача лицензий | B44: -0.6 | C44: − | D44: −
A45: Приобретение активов | B45: − | C45: − | D45: −
A46: Выбытие активов | B46: − | C46: − | D46: −
A47: Переоценка | B47: 2 | C47: -0.1 | D47: 11.1
A48: Добыча (включая потери) | B48: -417,3**** | C48: -11.7 | D48: -46.9
A49: Запасы на 31.12.2016 г. | B49: 36443.9 | C49: 1534.9 | D49: 2078.5
A50: Прирост запасов за счет геологоразведки | B50: 852.9 | C50: 95.6 | D50: 3.3
A51: Передача запасов, разведанных в 2017 г., в нераспределенный фонд недр России** и на баланс других компаний, приобретение с баланса других компаний | B51: -46.4 | C51: − | D51: 1.2
A52: Получение лицензий, в т. ч.: | B52: 12.8 | C52: 1.9 | D52: −
A53: по факту открытия*** | B53: − | C53: − | D53: −
A54: по решению Правительства России без проведения конкурса | B54: − | C54: − | D54: −
A55: Сдача лицензий | B55: -0.1 | C55: − | D55: −
A56: Приобретение активов | B56: − | C56: − | D56: −
A57: Выбытие активов | B57: − | C57: − | D57: -9.4
A58: Переоценка | B58: -1437.8 | C58: -24.8 | D58: 19.8
A59: Добыча (включая потери) | B59: -469,9**** | C59: -12 | D59: -48.1
A60: Запасы на 31.12.2017 г. | B60: 35355.4 | C60: 1595.6 | D60: 2045.3
A61: * Изменение запасов газового конденсата за счет добычи отражается в пересчете на стабильный газовый конденсат (С5+). Объем добычи нестабильного газового конденсата Группой Газпром приведен в разделе «Добыча».
A62: ** В соответствии с законодательством России недропользователь не имеет безусловного права на разработку запасов, обнаруженных им на участках лицензий с целью геологического изучения и за пределами лицензионных участков. Такие запасы передаются в нераспределенный фонд недр Российской Федерации. В дальнейшем недропользователь имеет преимущественное право на получение лицензии на их разработку.
A63: *** Включает полученные лицензии на разработку запасов, разведанных Группой в предыдущие годы.
A64: **** Исключая растворенный газ.
A66: Вернуться к Содержанию

Sheet Открытые месторождения
A1: Наименования месторождений углеводородов, открытых Группой Газпром на территории Российской Федерации, 2013–2017 гг.
A2: (без учета месторождений, открытых организациями, инвестиции в которые классифицированы как совместные операции)
A3: Наименования открытых месторождений | B3: Год открытия | D3: Типы открытых месторождений | F3: Местоположение
A4: им. П. Мангазеева | B4: 2013 | D4: Н | F4: Томская область
A5: Восточно-Мыгинское | D5: Н | F5: Томская область
A6: Восточно-Имбинское | B6: 2014 | D6: Г | F6: Красноярский край
A7: Падинское | B7: 2015 | D7: ГК | F7: ЯНАО
A8: Нарыкско-Осташкинское | D8: метаноугольное | F8: Кемеровская область
A9: Западно-Чатылькинское | B9: 2016 | D9: Н | F9: ЯНАО
A10: Новосамарское | D10: Н | F10: Оренбургская область
A11: Южно-Лунское | B11: 2017 | D11: ГК | F11: Континентальный шельф Российской Федерации в Охотском море
A12: Салаирское | D12: ГК | F12: Красноярский край
A13: им. А. Жагрина | D13: Н | F13: ХМАО – Югра
A14: Новозаринское | D14: Н | F14: Оренбургская область
A15: * Тип в соответствии с действующей в России Классификацией запасов и ресурсов нефти и горючих газов: НГК — нефтегазоконденсатное, НГ — нефтегазовое, ГК — газоконденсатное, Г — газовое, Н — нефтяное.
A17: Вернуться к Содержанию

Sheet Площадь участков
A1: Лицензии
A2: Площадь лицензионных участков на территории Российской Федерации по состоянию на 31 декабря 2017 г., тыс. км2
A3: Категория лицензии* | B3: Уральский ФО | C3: Северо-Западный ФО | D3: Южный и Северо- Кавказский ФО | E3: Приволжский ФО | F3: Сибирский ФО | G3: Дальневосточный ФО | H3: Континентальный шельф Российской Федерации
A4: Группа Газпром
A5: С целью поиска, разведки и добычи (НР) | B5: 24.3 | C5: − | D5: 2.8 | E5: 2.6 | F5: 45.7 | G5: − | H5: 319.3
A6: С целью разведки и добычи (НЭ) | B6: 68.3 | C6: 1.5 | D6: 5.4 | E6: 2.9 | F6: 21.4 | G6: 12.6 | H6: 12.3
A7: С целью геологического изучения недр (НП) | B7: 17.5 | C7: 0.1 | D7: 0.3 | E7: 2.5 | F7: 7.1 | G7: 0.9 | H7: −
A8: Всего | B8: 110.1 | C8: 1.6 | D8: 8.5 | E8: 8 | F8: 74.2 | G8: 13.5 | H8: 331.6
A9: Организации, инвестиции в которые классифицированы как совместные операции
A10: С целью поиска, разведки и добычи (НР) | B10: − | C10: − | D10: − | E10: − | F10: 18.9 | G10: − | H10: −
A11: С целью разведки и добычи (НЭ) | B11: 4.1 | C11: − | D11: − | E11: − | F11: − | G11: − | H11: −
A12: С целью геологического изучения недр (НП) | B12: 0.1 | C12: − | D12: − | E12: − | F12: − | G12: − | H12: −
A13: Всего | B13: 4.2 | C13: − | D13: − | E13: − | F13: 18.9 | G13: − | H13: −
A14: * Категории лицензий указаны в соответствии с российским законодательством.
A16: Вернуться к Содержанию

Sheet Лицензии
A1: Лицензии на основные месторождения углеводородов по состоянию на 31 декабря 2017 г.
A2: Наименование месторождения | B2: Год начала добычи | C2: Общество – держатель лицензии | D2: Доля Группы*, % | E2: Тип месторождения** | F2: Категория лицензии*** | G2: Год истечения срока лицензии**** | O2: Наименование месторождения | P2: Год начала добычи | Q2: Общество — держатель лицензии | R2: Доля Группы*, % | S2: Тип месторождения** | T2: Категория лицензии*** | U2: Год истечения срока лицензии****
A3: Группа Газпром | O3: Группа Газпром
A4: Западная Сибирь (Уральский ФО) | O4: Западная Сибирь (Уральский ФО)
A5: Уренгойское | B5: 1978 | C5: ООО «Газпром добыча Уренгой» | D5: 1 | E5: НГК | F5: НЭ | G5: 2038 | H5: =IF(A5=O5,0,1) -> 0 | I5: =IF(B5=P5,0,1) -> 0 | J5: 0 | K5: 0 | L5: 0 | M5: 0 | N5: 0 | O5: Уренгойское | P5: 1978 | Q5: ООО «Газпром добыча Уренгой» | R5: 1 | S5: НГК | T5: НЭ | U5: 2038
A6: Северо-Уренгойское | B6: 1987 | E6: НГК | F6: НЭ | G6: 2030 | H6: =IF(A6=O6,0,1) -> 0 | I6: =IF(B6=P6,0,1) -> 0 | J6: =IF(C6=Q6,0,1) -> 0 | K6: =IF(D6=R6,0,1) -> 0 | L6: =IF(E6=S6,0,1) -> 0 | M6: =IF(F6=T6,0,1) -> 0 | N6: =IF(G6=U6,0,1) -> 0 | O6: Северо-Уренгойское | P6: 1987 | S6: НГК | T6: НЭ | U6: 2030
A7: Ен-Яхинское | B7: 1985 | E7: НГК | F7: НЭ | G7: 2038 | H7: 0 | I7: 0 | J7: 0 | K7: 0 | L7: 0 | M7: 0 | N7: 0 | O7: Ен-Яхинское | P7: 1985 | S7: НГК | T7: НЭ | U7: 2038
A8: Песцовое | B8: 2004 | E8: НГК | F8: НЭ | G8: 2041 | H8: 0 | I8: 0 | J8: 0 | K8: 0 | L8: 0 | M8: 0 | N8: 0 | O8: Песцовое | P8: 2004 | S8: НГК | T8: НЭ | U8: 2041
A9: Ямбургское | B9: 1991 | C9: ООО «Газпром добыча Ямбург» | D9: 1 | E9: НГК | F9: НЭ | G9: 2054 | H9: 0 | I9: 0 | J9: =IF(C9=Q9,0,1) -> 0 | K9: 0 | L9: 0 | M9: 0 | N9: 0 | O9: Ямбургское | P9: 1991 | Q9: ООО «Газпром добыча Ямбург» | R9: 1 | S9: НГК | T9: НЭ | U9: 2054
A10: Заполярное | B10: 2001 | E10: НГК | F10: НЭ | G10: 2114 | H10: 0 | I10: 0 | J10: 0 | K10: 0 | L10: 0 | M10: 0 | N10: 0 | O10: Заполярное | P10: 2001 | S10: НГК | T10: НЭ | U10: 2114
A11: Северо-Парусовое | B11: – | E11: НГК | F11: НЭ | G11: 2027 | H11: 0 | I11: 0 | J11: 0 | K11: 0 | L11: 0 | M11: 0 | N11: 0 | O11: Северо-Парусовое | P11: – | S11: НГК | T11: НЭ | U11: 2027
A12: Медвежье | B12: 1972 | C12: ООО «Газпром добыча Надым» | D12: 1 | E12: НГК | F12: НЭ | G12: 2086 | H12: 0 | I12: 0 | J12: 0 | K12: 0 | L12: 0 | M12: 0 | N12: 0 | O12: Медвежье | P12: 1972 | Q12: ООО «Газпром добыча Надым» | R12: 1 | S12: НГК | T12: НЭ | U12: 2086
A13: Ямсовейское | B13: 1997 | E13: НГК | F13: НЭ | G13: 2039 | H13: 0 | I13: 0 | J13: 0 | K13: 0 | L13: 0 | M13: 0 | N13: 0 | O13: Ямсовейское | P13: 1997 | S13: НГК | T13: НЭ | U13: 2039
A14: Юбилейное | B14: 1992 | E14: НГК | F14: НЭ | G14: 2063 | H14: 0 | I14: 0 | J14: 0 | K14: 0 | L14: 0 | M14: 0 | N14: 1 | O14: Юбилейное | P14: 1992 | S14: НГК | T14: НЭ | U14: 2018
A15: Харасавэйское | B15: – | E15: ГК | F15: НЭ | G15: 2033 | H15: 0 | I15: 0 | J15: 0 | K15: 0 | L15: 0 | M15: 0 | N15: 0 | O15: Харасавэйское | P15: – | S15: ГК | T15: НЭ | U15: 2033
A16: Бованенковское | B16: 2012 | E16: НГК | F16: НЭ | G16: 2042 | H16: 0 | I16: 0 | J16: 0 | K16: 0 | L16: 0 | M16: 0 | N16: 0 | O16: Бованенковское | P16: 2012 | S16: НГК | T16: НЭ | U16: 2042
A17: Новопортовское | B17: 2012***** | C17: ООО «Газпромнефть-Ямал» | D17: 1 | E17: НГК | F17: НЭ | G17: 2150 | H17: 0 | I17: 0 | J17: 0 | K17: 0 | L17: 0 | M17: 0 | N17: 0 | O17: Новопортовское | P17: 2012***** | Q17: ООО «Газпромнефть-Ямал» | R17: 1 | S17: НГК | T17: НЭ | U17: 2150
A18: Комсомольское | B18: 1993 | C18: ООО «Газпром добыча Ноябрьск» | D18: 1 | E18: НГК | F18: НЭ | G18: 2049 | H18: 0 | I18: 0 | J18: 0 | K18: 0 | L18: 0 | M18: 0 | N18: 0 | O18: Комсомольское | P18: 1993 | Q18: ООО «Газпром добыча Ноябрьск» | R18: 1 | S18: НГК | T18: НЭ | U18: 2049
A19: Еты-Пуровское | B19: 2004 | E19: НГК | F19: НЭ | G19: 2038 | H19: 0 | I19: 0 | J19: 0 | K19: 0 | L19: 0 | M19: 0 | N19: 0 | O19: Еты-Пуровское | P19: 2004 | S19: НГК | T19: НЭ | U19: 2038
A20: Западно-Таркосалинское | B20: 1996 | E20: НГК | F20: НР | G20: 2116 | H20: 0 | I20: 0 | J20: 0 | K20: 0 | L20: 0 | M20: 0 | N20: 0 | O20: Западно-Таркосалинское | P20: 1996 | S20: НГК | T20: НР | U20: 2116
A21: Губкинское | B21: 1999 | C21: ЗАО «Пургаз» | D21: 0.51 | E21: НГК | F21: НЭ | G21: 2040 | H21: 0 | I21: 0 | J21: 0 | K21: 0 | L21: 0 | M21: 0 | N21: 1 | O21: Губкинское | P21: 1999 | Q21: ЗАО «Пургаз» | R21: 0.51 | S21: НГК | T21: НЭ | U21: 2033
A22: Южно-Русское | B22: 2007 | C22: ОАО «Севернефтегазпром» | D22: 50,001% (обыкновенных акций) | E22: НГК | F22: НЭ | G22: 2043 | H22: 0 | I22: 0 | J22: 0 | K22: 0 | L22: 0 | M22: 0 | N22: 0 | O22: Южно-Русское | P22: 2007 | Q22: ОАО «Севернефтегазпром» | R22: 50,001% (обыкновенных акций) | S22: НГК | T22: НЭ | U22: 2043
A23: Западно-Тамбейское | B23: – | C23: ПАО «Газпром» | E23: НГК | F23: НЭ | G23: 2028 | H23: 0 | I23: 0 | J23: 0 | K23: 0 | L23: 0 | M23: 0 | N23: 0 | O23: Западно-Тамбейское | P23: – | Q23: ПАО «Газпром» | S23: НГК | T23: НЭ | U23: 2028
A24: Крузенштернское | B24: – | E24: ГК | F24: НЭ | G24: 2028 | H24: 0 | I24: 0 | J24: 0 | K24: 0 | L24: 0 | M24: 0 | N24: 0 | O24: Крузенштернское | P24: – | S24: ГК | T24: НЭ | U24: 2028
A25: Малыгинское | B25: – | E25: ГК | F25: НЭ | G25: 2028 | H25: 0 | I25: 0 | J25: 0 | K25: 0 | L25: 0 | M25: 0 | N25: 0 | O25: Малыгинское | P25: – | S25: ГК | T25: НЭ | U25: 2028
A26: Северо-Тамбейское | B26: – | E26: ГК | F26: НЭ | G26: 2028 | H26: 0 | I26: 0 | J26: 0 | K26: 0 | L26: 0 | M26: 0 | N26: 0 | O26: Северо-Тамбейское | P26: – | S26: ГК | T26: НЭ | U26: 2028
A27: Тасийское | B27: – | E27: ГК | F27: НЭ | G27: 2028 | H27: 0 | I27: 0 | J27: 0 | K27: 0 | L27: 0 | M27: 0 | N27: 0 | O27: Тасийское | P27: – | S27: ГК | T27: НЭ | U27: 2028
A28: Антипаютинское | B28: – | E28: Г | F28: НЭ | G28: 2028 | H28: 0 | I28: 0 | J28: 0 | K28: 0 | L28: 0 | M28: 0 | N28: 0 | O28: Антипаютинское | P28: – | S28: Г | T28: НЭ | U28: 2028
A29: Тота-Яхинское | B29: – | E29: Г | F29: НЭ | G29: 2028 | H29: 0 | I29: 0 | J29: 0 | K29: 0 | L29: 0 | M29: 0 | N29: 0 | O29: Тота-Яхинское | P29: – | S29: Г | T29: НЭ | U29: 2028
A30: Тазовское | B30: – | C30: ООО «Газпромнефть-Ямал» | D30: 1 | E30: НГК | F30: НР | G30: 2025
A31: Сугмутское | B31: 1995 | C31: АО «Газпромнефть-Ноябрьскнефтегаз» | D31: 1 | E31: Н | F31: НЭ | G31: 2089 | H31: 0 | I31: 0 | J31: =IF(C30=Q31,0,1) -> 1 | K31: =IF(D30=R31,0,1) -> 0 | L31: 0 | M31: 0 | N31: 0 | O31: Сугмутское | P31: 1995 | Q31: АО «Газпромнефть-Ноябрьскнефтегаз» | R31: 1 | S31: Н | T31: НЭ | U31: 2089
A32: Суторминское | B32: 1982 | E32: НГК | F32: НЭ | G32: 2110 | H32: 0 | I32: 0 | J32: 0 | K32: 0 | L32: 0 | M32: 0 | N32: 1 | O32: Суторминское | P32: 1982 | S32: НГК | T32: НЭ | U32: 2067
A33: Муравленковское | B33: 1982 | E33: НГ | F33: НЭ | G33: 2072 | H33: 0 | I33: 0 | J33: 0 | K33: 0 | L33: 0 | M33: 0 | N33: 0 | O33: Муравленковское | P33: 1982 | S33: НГ | T33: НЭ | U33: 2072
A34: Спорышевское | B34: 1996 | E34: Н | F34: НЭ | G34: 2083 | H34: 0 | I34: 0 | J34: 0 | K34: 0 | L34: 0 | M34: 0 | N34: 0 | O34: Спорышевское | P34: 1996 | S34: Н | T34: НЭ | U34: 2083
A35: Южная часть Приобского месторождения | B35: 1999 | C35: ООО «Газпромнефть-Хантос» | D35: 1 | E35: Н | F35: НЭ | G35: 2038 | H35: 0 | I35: 0 | J35: 0 | K35: 0 | L35: 0 | M35: 0 | N35: 0 | O35: Южная часть Приобского месторождения | P35: 1999 | Q35: ООО «Газпромнефть-Хантос» | R35: 1 | S35: Н | T35: НЭ | U35: 2038
A36: Вынгапуровское (ХМАО — Югра) | B36: 1982 | C36: ООО «Заполярнефть» | D36: 1 | E36: НГК | F36: НЭ | G36: 2034 | H36: 0 | I36: 0 | J36: 0 | K36: 0 | L36: 0 | M36: 0 | N36: 0 | O36: Вынгапуровское (ХМАО — Югра) | P36: 1982 | Q36: ООО «Заполярнефть» | R36: 1 | S36: НГК | T36: НЭ | U36: 2034
A37: Юг России (Южный ФО) | H37: 0 | I37: 0 | J37: 0 | K37: 0 | L37: 0 | M37: 0 | N37: 0 | O37: Юг России (Южный ФО)
A38: Астраханское | B38: 1986 | C38: ООО «Газпром добыча Астрахань» | D38: 1 | E38: ГК | F38: НЭ | G38: 2019 | H38: 0 | I38: 0 | J38: 0 | K38: 0 | L38: 0 | M38: 0 | N38: 0 | O38: Астраханское | P38: 1986 | Q38: ООО «Газпром добыча Астрахань» | R38: 1 | S38: ГК | T38: НЭ | U38: 2019
A39: Западно-Астраханское | B39: – | C39: ПАО «Газпром» | E39: ГК | F39: НР | G39: 2029 | H39: 0 | I39: 0 | J39: 0 | K39: 0 | L39: 0 | M39: 0 | N39: 0 | O39: Западно-Астраханское | P39: – | Q39: ПАО «Газпром» | S39: ГК | T39: НР | U39: 2029
A40: Южный Урал (Приволжский ФО) | H40: 0 | I40: 0 | J40: 0 | K40: 0 | L40: 0 | M40: 0 | N40: 0 | O40: Южный Урал (Приволжский ФО)
A41: Оренбургское | B41: 1974 | C41: ООО «Газпром добыча Оренбург» | D41: 1 | E41: НГК | F41: НЭ | G41: 2038 | H41: 0 | I41: 0 | J41: 0 | K41: 0 | L41: 0 | M41: 0 | N41: 0 | O41: Оренбургское | P41: 1974 | Q41: ООО «Газпром добыча Оренбург» | R41: 1 | S41: НГК | T41: НЭ | U41: 2038
A42: Восточный участок Оренбургского НГКМ | B42: 1994***** | C42: ООО «Газпром нефть Оренбург» | D42: 100 % | E42: НГК | F42: НЭ | G42: 2138 | H42: 0 | I42: 0 | J42: 0 | K42: 0 | L42: 0 | M42: 0 | N42: 0 | O42: Восточный участок Оренбургского НГКМ | P42: 1994***** | Q42: ООО «Газпром нефть Оренбург» | R42: 100 % | S42: НГК | T42: НЭ | U42: 2138
A43: Восточная Сибирь и Дальний Восток (Сибирский и Дальневосточный ФО) | H43: 0 | I43: 0 | J43: 0 | K43: 0 | L43: 0 | M43: 0 | N43: 0 | O43: Восточная Сибирь и Дальний Восток (Сибирский и Дальневосточный ФО)
A44: Чаяндинское | B44: – | C44: ПАО «Газпром» | E44: НГК | F44: НЭ | G44: 2028 | H44: 0 | I44: 0 | J44: 0 | K44: 0 | L44: 0 | M44: 0 | N44: 0 | O44: Чаяндинское | P44: – | Q44: ПАО «Газпром» | S44: НГК | T44: НЭ | U44: 2028
A45: Ковыктинское (включая Хандинскую площадь) | B45: – | E45: ГК | F45: НЭ | G45: 2037 | H45: 0 | I45: 0 | J45: 0 | K45: 0 | L45: 0 | M45: 0 | N45: 0 | O45: Ковыктинское (включая Хандинскую площадь) | P45: – | S45: ГК | T45: НЭ | U45: 2037
A46: Тас-Юряхское | B46: – | E46: НГК | F46: НЭ | G46: 2031 | H46: 0 | I46: 0 | J46: 0 | K46: 0 | L46: 0 | M46: 0 | N46: 0 | O46: Тас-Юряхское | P46: – | S46: НГК | T46: НЭ | U46: 2031
A47: Соболох-Неджелинское | B47: – | E47: ГК | F47: НЭ | G47: 2031 | H47: 0 | I47: 0 | J47: 0 | K47: 0 | L47: 0 | M47: 0 | N47: 0 | O47: Соболох-Неджелинское | P47: – | S47: ГК | T47: НЭ | U47: 2031
A48: Часть Среднетюнгского месторождения | B48: – | E48: ГК | F48: НЭ | G48: 2031 | H48: 0 | I48: 0 | J48: 0 | K48: 0 | L48: 0 | M48: 0 | N48: 0 | O48: Часть Среднетюнгского месторождения | P48: – | S48: ГК | T48: НЭ | U48: 2031
A49: Верхневилючанское | B49: – | E49: НГК | F49: НЭ | G49: 2031 | H49: 0 | I49: 0 | J49: 0 | K49: 0 | L49: 0 | M49: 0 | N49: 0 | O49: Верхневилючанское | P49: – | S49: НГК | T49: НЭ | U49: 2031
A50: Чиканское | B50: – | E50: ГК | F50: НЭ | G50: 2028 | H50: 0 | I50: 0 | J50: 0 | K50: 0 | L50: 0 | M50: 0 | N50: 0 | O50: Чиканское | P50: – | S50: ГК | T50: НЭ | U50: 2028
A51: Собинское | B51: – | C51: ООО «Газпром добыча Краснодар» | D51: 1 | E51: НГК | F51: НР | G51: 2028 | H51: 0 | I51: 0 | J51: 0 | K51: 0 | L51: 0 | M51: 0 | N51: 0 | O51: Собинское | P51: – | Q51: ООО «Газпром добыча Краснодар» | R51: 1 | S51: НГК | T51: НР | U51: 2028
A52: Континентальный шельф Российской Федерации | H52: 0 | I52: 0 | J52: 0 | K52: 0 | L52: 0 | M52: 0 | N52: 0 | O52: Континентальный шельф Российской Федерации
A53: Штокмановское (включая западную часть) | B53: – | C53: ПАО «Газпром» | E53: ГК | F53: НЭ | G53: 2043 | H53: 0 | I53: 0 | J53: 0 | K53: 0 | L53: 0 | M53: 0 | N53: 0 | O53: Штокмановское (включая западную часть) | P53: – | Q53: ПАО «Газпром» | S53: ГК | T53: НЭ | U53: 2043
A54: Киринское | B54: 2013 | E54: ГК | F54: НЭ | G54: 2028 | H54: 0 | I54: 0 | J54: 0 | K54: 0 | L54: 0 | M54: 0 | N54: 0 | O54: Киринское | P54: 2013 | S54: ГК | T54: НЭ | U54: 2028
A55: Южно-Киринское | B55: – | E55: ГК | F55: НР | G55: 2039 | H55: 0 | I55: 0 | J55: 0 | K55: 0 | L55: 0 | M55: 0 | N55: 0 | O55: Южно-Киринское | P55: – | S55: ГК | T55: НР | U55: 2039
A56: Южно-Лунское | B56: – | E56: ГК | F56: НР | G56: 2039
A57: Мынгинское | B57: – | E57: ГК | F57: НР | G57: 2039 | H57: 0 | I57: 0 | J57: 0 | K57: 0 | L57: 0 | M57: 0 | N57: 0 | O57: Мынгинское | P57: – | S57: ГК | T57: НР | U57: 2039
A58: Ледовое | B58: – | E58: ГК | F58: НЭ | G58: 2033 | H58: 0 | I58: 0 | J58: 0 | K58: 0 | L58: 0 | M58: 0 | N58: 0 | O58: Ледовое | P58: – | S58: ГК | T58: НЭ | U58: 2033
A59: Русановское | B59: – | E59: ГК | F59: НР | G59: 2043 | H59: 0 | I59: 0 | J59: 0 | K59: 0 | L59: 0 | M59: 0 | N59: 0 | O59: Русановское | P59: – | S59: ГК | T59: НР | U59: 2043
A60: Лудловское | B60: – | E60: Г | F60: НР | G60: 2043 | H60: 0 | I60: 0 | J60: 0 | K60: 0 | L60: 0 | M60: 0 | N60: 0 | O60: Лудловское | P60: – | S60: Г | T60: НР | U60: 2043
A61: Ленинградское | B61: – | E61: ГК | F61: НР | G61: 2043 | H61: 0 | I61: 0 | J61: 0 | K61: 0 | L61: 0 | M61: 0 | N61: 0 | O61: Ленинградское | P61: – | S61: ГК | T61: НР | U61: 2043
A62: Каменномысское-море | B62: – | C62: ООО «Газпром добыча Ямбург» | D62: 1 | E62: Г | F62: НЭ | G62: 2057 | H62: 0 | I62: 0 | J62: 0 | K62: 1 | L62: 0 | M62: 0 | N62: 0 | O62: Каменномысское-море | P62: – | Q62: ООО «Газпром добыча Ямбург» | S62: Г | T62: НЭ | U62: 2057
A63: Северо-Каменномысское | B63: – | E63: ГК | F63: НЭ | G63: 2076 | H63: 0 | I63: 0 | J63: 0 | K63: 0 | L63: 0 | M63: 0 | N63: 0 | O63: Северо-Каменномысское | P63: – | S63: ГК | T63: НЭ | U63: 2076
A64: Семаковское | B64: – | E64: Г | F64: НЭ | G64: 2028 | H64: 0 | I64: 0 | J64: 0 | K64: 0 | L64: 0 | M64: 0 | N64: 0 | O64: Семаковское | P64: – | S64: Г | T64: НЭ | U64: 2028
A65: Приразломное | B65: 2013 | C65: ООО «Газпром нефть шельф» | D65: 1 | E65: Н | F65: НЭ | G65: 2043 | H65: 0 | I65: 0 | J65: 0 | K65: 0 | L65: 0 | M65: 0 | N65: 0 | O65: Приразломное | P65: 2013 | Q65: ООО «Газпром нефть шельф» | R65: 1 | S65: Н | T65: НЭ | U65: 2043
A66: Долгинское | B66: – | E66: Н | F66: НЭ | G66: 2035 | H66: 0 | I66: 0 | J66: 1 | K66: 1 | L66: 0 | M66: 0 | N66: 0 | O66: Долгинское | P66: – | Q66: ООО «Газпромнефть-Сахалин» | R66: 1 | S66: Н | T66: НЭ | U66: 2035
A67: Организации, инвестиции в которые классифицированы как совместные операции | H67: 1 | I67: 0 | J67: 0 | K67: 0 | L67: 0 | M67: 0 | N67: 0 | O67: Компании, инвестиции в которые классифицированы как совместные операции
A68: Западная Сибирь (Уральский ФО) | H68: 0 | I68: 0 | J68: 0 | K68: 0 | L68: 0 | M68: 0 | N68: 0 | O68: Западная Сибирь (Уральский ФО)
A69: Западно-Салымское | B69: 2004 | C69: Salym Petroleum Development N.V. | D69: 0.5 | E69: Н | F69: НЭ | G69: 2130 | H69: 0 | I69: 0 | J69: 0 | K69: 0 | L69: 0 | M69: 0 | N69: 0 | O69: Западно-Салымское | P69: 2004 | Q69: Salym Petroleum Development N.V. | R69: 0.5 | S69: Н | T69: НЭ | U69: 2130
A70: Советское (ХМАО — Югра) | B70: 1966 | C70: АО «Томскнефть» ВНК | D70: 0.5 | E70: Н | F70: НЭ | G70: 2145 | H70: 0 | I70: 0 | J70: 1 | K70: 0 | L70: 0 | M70: 0 | N70: 0 | O70: Советское (ХМАО — Югра) | P70: 1966 | Q70: ОАО «Томскнефть» ВНК | R70: 0.5 | S70: Н | T70: НЭ | U70: 2145
A71: Восточная Сибирь и Дальний Восток (Сибирский и Дальневосточный ФО) | H71: =IF(A71=O71,0,1) -> 0 | I71: =IF(B71=P71,0,1) -> 0 | J71: =IF(C71=Q71,0,1) -> 0 | K71: =IF(D71=R71,0,1) -> 0 | L71: =IF(E71=S71,0,1) -> 0 | M71: =IF(F71=T71,0,1) -> 0 | N71: =IF(G71=U71,0,1) -> 0 | O71: Восточная Сибирь и Дальний Восток (Сибирский и Дальневосточный ФО)
A72: Крапивинское | B72: 1984 | C72: АО «Томскнефть» ВНК | D72: 0.5 | E72: Н | F72: НЭ | G72: 2159 | H72: 0 | I72: 0 | J72: 1 | K72: 0 | L72: 0 | M72: 0 | N72: 1 | O72: Крапивинское | P72: 1984 | Q72: ОАО «Томскнефть» ВНК | R72: 0.5 | S72: Н | T72: НЭ | U72: 2044
A73: Советское (Томская область) | B73: 1966 | E73: Н | F73: НЭ | G73: 2145 | H73: 0 | I73: 0 | J73: 0 | K73: 0 | L73: 0 | M73: 0 | N73: 1 | O73: Советское (Томская область) | P73: 1966 | S73: Н | T73: НЭ | U73: 2038
A74: Первомайское (Томская область) | B74: 1981 | E74: Н | F74: НЭ | G74: 2105 | H74: 0 | I74: 0 | J74: 0 | K74: 0 | L74: 0 | M74: 0 | N74: 1 | O74: Первомайское (Томская область) | P74: 1981 | S74: Н | T74: НЭ | U74: 2041
A75: Лугинецкое | B75: 1982 | E75: НГК | F75: НЭ | G75: 2098 | H75: 0 | I75: 0 | J75: 0 | K75: 0 | L75: 0 | M75: 0 | N75: 1 | O75: Лугинецкое | P75: 1982 | S75: НГК | T75: НЭ | U75: 2039
A76: Ассоциированные организации и совместные предприятия | H76: 1 | I76: 0 | J76: 0 | K76: 0 | L76: 0 | M76: 0 | N76: 0 | O76: Ассоциированные компании и совместные предприятия
A77: Западная Сибирь (Уральский ФО) | H77: 0 | I77: 0 | J77: 0 | K77: 0 | L77: 0 | M77: 0 | N77: 0 | O77: Западная Сибирь (Уральский ФО)
A78: Восточно-Мессояхское | B78: 2013***** | C78: АО «Мессояханефтегаз» | D78: 0.5 | E78: НГК | F78: НР | G78: 2140 | H78: 0 | I78: 0 | J78: 0 | K78: 0 | L78: 0 | M78: 0 | N78: 0 | O78: Восточно-Мессояхское | P78: 2013***** | Q78: АО «Мессояханефтегаз» | R78: 0.5 | S78: НГК | T78: НР | U78: 2140
A79: Западно-Мессояхское | B79: – | E79: НГ | F79: НР | G79: 2020 | H79: 0 | I79: 0 | J79: 0 | K79: 0 | L79: 0 | M79: 0 | N79: 0 | O79: Западно-Мессояхское | P79: – | S79: НГ | T79: НР | U79: 2020
A80: Восточная Сибирь и Дальний Восток (Сибирский и Дальневосточный ФО) | H80: 0 | I80: 0 | J80: 0 | K80: 0 | L80: 0 | M80: 0 | N80: 0 | O80: Восточная Сибирь и Дальний Восток (Сибирский и Дальневосточный ФО)
A81: Куюмбинское | B81: 2010***** | C81: ООО «Славнефть-Красноярскнефтегаз» | D81: 0.5 | E81: НГК | F81: НР | G81: 2171 | H81: 0 | I81: 0 | J81: 0 | K81: 0 | L81: 0 | M81: 0 | N81: 0 | O81: Куюмбинское | P81: 2010***** | Q81: ООО «Славнефть-Красноярскнефтегаз» | R81: 0.5 | S81: НГК | T81: НР | U81: 2171
A82: Пильтун-Астохское | B82: 1999 | C82: Sakhalin Energy Investment Company Ltd. | D82: 50% + 1 акция | E82: НГК | F82: НР | G82: 2021 | H82: 0 | I82: 0 | J82: 0 | K82: 0 | L82: 0 | M82: 0 | N82: 0 | O82: Пильтун-Астохское | P82: 1999 | Q82: Sakhalin Energy Investment Company Ltd. | R82: 50% + 1 акция | S82: НГК | T82: НР | U82: 2021
A83: Лунское | B83: 2009 | E83: НГК | F83: НР | G83: 2021 | H83: 0 | I83: 0 | J83: 0 | K83: 0 | L83: 0 | M83: 0 | N83: 0 | O83: Лунское | P83: 2009 | S83: НГК | T83: НР | U83: 2021
A84: * Суммарная доля Группы в уставном капитале объектов вложения, отраженная в консолидированной финансовой отчетности Группы Газпром по МСФО.
A85: ** Тип в соответствии с действующей в России Классификацией запасов и ресурсов нефти и горючих газов: НГК – нефтегазоконденсатное, НГ – нефтегазовое, ГК – газоконденсатное, Г – газовое, Н – нефтяное.
A86: *** В соответствии с российским законодательством существует несколько типов лицензий для изучения, геологоразведки и добычи природных ресурсов, в т. ч.: лицензии на геологическое изучение (НП); лицензии на разведку и добычу углеводородов (НЭ); лицензии на поиск, разведку и добычу углеводородов (НР). Сокращения приведены в соответствии с классификацией, определенной российским законодательством.
A87: **** Держатели лицензий Группы Газпром выполняют основные условия лицензионных соглашений и имеют право на продление действующих лицензий для завершения поиска или разработки месторождений. Газпром планирует продлевать свои лицензии на период до завершения рентабельной разработки месторождений.
A88: ***** Опытно-промышленная эксплуатация.
A90: Вернуться к Содержанию
O92: Куюмбинское | P92: 2010***** | Q92: ООО «Славнефть-Красноярскнефтегаз» | R92: 0.5 | S92: НГК | T92: НР | U92: 2171
O93: Пильтун-Астохское | P93: 1999 | Q93: Sakhalin Energy Investment Company Ltd. | R93: 50 % + 1 акция | S93: НГК | T93: НР | U93: 2021
O94: Лунское | P94: 2009 | S94: НГК | T94: НР | U94: 2021

Sheet Добыча
A1: Добыча
A2: Добыча углеводородов Группой Газпром на территории Российской Федерации
A3: (с учетом доли в добыче организаций, инвестиции в которые классифицированы как совместные операции)
A4: Метрические единицы
B5: За год, закончившийся 31 декабря
B6: 2005* | C6: 2006* | D6: 2007* | E6: 2008* | F6: 2009* | G6: 2010* | H6: 2011* | I6: 2012 | J6: 2013 | K6: 2014 | L6: 2015 | M6: 2016 | N6: 2017
A7: Природный и попутный газ, млрд м3 | B7: 555 | C7: 555.95 | D7: 548.55 | E7: 549.73 | F7: 461.52 | G7: 508.59 | H7: 513.17 | I7: 487.99 | J7: 488.39 | K7: 444.9 | L7: 419.52 | M7: 420.13 | N7: 472.05
A8: Газовый конденсат, млн т | B8: 11.5 | C8: 11.37 | D8: 11.27 | E8: 10.93 | F8: 10.07 | G8: 11.29 | H8: 12.07 | I8: 12.85 | J8: 14.66 | K8: 14.49 | L8: 15.34 | M8: 15.85 | N8: 15.94
A9: Нефть, млн т | B9: 9.49 | C9: 34.02 | D9: 33.98 | E9: 32.05 | F9: 31.62 | G9: 32.01 | H9: 32.28 | I9: 42.26 | J9: 42.41 | K9: 43.53 | L9: 44.04 | M9: 47.15 | N9: 48.63
A10: * Без учета доли Группы Газпром в добыче организаций, инвестиции в которые классифицированы как совместные операции.
A12: Нефтяной эквивалент
B13: За год, закончившийся 31 декабря
B14: 2005* | C14: 2006* | D14: 2007* | E14: 2008* | F14: 2009* | G14: 2010* | H14: 2011* | I14: 2012 | J14: 2013 | K14: 2014 | L14: 2015 | M14: 2016 | N14: 2017
A15: Природный и попутный газ, млн барр. н.э. | B15: =B7*6.49 -> 3601.95 | C15: 3608.1155 | D15: 3560.0895 | E15: 3567.7477 | F15: 2995.2648 | G15: 3300.7491 | H15: 3330.4733 | I15: 3167.06 | J15: 3169.65 | K15: 2887.4 | L15: 2722.68 | M15: 2726.64 | N15: 3063.6
A16: Газовый конденсат, млн барр. н.э. | B16: 94.07 | C16: 93.01 | D16: 92.19 | E16: 89.41 | F16: 82.37 | G16: 92.35 | H16: 98.73 | I16: 105.11 | J16: 119.92 | K16: 118.53 | L16: 125.48 | M16: 129.65 | N16: 130.39
A17: Нефть, млн барр. н.э. | B17: 69.56 | C17: 249.37 | D17: 249.07 | E17: 234.93 | F17: 231.77 | G17: 234.63 | H17: 236.61 | I17: 309.77 | J17: 310.87 | K17: 319.07 | L17: 322.81 | M17: 345.61 | N17: 356.46
A18: Всего, млн барр. н.э. | B18: =B15+B16+B17 -> 3765.58 | C18: 3950.4955 | D18: 3901.3495 | E18: 3892.0877 | F18: 3309.4048 | G18: 3627.7291 | H18: 3665.8133 | I18: 3581.94 | J18: 3600.44 | K18: 3325 | L18: 3170.97 | M18: 3201.91 | N18: 3550.45
A19: * Без учета доли Группы Газпром в добыче организаций, инвестиции в которые классифицированы как совместные операции.
A20: Примечание. Группа Газпром осуществляет управленческий учет запасов и добычи углеводородов в метрических единицах измерения. В настоящем Справочнике пересчет объемов запасов газа из метрической системы в баррели нефтяного эквивалента выполнен исходя из соотношения 1 тыс. м3 природного газа = 6,49 барр. н. э.
A22: Среднесуточная добыча углеводородов Группой Газпром на территории Российской Федерации
A23: (с учетом доли в добыче организаций, инвестиции в которые классифицированы как совместные операции)
B24: За год, закончившийся 31 декабря
B25: 2005* | C25: 2006* | D25: 2007* | E25: 2008* | F25: 2009* | G25: 2010* | H25: 2011* | I25: 2012 | J25: 2013 | K25: 2014 | L25: 2015 | M25: 2016 | N25: 2017
A26: Природный и попутный газ, млн м3 / сут. | B26: 1520.55 | C26: 1523.15 | D26: 1502.88 | E26: 1501.99 | F26: 1264.4 | G26: 1393.4 | H26: 1405.9 | I26: 1333.3 | J26: 1338 | K26: 1218.9 | L26: 1149.4 | M26: 1147.9 | N26: 1293.3
A27: Газовый конденсат, тыс.т / сут. | B27: 31.51 | C27: 31.15 | D27: 30.88 | E27: 29.86 | F27: 27.6 | G27: 30.9 | H27: 33.1 | I27: 35.1 | J27: 40.2 | K27: 39.7 | L27: 42 | M27: 43.3 | N27: 43.7
A28: Нефть, тыс. т / сут. | B28: 26 | C28: 93.21 | D28: 93.1 | E28: 87.57 | F28: 86.6 | G28: 87.7 | H28: 88.4 | I28: 115.5 | J28: 116.2 | K28: 119.3 | L28: 120.7 | M28: 128.8 | N28: 133.2
A29: * Без учета доли Группы Газпром в добыче организаций, инвестиции в которые классифицированы как совместные операции.
A31: Добыча углеводородов Группой Газпром на территории Российской Федерации
A32: (с учетом доли в добыче организаций, инвестиции в которые классифицированы как совместные операции)
B33: За год, закончившийся 31 декабря
B34: 2005* | C34: 2006* | D34: 2007* | E34: 2008* | F34: 2009* | G34: 2010* | H34: 2011* | I34: 2012 | J34: 2013 | K34: 2014 | L34: 2015 | M34: 2016 | N34: 2017
A35: Природный и попутный газ, млрд м3
A36: ПАО «Газпром» и его основные дочерние общества** | B36: 539.35 | C36: 538.84 | D36: 530.51 | E36: 517.63 | F36: 425.02 | G36: 465.14 | H36: 464.81 | I36: 437.9 | J36: 436.29 | K36: 393.73 | L36: 368.2 | M36: 368.6 | N36: 419.72
A37: ПАО «Газпром нефть» и его дочерние общества | B37: 0.55 | C37: 2.07 | D37: 1.77 | E37: 2.16 | F37: 2.08 | G37: 2.95 | H37: 7.33 | I37: 8.73 | J37: 11.36 | K37: 11.86 | L37: 12.53 | M37: 13.64 | N37: 15.4
A38: ЗАО «Пургаз» | B38: 15.1 | C38: 15.04 | D38: 15.02 | E38: 14.87 | F38: 11.84 | G38: 15.14 | H38: 15.37 | I38: 15.04 | J38: 14.62 | K38: 13.25 | L38: 12.7 | M38: 11.74 | N38: 10.82
A39: ОАО «Севернефтегазпром» | B39: – | C39: – | D39: 1.25 | E39: 15.07 | F39: 22.58 | G39: 25.36 | H39: 25.66 | I39: 25.35 | J39: 25.12 | K39: 25.04 | L39: 25.05 | M39: 25.12 | N39: 25.04
A40: Всего без учета доли в добыче организаций, инвестиции в которые классифицированы как совместные операции | B40: 555 | C40: 555.95 | D40: 548.55 | E40: 549.73 | F40: 461.52 | G40: 508.59 | H40: 513.17 | I40: 487.02 | J40: 487.39 | K40: 443.88 | L40: 418.48 | M40: 419.1 | N40: 470.98
A41: Организации, инвестиции в которые классифицированы как совместные операции в доле, приходящейся на Группу Газпром | B41: x | C41: x | D41: x | E41: x | F41: x | G41: x | H41: x | I41: 0.97 | J41: 1 | K41: 1.02 | L41: 1.04 | M41: 1.03 | N41: 1.07
A42: Всего с учетом доли в добыче организаций, инвестиции в которые классифицированы как совместные операции | B42: x | C42: x | D42: x | E42: x | F42: x | G42: x | H42: x | I42: 487.99 | J42: 488.39 | K42: 444.9 | L42: 419.52 | M42: 420.13 | N42: 472, 05
A43: Газовый конденсат, млн т
A44: ПАО «Газпром» и его основные дочерние общества** | B44: 11.5 | C44: 11.37 | D44: 11.27 | E44: 10.93 | F44: 10.07 | G44: 11.29 | H44: 12.07 | I44: 12.84 | J44: 14.65 | K44: 14.47 | L44: 15.31 | M44: 15.83 | N44: 15.92
A45: ПАО «Газпром нефть» и его дочерние общества | B45: – | C45: – | D45: – | E45: – | F45: – | G45: – | H45: – | I45: 0.01 | J45: 0.01 | K45: 0.02 | L45: 0.03 | M45: 0.02 | N45: 0.02
A46: Всего | B46: 11.5 | C46: 11.37 | D46: 11.27 | E46: 10.93 | F46: 10.07 | G46: 11.29 | H46: 12.07 | I46: 12.85 | J46: 14.66 | K46: 14.49 | L46: 15.34 | M46: 15.85 | N46: 15.94
A47: Нефть, млн т
A48: ПАО «Газпром» и его основные дочерние общества** | B48: 1.29 | C48: 1.3 | D48: 1.32 | E48: 1.27 | F48: 1.55 | G48: 1.85 | H48: 1.9 | I48: 1.7 | J48: 1.69 | K48: 1.73 | L48: 1.74 | M48: 1.55 | N48: 1.5
A49: ПАО «Газпром нефть» и его дочерние общества | B49: 8.2 | C49: 32.72 | D49: 32.66 | E49: 30.78 | F49: 30.07 | G49: 30.16 | H49: 30.38 | I49: 31.63 | J49: 32.15 | K49: 33.56 | L49: 34.3 | M49: 37.74 | N49: 39.48
A50: Всего без учета доли в добыче организаций, инвестиции в которые классифицированы как совместные операции | B50: 9.49 | C50: 34.02 | D50: 33.98 | E50: 32.05 | F50: 31.62 | G50: 32.01 | H50: 32.28 | I50: 33.33 | J50: 33.84 | K50: 35.29 | L50: 36.04 | M50: 39.29 | N50: 40.98
A51: Организации, инвестиции в которые классифицированы как совместные операции в доле, приходящейся на Группу Газпром | B51: x | C51: x | D51: x | E51: x | F51: x | G51: x | H51: x | I51: 8.93 | J51: 8.57 | K51: 8.24 | L51: 8 | M51: 7.86 | N51: 7.65
A52: Всего с учетом доли в добыче организаций, инвестиции в которые классифицированы как совместные операции | B52: x | C52: x | D52: x | E52: x | F52: x | G52: x | H52: x | I52: 42.26 | J52: 42.41 | K52: 43.53 | L52: 44.04 | M52: 47.15 | N52: 48.63
A53: * Без учета доли Группы Газпром в добыче организаций, инвестиции в которые классифицированы как совместные операции.
A54: ** Состав учитываемых обществ приведен в Глоссарии.
A56: Распределение добычи углеводородов Группы Газпром на территории Российской Федерации
A57: (c учетом доли в добыче организаций, инвестиции в которые классифицированы как совместные операции)
B58: За год, закончившийся 31 декабря
B59: 2005* | C59: 2006* | D59: 2007* | E59: 2008* | F59: 2009* | G59: 2010* | H59: 2011* | I59: 2012 | J59: 2013 | K59: 2014 | L59: 2015 | M59: 2016 | N59: 2017
A60: Природный и попутный газ, млрд м3
A61: Уральский ФО | B61: 516.39 | C61: 517.88 | D61: 510.57 | E61: 512.17 | F61: 427.44 | G61: 471.68 | H61: 476.53 | I61: 450.96 | J61: 452.34 | K61: 409.96 | L61: 385.18 | M61: 385.46 | N61: 437.56
A62: Северо-Западный ФО | B62: 2.82 | C62: 2.75 | D62: 2.75 | E62: 2.64 | F62: 2.54 | G62: 2.52 | H62: 2.4 | I62: 2.33 | J62: 2.38 | K62: 2.25 | L62: 2.14 | M62: 2.06 | N62: 2.02
A63: Южный и Северо-Кавказский ФО | B63: 13.55 | C63: 13.36 | D63: 13.37 | E63: 13.23 | F63: 10.76 | G63: 13.01 | H63: 13.21 | I63: 12.89 | J63: 11.86 | K63: 11.24 | L63: 11.15 | M63: 11.28 | N63: 11.58
A64: Приволжский ФО | B64: 18.72 | C64: 18.64 | D64: 18.7 | E64: 18.71 | F64: 17.85 | G64: 18.59 | H64: 17.94 | I64: 17.52 | J64: 17.27 | K64: 16.73 | L64: 16.22 | M64: 15.65 | N64: 14.95
A65: Сибирский ФО | B65: 3.52 | C65: 3.32 | D65: 3.16 | E65: 2.98 | F65: 2.93 | G65: 2.79 | H65: 3.09 | I65: 4.29 | J65: 4.43 | K65: 4.23 | L65: 3.82 | M65: 4.55 | N65: 4.88
A66: Дальневосточный ФО | B66: – | C66: – | D66: – | E66: – | F66: – | G66: – | H66: – | I66: – | J66: 0.2 | K66: 0.39 | L66: 0.4 | M66: 0.41 | N66: 0.43
A67: Континентальный шельф Российской Федерации | B67: – | C67: – | D67: – | E67: – | F67: – | G67: – | H67: – | I67: – | J67: 0.01 | K67: 0.1 | L67: 0.61 | M67: 0.72 | N67: 0.63
A68: Всего | B68: 555 | C68: 555.95 | D68: 548.55 | E68: 549.73 | F68: 461.52 | G68: 508.59 | H68: 513.17 | I68: 487.99 | J68: 488.39 | K68: 444.9 | L68: 419.52 | M68: 420.13 | N68: 472.05
A69: Газовый конденсат, млн т
A70: Уральский ФО | B70: 6.38 | C70: 6.29 | D70: 6.22 | E70: 5.95 | F70: 6.04 | G70: 6.34 | H70: 7.1 | I70: 8.04 | J70: 10.18 | K70: 10.3 | L70: 11.14 | M70: 11.59 | N70: 11.51
A71: Северо-Западный ФО | B71: 0.25 | C71: 0.23 | D71: 0.21 | E71: 0.19 | F71: 0.17 | G71: 0.15 | H71: 0.14 | I71: 0.13 | J71: 0.14 | K71: 0.13 | L71: 0.12 | M71: 0.12 | N71: 0.12
A72: Южный и Северо-Кавказский ФО | B72: 4.24 | C72: 4.25 | D72: 4.27 | E72: 4.26 | F72: 3.35 | G72: 4.14 | H72: 4.22 | I72: 4.13 | J72: 3.78 | K72: 3.56 | L72: 3.51 | M72: 3.56 | N72: 3.68
A73: Приволжский ФО | B73: 0.27 | C73: 0.27 | D73: 0.28 | E73: 0.27 | F73: 0.26 | G73: 0.27 | H73: 0.25 | I73: 0.22 | J73: 0.19 | K73: 0.16 | L73: 0.15 | M73: 0.14 | N73: 0.12
A74: Сибирский ФО | B74: 0.36 | C74: 0.33 | D74: 0.29 | E74: 0.26 | F74: 0.25 | G74: 0.39 | H74: 0.36 | I74: 0.33 | J74: 0.37 | K74: 0.31 | L74: 0.31 | M74: 0.31 | N74: 0.39
A75: Дальневосточный ФО | B75: – | C75: – | D75: – | E75: – | F75: – | G75: – | H75: – | I75: – | J75: 0 | K75: 0.01 | L75: 0.01 | M75: 0.01 | N75: 0.01
A76: Континентальный шельф Российской Федерации | B76: – | C76: – | D76: – | E76: – | F76: – | G76: – | H76: – | I76: – | J76: – | K76: 0.02 | L76: 0.1 | M76: 0.12 | N76: 0.11
A77: Всего | B77: 11.5 | C77: 11.37 | D77: 11.27 | E77: 10.93 | F77: 10.07 | G77: 11.29 | H77: 12.07 | I77: 12.85 | J77: 14.66 | K77: 14.49 | L77: 15.34 | M77: 15.85 | N77: 15.94
A78: Нефть, млн т
A79: Уральский ФО | B79: 8.43 | C79: 31.92 | D79: 31.74 | E79: 29.6 | F79: 28.91 | G79: 28.73 | H79: 28.66 | I79: 32.95 | J79: 32.7 | K79: 32.83 | L79: 32.39 | M79: 34.45 | N79: 35.71
A80: Северо-Западный ФО | B80: 0.09 | C80: 0.07 | D80: 0.08 | E80: 0.07 | F80: 0.06 | G80: 0.06 | H80: 0.05 | I80: 0.04 | J80: 0.05 | K80: 0.03 | L80: 0.04 | M80: 0.03 | N80: 0.02
A81: Южный и Северо-Кавказский ФО | B81: 0.12 | C81: 0.11 | D81: 0.08 | E81: 0.08 | F81: 0.12 | G81: 0.16 | H81: 0.16 | I81: 0.16 | J81: 0.14 | K81: 0.11 | L81: 0.09 | M81: 0.09 | N81: 0.09
A82: Приволжский ФО | B82: 0.56 | C82: 0.6 | D82: 0.64 | E82: 0.68 | F82: 0.7 | G82: 0.69 | H82: 0.75 | I82: 1.23 | J82: 1.77 | K82: 2.46 | L82: 2.76 | M82: 2.85 | N82: 2.85
A83: Сибирский ФО | B83: 0.29 | C83: 1.32 | D83: 1.44 | E83: 1.62 | F83: 1.83 | G83: 2.37 | H83: 2.66 | I83: 7.88 | J83: 7.75 | K83: 7.84 | L83: 7.87 | M83: 7.58 | N83: 7.32
A84: Дальневосточный ФО | B84: – | C84: – | D84: – | E84: – | F84: – | G84: – | H84: – | I84: – | J84: – | K84: – | L84: 0 | M84: – | N84: 0
A85: Континентальный шельф Российской Федерации | B85: – | C85: – | D85: – | E85: – | F85: – | G85: – | H85: – | I85: – | J85: – | K85: 0.26 | L85: 0.89 | M85: 2.15 | N85: 2.64
A86: Всего | B86: 9.49 | C86: 34.02 | D86: 33.98 | E86: 32.05 | F86: 31.62 | G86: 32.01 | H86: 32.28 | I86: 42.26 | J86: 42.41 | K86: 43.53 | L86: 44.04 | M86: 47.15 | N86: 48.63
A87: * Без учета доли Группы Газпром в добыче организаций, инвестиции в которые классифицированы как совместные операции.
A89: Полезное использование ПНГ Группой Газпром на территории Российской Федерации
A90: (c учетом доли в добыче организаций, инвестиции в которые классифицированы как совместные операции)
B91: За год, закончившийся 31 декабря
C92: 2006* | D92: 2007* | E92: 2008* | F92: 2009* | G92: 2010* | H92: 2011* | I92: 2012* | J92: 2013 | K92: 2014 | L92: 2015 | M92: 2016 | N92: 2017
A93: Использование ПНГ, млрд м3
A94: ПАО «Газпром» и его основные дочерние общества** | C94: 1.73 | D94: 1.69 | E94: 1.62 | F94: 1.68 | G94: 1.83 | H94: 2.05 | I94: 1.48 | J94: 1.27 | K94: 1.42 | L94: 1.87 | M94: 1.79 | N94: 1.64
A95: ПАО «Газпром нефть» и его дочерние общества | C95: 2.04 | D95: 1.75 | E95: 2.14 | F95: 2.06 | G95: 2.45 | H95: 2.66 | I95: 4.18 | J95: 5.39 | K95: 6.13 | L95: 6.51 | M95: 7.63 | N95: 8.71
A96: Всего без учета доли в добыче организаций, инвестиции в которые классифицированы как совместные операции | C96: 3.77 | D96: 3.44 | E96: 3.76 | F96: 3.74 | G96: 4.28 | H96: 4.71 | I96: 5.66 | J96: 6.66 | K96: 7.55 | L96: 8.38 | M96: 9.42 | N96: 10.35
A97: Организации, инвестиции в которые классифицированы как совместные операции в доле, приходящейся на Группу Газпром | J97: 0.99 | K97: 1.02 | L97: 1.05 | M97: 1.03 | N97: 1.07
A98: Всего с учетом доли в добыче организаций, инвестиции в которые классифицированы как совместные операции | J98: 7.65 | K98: 8.58 | L98: 9.43 | M98: 10.45 | N98: 11.42
A99: Уровень полезного использования ПНГ, %
A100: ПАО «Газпром» и его основные дочерние общества** | C100: 81.2 | D100: 82.8 | E100: 83.3 | F100: 81.8 | G100: 81.6 | H100: 87 | I100: 83.2 | J100: 90.9 | K100: 93.5 | L100: 95.6 | M100: 97.8 | N100: 98.4
A101: ПАО «Газпром нефть» и его дочерние общества | C101: 45 | D101: 35.7 | E101: 46.8 | F101: 48.1 | G101: 55.3 | H101: 58.8 | I101: 65.7 | J101: 79.5 | K101: 80.5 | L101: 79.6 | M101: 79.2 | N101: 76.2
A102: Всего без учета доли в добыче организаций, инвестиции в которые классифицированы как совместные операции | C102: 56.6 | D102: 49.7 | E102: 57.7 | F102: 59.1 | G102: 64.1 | H102: 68.4 | I102: 69.2 | J102: 81.4 | K102: 82.7 | L102: 82.7 | M102: 82.2 | N102: 79
A103: Организации, инвестиции в которые классифицированы как совместные операции в доле, приходящейся на Группу Газпром | J103: 87.3 | K103: 90 | L103: 89.9 | M103: 87.2 | N103: 88.9
A104: Всего с учетом доли в добыче организаций, инвестиции в которые классифицированы как совместные операции | J104: 82.2 | K104: 83.5 | L104: 83.5 | M104: 82.7 | N104: 79.8
A105: * Без учета доли Группы Газпром добыче организаций, инвестиции в которые классифицированы как совместные операции.
A106: ** Состав учитываемых обществ приведен в Глоссарии.
A108: Вернуться к Содержанию

Sheet Добыча ассоц. и совм. предпр.
A1: Добыча углеводородов ассоциированными организациями и совместными предприятиями на территории России в доле, приходящейся на Группу Газпром
A2: Метрические единицы
B3: За год, закончившийся 31 декабря
B4: 2007* | C4: 2008* | D4: 2009* | E4: 2010* | F4: 2011* | G4: 2012 | H4: 2013 | I4: 2014 | J4: 2015 | K4: 2016 | L4: 2017
A5: Природный и попутный газ, млрд м3 | B5: 8.5 | C5: 11 | D5: 13.6 | E5: 17.6 | F5: 11.3 | G5: 11.9 | H5: 13 | I5: 18.2 | J5: 25.5 | K5: 27.2 | L5: 27
A6: Газовый конденсат, млн т | B6: 0.7 | C6: 0.7 | D6: 1.2 | E6: 1.6 | F6: 1 | G6: 1.1 | H6: 1.3 | I6: 2.3 | J6: 4.7 | K6: 5.2 | L6: 5
A7: Нефть, млн т | B7: 11.3 | C7: 16.3 | D7: 19.2 | E7: 20.7 | F7: 20.5 | G7: 10.8 | H7: 10.2 | I7: 10 | J7: 9.6 | K7: 9.9 | L7: 10.9
A8: * Включая долю Группы Газпром в добыче компаний, инвестиции в которые классифицированы как совместные операции.
A10: Нефтяной эквивалент
B11: За год, закончившийся 31 декабря
B12: 2007* | C12: 2008* | D12: 2009* | E12: 2010* | F12: 2011* | G12: 2012 | H12: 2013 | I12: 2014 | J12: 2015 | K12: 2016 | L12: 2017
A13: Природный и попутный газ, млн барр. н. э. | B13: =B5*6.49 -> 55.165 | C13: 71.39 | D13: 88.264 | E13: 114.224 | F13: 73.337 | G13: 77.231 | H13: 84.37 | I13: 118.118 | J13: 165.495 | K13: =K5*6.49 -> 176.528 | L13: 175.2
A14: Газовый конденсат, млн барр. н. э. | B14: 5.7 | C14: 5.7 | D14: 9.8 | E14: 13.1 | F14: 8.2 | G14: 9 | H14: 10.6 | I14: 18.8 | J14: 38.4 | K14: =K6*8.18 -> 42.536 | L14: 40.9
A15: Нефть, млн барр. н. э. | B15: 82.8 | C15: 119.5 | D15: 140.7 | E15: 151.7 | F15: 150.3 | G15: 79.2 | H15: 74.8 | I15: 73.3 | J15: 70.4 | K15: =K7*7.33 -> 72.567 | L15: 79.9
A16: Всего, млн барр. н. э. | B16: =B13+B14+B15 -> 143.665 | C16: 196.59 | D16: 238.764 | E16: 279.024 | F16: 231.837 | G16: 165.431 | H16: 169.77 | I16: 210.218 | J16: 274.295 | K16: =K13+K14+K15 -> 291.631 | L16: 296
A17: * Включая долю Группы Газпром в добыче организаций, инвестиции в которые классифицированы как совместные операции.
A18: Примечание. Группа Газпром осуществляет управленческий учет запасов и добычи углеводородов в метрических единицах измерения. В настоящем Справочнике пересчет объемов запасов газа из метрической системы в баррели нефтяного эквивалента выполнен исходя из соотношения 1 тыс. м3 природного газа = 6,49 барр. н. э.
A20: Вернуться к Содержанию

Sheet ГРР и бурение в России
A1: Геологоразведка, эксплуатационное бурение и промысловые мощности
A2: Основные показатели ГРР Группы Газпром на углеводороды
A3: (без учета организаций, инвестиции в которые классифицированы как совместные операции)
B4: За год, закончившийся 31 декабря
B5: 2005 | C5: 2006 | D5: 2007 | E5: 2008 | F5: 2009 | G5: 2010 | H5: 2011 | I5: 2012 | J5: 2013 | K5: 2014 | L5: 2015 | M5: 2016 | N5: 2017
A6: Разведочное бурение, тыс. м | B6: 136.3 | C6: 177.7 | D6: 207.6 | E6: 284.9 | F6: 163.7 | G6: 204.9 | H6: 157.7 | I6: 126.4 | J6: 146.4 | K6: 165.4 | L6: 143.6 | M6: 111.6 | N6: 85.9 | P6: 126.4 | Q6: 146.4 | R6: 165.4 | S6: 143.6 | T6: 111.6
A7: Законченные строительством поисково-разведочные скважины, ед. | B7: 44 | C7: 62 | D7: 39 | E7: 80 | F7: 75 | G7: 82 | H7: 60 | I7: 54 | J7: 53 | K7: 41 | L7: 43 | M7: 40 | N7: 36 | P7: 54 | Q7: 53 | R7: 41 | S7: 43 | T7: 40
A8: в т.ч. продуктивные | B8: 35 | C8: 50 | D8: 20 | E8: 50 | F8: 43 | G8: 64 | H8: 45 | I8: 46 | J8: 37 | K8: 31 | L8: 38 | M8: 34 | N8: 31 | P8: 46 | Q8: 37 | R8: 31 | S8: 38 | T8: 34
A9: Сейсморазведка 2D, тыс. пог. км | B9: 9.8 | C9: 9.2 | D9: 6.4 | E9: 12.4 | F9: 14.7 | G9: 18.5 | H9: 2.8 | I9: 1.9 | J9: 1.4 | K9: 6.6 | L9: 0.3 | M9: 1.1 | N9: – | P9: 1.9 | Q9: 1.4 | R9: 6.6 | S9: 0.3 | T9: 1.1
A10: Сейсморазведка 3D, тыс. км2 | B10: 3.2 | C10: 7.9 | D10: 5.7 | E10: 6.6 | F10: 9.5 | G10: 10.8 | H10: 8.7 | I10: 8.4 | J10: 13.3 | K10: 12.6 | L10: 20 | M10: 20.6 | N10: 18.7 | P10: 8.4 | Q10: 13.3 | R10: 12.6 | S10: 20 | T10: 20.6
A11: Прирост запасов углеводородов, млн барр. н.э. | B11: 3706.2 | C11: 3961.4 | D11: 3712.7 | E11: 3889.2 | F11: 3498 | G11: 4100 | H11: 4978.8 | I11: 3955.5 | J11: 4183.5 | K11: 5942.2 | L11: 3835.1 | M11: 3404 | N11: 6341.5 | P11: 3955.5 | Q11: 4183.5 | R11: 5942.2 | S11: 3835.1 | T11: 3404
A12: Эффективность бурения, тыс. барр. н.э./м | B12: 27.1 | C12: 22.1 | D12: 17.9 | E12: 13.7 | F12: 21.4 | G12: 20 | H12: 31.2 | I12: 31.3 | J12: 28.6 | K12: 35.9 | L12: 26.7 | M12: 30.5 | N12: 73.8 | P12: 31293.5 | Q12: 28575.8 | R12: 35926.2 | S12: 26706.8 | T12: 30501.8
A14: Основные показатели ГРР на углеводороды организаций, инвестиции в которые классифицированы как совместные операции
B15: За год, закончившийся 31 декабря
B16: 2005 | C16: 2006 | D16: 2007 | E16: 2008 | F16: 2009 | G16: 2010 | H16: 2011 | I16: 2012 | J16: 2013 | K16: 2014 | L16: 2015 | M16: 2016 | N16: 2017
A17: Разведочное бурение, тыс. м | B17: x | C17: x | D17: x | E17: x | F17: x | G17: x | H17: x | I17: 14 | J17: 11.6 | K17: 13.1 | L17: 3.2 | M17: 7.4 | N17: 12.8 | P17: 14 | Q17: 11.6 | R17: 13.1 | S17: 3.2 | T17: 7.4
A18: Законченные строительством поисково-разведочные скважины, ед. | B18: x | C18: x | D18: x | E18: x | F18: x | G18: x | H18: x | I18: 5 | J18: 5 | K18: 4 | L18: 1 | M18: 2 | N18: 4 | P18: 5 | Q18: 5 | R18: 4 | S18: 1 | T18: 2
A19: в т.ч. продуктивные | B19: x | C19: x | D19: x | E19: x | F19: x | G19: x | H19: x | I19: 4 | J19: 3 | K19: 3 | L19: 1 | M19: 1 | N19: 4 | P19: 4 | Q19: 3 | R19: 3 | S19: 1 | T19: 1
A20: Сейсморазведка 2D, пог. км | B20: x | C20: x | D20: x | E20: x | F20: x | G20: x | H20: x | I20: 481 | J20: – | K20: – | L20: – | M20: − | N20: – | P20: 481 | Q20: – | R20: – | S20: – | T20: −
A21: Сейсморазведка 3D, км2 | B21: x | C21: x | D21: x | E21: x | F21: x | G21: x | H21: x | I21: 1085 | J21: 858 | K21: 494 | L21: 459 | M21: 130 | N21: 200 | P21: 1085 | Q21: 858 | R21: 494 | S21: 459 | T21: 130
A23: Эксплуатационное бурение Группы Газпром
A24: (без учета организаций, инвестиции в которые классифицированы как совместные операции)
B25: За год, закончившийся 31 декабря
B26: 2005 | C26: 2006 | D26: 2007 | E26: 2008 | F26: 2009 | G26: 2010 | H26: 2011 | I26: 2012 | J26: 2013 | K26: 2014 | L26: 2015 | M26: 2016 | N26: 2017
A27: Эксплуатационные скважины, законченные строительством, ед.
A28: на газ | B28: 248 | C28: 156 | D28: 204 | E28: 143 | F28: 151 | G28: 118 | H28: 223 | I28: 212 | J28: 93 | K28: 38 | L28: 73 | M28: 64 | N28: 116
A29: на нефть | B29: 15 | C29: 441 | D29: 546 | E29: 629 | F29: 702 | G29: 775 | H29: 719 | I29: 724 | J29: 788 | K29: 832 | L29: 802 | M29: 725 | N29: 660
A30: на ПХГ | B30: 36 | C30: 41 | D30: 45 | E30: 8 | F30: 14 | G30: 16 | H30: 17 | I30: 17 | J30: 43 | K30: 22 | L30: 27 | M30: 13 | N30: 4
A31: Всего | B31: 299 | C31: 638 | D31: 795 | E31: 780 | F31: 867 | G31: 909 | H31: 959 | I31: 953 | J31: 924 | K31: 892 | L31: 902 | M31: 802 | N31: 780
A32: Объем проходки в эксплуатационном бурении, тыс. м
A33: на газ | B33: 327.4 | C33: 267.1 | D33: 314 | E33: 375.7 | F33: 358.2 | G33: 441.5 | H33: 476.8 | I33: 367.7 | J33: 239.7 | K33: 125.6 | L33: 153.2 | M33: 227.2 | N33: 240.8
A34: на нефть | B34: 38.2 | C34: 1468.9 | D34: 1740.7 | E34: 2080.6 | F34: 2286.7 | G34: 2602.2 | H34: 2288.1 | I34: 2566.6 | J34: 3002.1 | K34: 2948.5 | L34: 3163 | M34: 2735.8 | N34: 2 559,5
A35: на ПХГ | B35: 31.6 | C35: 30.1 | D35: 37.8 | E35: 17.6 | F35: 11.9 | G35: 20.3 | H35: 22.9 | I35: 24.2 | J35: 36.7 | K35: 27.6 | L35: 47.5 | M35: 23.7 | N35: 13.6
A36: Всего | B36: 397.2 | C36: 1766.1 | D36: 2092.5 | E36: 2473.9 | F36: 2656.8 | G36: 3064 | H36: 2787.8 | I36: 2958.5 | J36: 3278.5 | K36: 3101.7 | L36: 3363.7 | M36: 2 986,7 | N36: 2 813,9
A38: Эксплуатационное бурение организаций, инвестиции в которые классифицированы как совместные операции
B39: За год, закончившийся 31 декабря
B40: 2005 | C40: 2006 | D40: 2007 | E40: 2008 | F40: 2009 | G40: 2010 | H40: 2011 | I40: 2012 | J40: 2013 | K40: 2014 | L40: 2015 | M40: 2016 | N40: 2017
A41: Эксплуатационные скважины на нефть, законченные строительством, ед. | B41: x | C41: x | D41: x | E41: x | F41: x | G41: x | H41: x | I41: 243 | J41: 211 | K41: 188 | L41: 206 | M41: 231 | N41: 236
A42: Объем проходки в эксплуатационном бурении на нефть, тыс. м | B42: x | C42: x | D42: x | E42: x | F42: x | G42: x | H42: x | I42: 827 | J42: 697 | K42: 694 | L42: 789 | M42: 785 | N42: 784
A44: Производственные мощности Группы Газпром в добыче углеводородов
A45: (без учета организаций, инвестиции в которые классифицированы как совместные операции)
B46: По состоянию на 31 декабря
B47: 2005 | C47: 2006 | D47: 2007 | E47: 2008 | F47: 2009 | G47: 2010 | H47: 2011 | I47: 2012 | J47: 2013 | K47: 2014 | L47: 2015 | M47: 2016 | N47: 2017
A48: Разрабатываемые месторождения, ед.
A49: В промышленной разработке | I49: 118 | J49: 122 | K49: 126 | L49: 135 | M49: 136 | N49: 136
A50: В опытно-промышленной эксплуатации | I50: 6 | J50: 11 | K50: 13 | L50: 11 | M50: 15 | N50: 18
A51: Всего | B51: 114 | C51: 119 | D51: 122 | E51: 122 | F51: 121 | G51: 120 | H51: 124 | I51: 124 | J51: 133 | K51: 139 | L51: 146 | M51: 151 | N51: 154
A52: Газовые эксплуатационные скважины, ед. | B52: 6941 | C52: 7010 | D52: 7154 | E52: 7214 | F52: 7310 | G52: 7403 | H52: 7504 | I52: 7717 | J52: 7744 | K52: 7816 | L52: 7881 | M52: 7916 | N52: 7945
A53: в т.ч. действующие | B53: 6401 | C53: 6513 | D53: 6640 | E53: 6723 | F53: 6775 | G53: 6806 | H53: 6988 | I53: 7226 | J53: 7263 | K53: 7293 | L53: 7358 | M53: 7441 | N53: 7 438
A54: Нефтяные эксплуатационные скважины, ед. | B54: 5018 | C54: 5486 | D54: 5881 | E54: 5932 | F54: 6158 | G54: 6464 | H54: 6647 | I54: 7296 | J54: 7868 | K54: 8218 | L54: 9058 | M54: 9316 | N54: 7944
A55: в т.ч. действующие | B55: 4372 | C55: 4948 | D55: 5342 | E55: 5444 | F55: 5663 | G55: 5941 | H55: 6151 | I55: 6738 | J55: 7246 | K55: 7604 | L55: 8461 | M55: 8681 | N55: 7 358
A56: Установки комплексной и предварительной подготовки газа (УКПГ и УППГ), ед. | B56: 169 | C56: 170 | D56: 172 | E56: 173 | F56: 174 | G56: 176 | H56: 177 | I56: 179 | J56: 170 | K56: 171 | L56: 170 | M56: 171 | N56: 169
A57: Проектная суммарная производительность УКПГ, млрд м3 в год | B57: 939.6 | C57: 957.8 | D57: 976 | E57: 991 | F57: 994.5 | G57: 1001.2 | H57: 1003.2 | I57: 1072.9 | J57: 1099.7 | K57: 1119.7 | L57: 1119.7 | M57: 1119.7 | N57: 1 127,9
A58: Дожимные компрессорные станции (ДКС), ед. | B58: 44 | C58: 44 | D58: 45 | E58: 45 | F58: 47 | G58: 48 | H58: 49 | I58: 49 | J58: 49 | K58: 52 | L58: 53 | M58: 58 | N58: 58
A59: Установленная мощность ДКС, МВт | B59: 4176.1 | C59: 4176.1 | D59: 4300.1 | E59: 4460.1 | F59: 4508.1 | G59: 4572.1 | H59: 4730.1 | I59: 5015.2 | J59: 5046.4 | K59: 5265.4 | L59: 5080.3 | M59: 5 669,8 | N59: 5 789,8
A61: Производственные мощности в добыче углеводородов организаций, инвестиции в которые классифицированы как совместные операции
B62: По состоянию на 31 декабря
B63: 2005 | C63: 2006 | D63: 2007 | E63: 2008 | F63: 2009 | G63: 2010 | H63: 2011 | I63: 2012 | J63: 2013 | K63: 2014 | L63: 2015 | M63: 2016 | N63: 2017
A64: Разрабатываемые месторождения, ед. | B64: x | C64: x | D64: x | E64: x | F64: x | G64: x | H64: x | I64: 34 | J64: 35 | K64: 39 | L64: 41 | M64: 42 | N64: 41
A65: Газовые эксплуатационные скважины, ед. | B65: x | C65: x | D65: x | E65: x | F65: x | G65: x | H65: x | I65: 9 | J65: 9 | K65: 8 | L65: 7 | M65: 7 | N65: 7
A66: в т.ч. действующие | B66: x | C66: x | D66: x | E66: x | F66: x | G66: x | H66: x | I66: 2 | J66: – | K66: 1 | L66: 3 | M66: 3 | N66: 1
A67: Нефтяные эксплуатационные скважины, ед. | B67: x | C67: x | D67: x | E67: x | F67: x | G67: x | H67: x | I67: 3439 | J67: 3590 | K67: 3635 | L67: 3768 | M67: 3733 | N67: 3810
A68: в т.ч. действующие | B68: x | C68: x | D68: x | E68: x | F68: x | G68: x | H68: x | I68: 2927 | J68: 3017 | K68: 3086 | L68: 3163 | M68: 3379 | N68: 3472
A70: Вернуться к Содержанию

Sheet Перспективные месторождения
A1: Перспективные месторождения
A2: Разрабатываемые месторождения Группы Газпром
A3: Наименование месторождения | B3: Описание | C3: Годовая проектная мощность | D3: Год ввода в эксплуатацию | E3: Срок выхода на проектную мощность
A4: Надым-Пур-Тазовский регион (Западная Сибирь)
A5: Ныдинский участок Медвежьего месторождения | B5: Расположен в Пуровском районе ЯНАО на площади Медвежьего месторождения. | C5: 2,7 млрд м3 газа | D5: 2011 г. | E5: 2021 г.
A6: Уренгойское (ачимовские залежи): | B6: Для поэтапного освоения залежи разделены на несколько участков.
A7: Участок 1 | C7: 9,6 млрд м3 газа и 2,95 млн т нестабильного конденсата | D7: 2008 г. | E7: 2021–2023 гг.
A8: Участок 2 | C8: 8,7 млрд м3 газа и 2,84 млн т нестабильного конденсата | D8: 2009 г.
A9: Участки 4−5 | C9: 15,5 млрд м3 газа | D9: 2020 г. | E9: 2024–2027 гг.
A10: Полуостров Ямал и прилегающие акватории
A11: Бованенковское | B11: Самое крупное по запасам месторождение полуострова Ямал, расположенное в центральной части и наиболее изученное.
A12: сеноман-аптские залежи | C12: 115 млрд м3 газа | D12: 2012 г. | E12: 2022 г.
A13: неоком-юрские залежи | C13: 25 млрд м3 газа | D13: 2025–2026 гг. | E13: 2030–2032 гг.
A14: Новопортовское | B14: Расположено в юго-восточной части полуострова Ямал, характеризующейся отсутствием инфраструктуры. | C14: 8,6 млн т нефти | D14: 2016 г. | E14: 2020 г.
A15: Поволжье
A16: Астраханское | B16: Расположено в дельте р. Волга. Способно обеспечить годовой уровень добычи в 50−60 млрд м3. Добыча сдерживается на уровне 12 млрд м3 в год в основном экологическими ограничениями, а также необходимостью использования дорогостоящих технологий. | D16: 1986 г.
A17: Волго-Уральский регион
A18: Восточный участок Оренбургского НГКМ | B18: Расположен в 40 км от г. Оренбурга в регионе с развитой инфраструктурой вблизи от рынков сбыта. | C18: 6,4 млн т н. э. | D18: 1994 г. | E18: 2021 г.
A19: Континентальный шельф Арктической зоны Российской Федерации
A20: Приразломное | B20: Расположено на континентальном шельфе Российской Федерации в Печорском море в 55 км от поселка Варандей, в 240 км от речного порта Нарьян-Мар (р. Печора) и в 980 км от морского порта Мурманск. Глубина моря в пределах площади месторождения не превышает 17-20 м. | C20: 4,9 млн т нефти | D20: 2013 г. | E20: 2023 г.
A21: Восточная Сибирь и Дальний Восток
A22: Чаяндинское | B22: Расположено в Ленском районе Республики Саха (Якутия). | C22: 25 млрд м3 газа | D22: 2019 г. | E22: 2024 г.
C23: 1,9 млн т нефти | D23: 2014 г. (ввод в опытно-промышленную эксплуатацию) | E23: Будет уточнен по результатам периода опытно-промышленной разработки.
A24: Континентальный шельф Российской Федерации в Охотском море
A25: Киринское | B25: Расположено на континентальном шельфе Российской Федерации в Охотском море северо-восточнее о. Сахалин. Разработка месторождения является составной частью проекта «Сахалин-3». | C25: 5,5 млрд м3 газа | D25: 2014 г. | E25: 2021–2022 гг.
A26: Примечание. Информация приведена по состоянию на 31 декабря 2017 г. Сроки по вводу объектов в эксплуатацию и выходу на проектную производительность могут меняться в зависимости от ситуации на рынке энергоносителей.
A28: Разведываемые месторождения Группы Газпром
A29: Наименование месторождения | B29: Описание | C29: Годовая проектная мощность | D29: Год ввода в эксплуатацию | E29: Срок выхода на проектную мощность
A30: Полуостров Ямал и прилегающие акватории
A31: Харасавэйское
A32: сеноман-аптские залежи | B32: Вводится в разработку после выхода на проектную производительность Бованенковского месторождения. | C32: 32 млрд м3 газа | D32: 2023–2024 гг. | E32: 2026–2027 гг.
A33: неоком-юрские залежи | C33: 18 млрд м3 газа | D33: 2026–2027 гг. | E33: 2028–2029 гг.
A34: Крузенштернское | B34: Входит в Бованенковскую группу месторождений | C34: 33 млрд м3 газа | D34: 2027–2028 гг. | E34: 2031–2033 гг.
A35: Континентальный шельф Арктической зоны Российской Федерации
A36: Штокмановское | B36: Расположено в центральной части Баренцева моря к северо-западу от полуострова Ямал и в 650 км к северо-востоку от г. Мурманска. Поставки газа планируются как по Единой системе газоснабжения, (ЕСГ), так и в виде сжиженного природного газа (СПГ) на удаленные рынки. | C36: 71,7 млрд м3 c возможностью увеличения до 95 млрд м3 | D36: Будут определены по результатам корректировки Обоснования инвестиций.
A37: Обская и Тазовская губы
A38: Северо-Каменномысское | B38: Месторождения расположены в средней части акватории Обской губы в ЯНАО и определены первоочередными объектами освоения месторождений акватории Обской и Тазовской губ. | C38: 14,5 млрд м3 газа | D38: 2027–2029 гг. | E38: 2032–2033 гг.
A39: Каменномысское-море | C39: 15,1 млрд м3 газа | D39: 2025 г. | E39: 2027–2029 гг.
A40: Восточная Сибирь и Дальний Восток
A41: Ковыктинское | B41: Расположено в Жигаловском и Казачинско-Ленском районах Иркутской области. | C41: 25 млрд м3 газа | D41: 2022 г. | E41: 2025 г.
A42: Континентальный шельф Российской Федерации в Охотском море
A43: Южно-Киринское | B43: Расположено на континентальном шельфе Российской Федерации в Охотском море северо-восточнее о. Сахалин. Разработка месторождения является составной частью проекта «Сахалин-3». | C43: 21 млрд м3 газа | D43: 2023 г. | E43: 2033–2034 гг.
A44: Примечание. Информация приведена по состоянию на 31 декабря 2017 г. Сроки по вводу объектов в эксплуатацию и выходу на проектную производительность могут меняться в зависимости от ситуации на рынке энергоносителей.
A46: Месторождения совместных предприятий Группы Газпром
A47: Наименование месторождения | B47: Описание и партнер | C47: Годовая проектная мощность | D47: Срок ввода в эксплуатацию | E47: Срок выхода на проектную мощность
A48: Гыданский полуостров
A49: Восточно-Мессояхский лицензионный участок | B49: Находится в северной части Западно-Сибирской нефтегазоносной провинции на юго-западе Гыданского полуострова, относится к категории крупнейших по величине разведанных запасов. Партнер: ПАО «НК «Роснефть». | C49: 5,9 млн т нефти | D49: 2016 г. | E49: 2021 г.
A50: Восточная Сибирь и Дальний Восток
A51: Куюмбинское | B51: Расположено в Байкитском муниципальном образовании Эвенкийского муниципального района Красноярского края. Входит в состав Юрубчено-Тохомской зоны нефтегазонакопления. Район характеризуется труднодоступностью и отсутствием дорог круглогодичного действия. Партнер: ПАО «НК «Роснефть». | C51: 10,8 млн т нефти | D51: 2018 г. | E51: 2032 г.
A52: Примечание. Информация приведена по состоянию на 31 декабря 2017 г. Сроки по вводу объектов в эксплуатацию и выходу на проектную производительность могут меняться в зависимости от ситуации на рынке энергоносителей.
A54: Вернуться к Содержанию

Sheet ГРР и добыча за рубежом
A1: Разведка и добыча на территории зарубежных стран
A2: Основные показатели ГРР Группы Газпром на углеводороды на территории зарубежных стран
B3: За год, закончившийся 31 декабря
B4: 2007 | C4: 2008 | D4: 2009 | E4: 2010 | F4: 2011 | G4: 2012 | H4: 2013 | I4: 2014 | J4: 2015 | K4: 2016 | L4: 2017
A5: Разведочное бурение, тыс. м | B5: 14.2 | C5: 32.1 | D5: 30.7 | E5: 21.8 | F5: 21.8 | G5: 24 | H5: 18.1 | I5: 17.6 | J5: 28.3 | K5: 9.7 | L5: 18.4
A6: Законченные строительством поисково-разведочные скважины, ед. | B6: – | C6: 4 | D6: 10 | E6: 10 | F6: 6 | G6: 7 | H6: 4 | I6: 5 | J6: 4 | K6: 8 | L6: 8
A7: в т. ч. продуктивные | B7: – | C7: – | D7: 2 | E7: 4 | F7: 6 | G7: 1 | H7: 1 | I7: 4 | J7: 2 | K7: 7 | L7: 5
A8: Сейсморазведка 2D, тыс. пог. км | B8: 2.4 | C8: 6.3 | D8: 12.5 | E8: 11.4 | F8: 1.3 | G8: 0.7 | H8: 0.4 | I8: – | J8: – | K8: 1.5 | L8: –
A9: Сейсморазведка 3D, тыс. км2 | B9: 1.3 | C9: 7.4 | D9: 3.6 | E9: 2.6 | F9: 0.7 | G9: 0.4 | H9: 1.4 | I9: 1.7 | J9: 1.4 | K9: 0.8 | L9: 1.2
A10: Примечание. При формировании консолидированных показателей геолого-разведочных работ, проводимых Группой Газпром на территории зарубежных стран, учтены показатели по проектам, в которых организации Группы имеют операторские функции и контроль.
A12: Производственные мощности Группы Газпром в добыче углеводородов на территории зарубежных стран
B13: По состоянию на 31 декабря
F14: 2011 | G14: 2012 | H14: 2013 | I14: 2014 | J14: 2015 | K14: 2016 | L14: 2017
A15: Разрабатываемые месторождения, ед. | F15: 50 | G15: 50 | H15: 51 | I15: 47 | J15: 53 | K15: 47 | L15: 48
A16: Газовые эксплуатационные скважины, ед. | F16: 225 | G16: 234 | H16: 289 | I16: 235 | J16: 168 | K16: 172 | L16: 163
A17: в т.ч. действующие | F17: 104 | G17: 111 | H17: 94 | I17: 96 | J17: 74 | K17: 81 | L17: 81
A18: Нефтяные эксплуатационные скважины, ед. | F18: 900 | G18: 903 | H18: 863 | I18: 904 | J18: 963 | K18: 931 | L18: 946
A19: в т.ч. действующие | F19: 603 | G19: 623 | H19: 543 | I19: 623 | J19: 661 | K19: 681 | L19: 737
A20: Примечание. Приведены производственные мощности в добыче углеводородов организаций Группы на территории зарубежных стран, представленные в рамках рассматриваемого периода компанией NIS (Сербия).
A22: Эксплуатационное бурение Группы Газпром на газ и нефть на территории зарубежных стран
B23: За год, закончившийся 31 декабря
B24: 2007 | C24: 2008 | D24: 2009 | E24: 2010 | F24: 2011 | G24: 2012 | H24: 2013 | I24: 2014 | J24: 2015 | K24: 2016 | L24: 2017
A25: Эксплуатационные скважины, законченные строительством, ед.
A26: на газ | G26: 2 | H26: 1 | I26: 3 | J26: – | K26: 2 | L26: –
A27: на нефть | G27: 12 | H27: 27 | I27: 46 | J27: 35 | K27: 38 | L27: 51
A28: Всего | G28: 14 | H28: 28 | I28: 49 | J28: 35 | K28: 40 | L28: 51
A29: Объем проходки в эксплуатационном бурении, тыс. м
A30: на газ | G30: 3 | H30: 1.9 | I30: 7.9 | J30: – | K30: 1.6 | L30: 2.1
A31: на нефть | G31: 18.4 | H31: 63.6 | I31: 86 | J31: 75 | K31: 40.9 | L31: 67.5
A32: Всего | G32: 21.4 | H32: 65.5 | I32: 93.9 | J32: 75 | K32: 42.5 | L32: 69.6
A33: Примечание. Приведены показатели эксплуатационного бурения на газ и нефть организаций Группы на территории зарубежных стран, представленные в рамках рассматриваемого периода компанией NIS (Сербия).
A35: Добыча углеводородов в рамках зарубежных проектов с участием Группы Газпром
A36: Проект | B36: За год, закончившийся 31 декабря
B37: 2007 | C37: 2008 | D37: 2009 | E37: 2010 | F37: 2011 | G37: 2012 | H37: 2013 | I37: 2014 | J37: 2015 | K37: 2016 | L37: 2017
A38: Природный и попутный газ, млн м3
A39: Месторождение Бадра | G39: – | H39: – | I39: – | J39: 7 | K39: 14 | L39: 208
A40: Месторождение Вингейт | G40: 742 | H40: 394 | I40: 622 | J40: 877 | K40: 686 | L40: 436
A41: Месторождения Мок Тинь и Хай Тхать | G41: – | H41: 331 | I41: 1786 | J41: 1884 | K41: 2142 | L41: 2099
A42: Месторождение Шахпахты | G42: 301 | H42: 319 | I42: 334 | J42: 357 | K42: 363 | L42: 312
A43: Месторождение Инкауаси | G43: – | H43: – | I43: – | J43: – | K43: 740 | L43: 2519
A44: Газовый конденсат, тыс. т
A45: Месторождение Вингейт | G45: 5 | H45: 2 | I45: 4 | J45: 5 | K45: 3 | L45: 3
A46: Месторождения Мок Тинь и Хай Тхать | G46: – | H46: 59 | I46: 366 | J46: 436 | K46: 573 | L46: 469
A47: Месторождение Инкауаси | G47: – | H47: – | I47: – | J47: – | K47: 75 | L47: 270
A48: Нефть, тыс. т
A49: Месторождение Бадра | G49: – | H49: – | I49: 309 | J49: 1383 | K49: 2575 | L49: 3787
A50: Блок Хунин-6 | G50: – | H50: 106 | I50: 262 | J50: 524 | K50: 823 | L50: 839
A51: Блок Гармиан | G51: – | H51: – | I51: – | J51: 219 | K51: 193 | L51: 370
A52: Примечание. Объемы добычи приведены в целом по проектам без выделения доли Группы Газпром.
A54: Вернуться к Содержанию

Sheet Проекты за рубежом
A1: Проекты Группы Газпром в области поиска и разведки углеводородов в зарубежных странах
A2: Страна | B2: Наименование, цель и описание проекта | C2: Год начала проекта | D2: Наличие у Группы операторских функций | E2: Участник со стороны Группы Газпром
A3: Алжир | B3: Разведка и разработка углеводородов на участке Эль-Ассель, расположенном в геологическом бассейне Беркин на востоке Алжира в пустыне Сахара. | C3: 2009 г. | D3: + | E3: Gazprom EP International B.V.
A4: Боливия | B4: Разведка и разработка углеводородного сырья на блоках Ипати и Акио. В 2011 г. в рамках геолого-разведочной фазы проекта открыто месторождение Инкауаси, расположенное на блоках Ипати и Акио. Характеристики проекта разработки месторождения: ■ срок ввода в эксплуатацию — 2016 г.; ■ проектная мощность первой очереди УКПГ — 2,4 млрд м3 природного газа в год. | C4: 2010 г. | D4: – | E4: GP Exploración y Producción, S.L.
B5: Разведка и разработка углеводородного сырья на блоке Асеро. | C5: 2013 г. | D5: – | E5: GP Exploración y Producción, S.L.
A6: Великобритания и Нидерланды | B6: Обустройство, добыча и доразведка на газовом месторождении Вингейт на континентальном шельфе Великобритании (лицензионные участки P1239, P1733). Месторождение введено в разработку в 2011 г. Проектная мощность* — 0,5 млрд м3 газа в год. | C6: 2008 г. | D6: – | E6: Gazprom UK Resources, S.A.
B7: Разведка на лицензионных участках Р1902 (блок 44/23c) и Р1903 (блоки 44/23d и 44/24с) континентального шельфа Великобритании. | C7: 2012 г. | D7: – | E7: Gazprom International UK Ltd.
B8: Разведка на лицензионном участке D12b континентального шельфа Нидерландов. | C8: 2011 г. | D8: – | E8: Gazprom International UK Ltd.
B9: Разведка на лицензионном участке 44/19а континентального шельфа Великобритании. | C9: 2014 г. | D9: – | E9: Gazprom International UK Ltd.
A10: Венесуэла | B10: Проект по разработке месторождения тяжелой нефти на блоке Хунин-6, расположенного в бассейне реки Ориноко. | C10: 2009 г. | D10: – | E10: ПАО «Газпром нефть»
A11: Вьетнам | B11: Поиск и разведка углеводородов на континентальном шельфе Вьетнама
B12: Блок № 112 (с учетом расширения) | C12: 2000 г. | D12: + | E12: АО «Газпром зарубежнефтегаз»
B13: Блоки № 129–132 | C13: 2008 г. | D13: + | E13: АО «Газпром зарубежнефтегаз»
B14: Добыча углеводородов на блоках 05-2 и 05-3 во вьетнамской акватории Южно-Китайского моря. Реализация углеводородов. В пределах блоков открыто два ГКМ (Мок Тинь и Хай Тхать). Характеристики проекта совместной разработки месторождений Мок Тинь и Хай Тхать: ■ срок ввода в эксплуатацию – 2013 г.; ■ проектная мощность — 2,0 млрд м3 природного газа в год; ■ срок выхода на проектную мощность — 2016 г. | C14: 2012 г. | D14: – | E14: Gazprom EP International B.V.
A15: Ирак | B15: Разработка месторождения Бадра. Стадия работ — промышленная эксплуатация Проектные характеристики: ■ срок ввода в эксплуатацию — 2014 г.; ■ проектная мощность — 5,7 млн т нефти в год; ■ срок выхода на проектную мощность — 2017 г. Проект рассчитан на 20 лет с возможной пролонгацией на 5 лет. | C15: 2010 г. | D15: + | E15: Gazprom Neft Badra B.V.
B16: Проект «Загрос»: блоки Шакал, Гармиан и Халабджа** в Курдистане | C16: 2012 г.
B17: Блок Шакал: Стадия работ — ГРР; ■ срок ввода в промышленную эксплуатацию — 2018 г. | D17: + | E17: Gazprom Neft Middle East B.V.
B18: Блок Гармиан В пределах блока открыто месторождение Саркала. Стадия работ — промышленная эксплуатация | D18: + | E18: Gazprom Neft Middle East B.V.
A19: Казахстан и Россия | B19: Освоение трансграничного месторождения Центральное на континентальном шельфе в Каспийском море (совместный проект Российской Федерации и Республики Казахстан). Месторождение открыто в 2008 г. в ходе реализации с участием Группы проекта поиска и разведки углеводородных ресурсов геологической структуры Центральная. | C19: 2013 г. | D19: - | E19: ПАО «Газпром»
A20: Кыргызстан | B20: Проведение ГРР на нефтегазоперспективных площадях Восточный Майлису – IV и Кугарт. | C20: 2006 г. | D20: + | E20: АО «Газпром зарубежнефтегаз»
A21: Ливия | B21: Разведка и разработка углеводородного сырья на лицензионных участках № 19 (на континентальном шельфе в Средиземном море) и № 64 (на суше, в северной части нефтегазоносного бассейна Гадамес). | C21: 2007 г. | D21: + | E21: Gazprom Libya B.V.
A22: Таджикистан | B22: Проведение ГРР на нефтегазоперспективных площадях Сарикамыш и Западный Шохамбары***. | C22: 2006 г. | D22: + | E22: АО «Газпром зарубежнефтегаз»
A23: Узбекистан | B23: Освоение месторождения Джел (Шахпахтинский лицензионный участок). | C23: 2006 г. | D23: + | E23: АО «Газпром зарубежнефтегаз»
B24: Восстановление инфраструктуры месторождения Шахпахты в Устюртском регионе Республики Узбекистан и доразработка остаточных запасов газа. | C24: 2004 г. | D24: + | E24: АО «Газпром зарубежнефтегаз»
A25: * Ежегодно в III кв. оператором осуществляется пересмотр проектных характеристик.
A26: ** По результатам комплексной геологической оценки блок Халабджа в 2017 г. признан неперспективным для проведения поисково-разведочного бурения в текущих макроэкономических условиях.
A27: *** В связи с нецелесообразностью дальнейшего геологического изучения недр на площадях Западный Шохамбары и Сарикамыш ведется работа по сдаче лицензий на пользование недрами.
A29: Деятельность ассоциированных организаций и совместных предприятий в области поиска и разведки углеводородов в зарубежных странах
A30: Компания | B30: Краткая характеристика и результаты | C30: Участие Группы Газпром | E30: Страны ведения деятельности
A31: Wintershall AG | B31: Компания является владельцем нефтяных концессий С96 и С97 в Ливии, оператором данного проекта. В эксплуатации находится девять месторождений. В августе 2013 г. компанией объявлен режим форс-мажора, действовавший до сентября 2016 г. В 2017 г. добыча нефти осуществлялась c перерывами в связи с политической обстановкой на территории страны в объеме 65 тыс. барр. в сутки в соответствии с временным соглашением между Wintershall AG и ливийской National Oil Corporation. Всего в 2017 г. компанией добыто 1 531 тыс. т нефти и 233 млн м3 ПНГ (в 2006 г. — 504 тыс. т нефти и 137 млн м3 ПНГ). | C31: Доля в капитале компании в размере 49 % получена Группой в 2007 г. в результате реализации соглашения об обмене активами с компанией BASF. | E31: Ливия
A32: Wintershall Noordzee B.V. | B32: Компании принадлежат различные доли участия в 51 лицензии в британском, датском и нидерландском секторах Северного моря. В пределах лицензионных участков открыты многочисленные газовые и нефтяные месторождения. Основными добывающими активами являются газовые месторождения К18-Гольф, Вингейт, Q1-B, Q1-D. Также в 2017 г. введено в промышленную разработку нефтяное месторождение Равн в датском секторе Северного моря. Всего в 2017 г. компанией добыто 776 млн м3 газа и 17,4 тыс. т нефти. | C32: Доля в капитале компании в размере 50 % получена Группой в сентябре 2015 г. в результате реализации соглашения об обмене активами с компанией BASF. | E32: Нидерланды, Великобритания, Дания
A33: Примечание. Информация приведена по состоянию на 31 декабря 2017 г.
A35: Вернуться к Содержанию

Sheet Транспортировка
A1: Транспортировка и подземное хранение
A2: Транспортировка
A3: Развитие и капитальный ремонт ГТС на территории России
B4: За год, закончившийся 31 декабря
B5: 2005 | C5: 2006 | D5: 2007 | E5: 2008 | F5: 2009 | G5: 2010 | H5: 2011 | I5: 2012 | J5: 2013 | K5: 2014 | L5: 2015 | M5: 2016 | N5: 2017
A6: Ввод в эксплуатацию новых магистральных газопроводов и отводов*, км | B6: 1402 | C6: 1526 | D6: 1157 | E6: 1381 | F6: 865 | G6: =ROUND(1338.6,0) -> 1339 | H6: 2470 | I6: 3213 | J6: 703 | K6: 1277 | L6: 933 | M6: 771 | N6: 640
A7: Реконструкция магистральных газопроводов, км | C7: 39 | D7: 185 | E7: 102 | F7: 551 | G7: 380 | H7: 131 | I7: 132 | J7: 214 | K7: 200 | L7: 169 | M7: 211 | N7: 100
A8: Капитальный ремонт, км | B8: 2166.8 | C8: 2809 | D8: 2697 | E8: 2756.3 | F8: 2383.7 | G8: 2427.3 | H8: 2436.6 | I8: 2487 | J8: 1819 | K8: 1581 | L8: 1441 | M8: 823 | N8: 810
A9: Количество технических отказов на 1 000 км | B9: 0.14 | C9: 0.12 | D9: 0.11 | E9: 0.13 | F9: 0.09 | G9: 0.04 | H9: 0.07 | I9: 0.09 | J9: 0.05 | K9: 0.03 | L9: 0.05 | M9: 0.03 | N9: 0.02
A10: * Начиная с 2015 отчетного года данные формируются с учетом ввода объектов, не предусмотренных инвестиционной программой соответствующего года.
A12: Диагностическое обследование ГТС на территории России, тыс. км
B13: За год, закончившийся 31 декабря
B14: 2005 | C14: 2006 | D14: 2007 | E14: 2008 | F14: 2009 | G14: 2010 | H14: 2011 | I14: 2012 | J14: 2013 | K14: 2014 | L14: 2015 | M14: 2016 | N14: 2017
A15: Внутритрубная дефектоскопия | B15: 17.3 | C15: 16.9 | D15: 17.2 | E15: 19.8 | F15: 17.7 | G15: 21.9 | H15: 21.7 | I15: 22.2 | J15: 22.6 | K15: 23.5 | L15: 19.9 | M15: 23.9 | N15: 22.1
A16: Коррозионное обследование | B16: 23.2 | C16: 29.9 | D16: 20.5 | E16: 25.6 | F16: 17 | G16: 28.1 | H16: 26.1 | I16: 23 | J16: 21.5 | K16: 18.4 | L16: 17.9 | M16: 17.3 | N16: 18
A18: Основные технические характеристики газотранспортных активов Группы Газпром в России
B19: По состоянию на 31 декабря
B20: 2005 | C20: 2006 | D20: 2007 | E20: 2008 | F20: 2009 | G20: 2010 | H20: 2011 | I20: 2012 | J20: 2013 | K20: 2014 | L20: 2015 | M20: 2016 | N20: 2017
A21: Протяженность магистральных газопроводов и отводов в однониточном исчислении*, тыс. км | B21: 155 | C21: 156.9 | D21: 158.2 | E21: 159.5 | F21: 160.4 | G21: 161.7 | H21: 164.7 | I21: 168.3 | J21: 168.9 | K21: 170.7 | L21: 171.2 | M21: 171.8 | N21: 172.1
A22: Линейные компрессорные станции, ед. | B22: 210 | C22: 217 | D22: 218 | E22: 214 | F22: 215 | G22: 215 | H22: 211 | I22: 222 | J22: 247 | K22: 250 | L22: 250 | M22: 253 | N22: 254
A23: Газоперекачивающие агрегаты (ГПА), ед. | B23: 3587 | C23: 3629 | D23: 3641 | E23: 3669 | F23: 3675 | G23: 3659 | H23: 3630 | I23: 3738 | J23: 3820 | K23: 3825 | L23: 3829 | M23: 3852 | N23: 3844
A24: Установленная мощность ГПА, тыс. МВт | B24: 40.2 | C24: 41 | D24: 41.4 | E24: 41.6 | F24: 42 | G24: 42.1 | H24: 41.7 | I24: 43.9 | J24: 45.9 | K24: 46.1 | L24: 46.2 | M24: 46.7 | N24: 46.7
A25: * Начиная с данных по состоянию на 31 декабря 2013 г., протяженность приведена с учетом технологических перемычек.
A27: Структура магистральных газопроводов Группы Газпром на территории России по сроку эксплуатации*, тыс. км
B28: По состоянию на 31 декабря
G29: 2010 | H29: 2011 | I29: 2012 | J29: 2013 | K29: 2014 | L29: 2015 | M29: 2016 | N29: 2017
A30: 10 лет и менее | G30: 17.2 | H30: 19.6 | I30: 22.2 | J30: 21.1 | K30: 20.6 | L30: 19.9 | M30: 17.3 | N30: 17.3
A31: От 11 до 20 лет | G31: 25 | H31: 21.8 | I31: 20.4 | J31: 20 | K31: 20.7 | L31: 19.1 | M31: 15.8 | N31: 16.2
A32: От 21 года до 30 лет | G32: 70.9 | H32: 64.6 | I32: 61.7 | J32: 56.5 | K32: 50.6 | L32: 47.3 | M32: 40.9 | N32: 40.9
A33: От 31 года до 40 лет | G33: 23.8 | H33: 31.8 | I33: 36.8 | J33: 41.7 | K33: 46.6 | L33: 49.2 | M33: 55.2 | N33: 55.2
A34: От 41 года до 50 лет | G34: 19.3 | H34: 19.6 | I34: 18.8 | J34: 19.7 | K34: 20.6 | L34: 23.3 | M34: 24.9 | N34: 24.8
A35: Более 50 лет | G35: 5.5 | H35: 7.3 | I35: 8.4 | J35: 9.9 | K35: 11.6 | L35: 12.4 | M35: 17.7 | N35: 17.7
A36: Всего | G36: 161.7 | H36: 164.7 | I36: 168.3 | J36: 168.9 | K36: 170.7 | L36: 171.2 | M36: 171.8 | N36: 172.1
A37: * Начиная с данных по состоянию на 31 декабря 2013 г., структура магистральных газопроводов приведена с учетом технологических перемычек.
A39: Поступление и распределение газа, транспортированного по ГТС Газпрома на территории Российской Федерации, млрд м3
B40: За год, закончившийся 31 декабря
B41: 2005 | C41: 2006 | D41: 2007 | E41: 2008 | F41: 2009 | G41: 2010 | H41: 2011 | I41: 2012 | J41: 2013 | K41: 2014 | L41: 2015 | M41: 2016 | N41: 2017
A42: Поступление в газотранспортную систему (ГТС)
A43: Поступление в ГТС, в т. ч.: | B43: 646.9 | C43: 660.9 | D43: 654.8 | E43: 669.2 | F43: 552.4 | G43: 614.1 | H43: 630.9 | I43: 613.7 | J43: 621 | K43: 588.7 | L43: 574.2 | M43: 573.8 | N43: 623.1
A44: центральноазиатский газ | B44: 54.6 | C44: 57 | D44: 59.9 | E44: 61.4 | F44: 35.7 | G44: 35.3 | H44: 31.8 | I44: 31.7 | J44: 29.3 | K44: 26.4 | L44: 20 | M44: 18 | N44: 20.8
A45: азербайджанский газ | B45: – | C45: – | D45: – | E45: – | F45: – | G45: 0.8 | H45: 1.5 | I45: 1.6 | J45: 1.4 | K45: 0.2 | L45: – | M45: – | N45: –
A46: Отбор газа из ПХГ России и Латвии | B46: 42.8 | C46: 48.2 | D46: 41.7 | E46: 36.1 | F46: 30 | G46: 40.8 | H46: 47.1 | I46: 44.3 | J46: 32.7 | K46: 32.7 | L46: 24.3 | M46: 44.9 | N46: 45.7
A47: Сокращение запаса газа в ГТС | B47: 10 | C47: 8.7 | D47: 10.2 | E47: 9 | F47: 7.3 | G47: 6.3 | H47: 5.2 | I47: 8.2 | J47: 5.7 | K47: 6.1 | L47: 4.1 | M47: 3.9 | N47: 3.3
A48: Всего | B48: 699.7 | C48: 717.8 | D48: 706.7 | E48: 714.3 | F48: 589.7 | G48: 661.2 | H48: 683.2 | I48: 666.2 | J48: 659.4 | K48: 627.5 | L48: 602.6 | M48: 622.6 | N48: 672.1
A49: Распределение из ГТС
A50: Поставка внутри России, в т. ч.: | B50: 339.8 | C50: 352 | D50: 356.4 | E50: 352.8 | F50: 335.6 | G50: 354.9 | H50: 365.6 | I50: 362.3 | J50: 354.6 | K50: 356.5 | L50: 342.3 | M50: 351.7 | N50: 354
A51: центральноазиатский газ | B51: 0.1 | C51: 0.1 | D51: 0.1 | E51: 0.1 | F51: 0.1 | G51: 0.1 | H51: 0.1 | I51: 0 | J51: 0 | K51: 0 | L51: 0 | M51: 0 | N51: 0
A52: Поставка за пределы России, в т. ч.: | B52: 251.2 | C52: 254.7 | D52: 247.3 | E52: 251.1 | F52: 195.6 | G52: 209.3 | H52: 217.7 | I52: 209.3 | J52: 220.2 | K52: 196.2 | L52: 196.8 | M52: 209.4 | N52: 232.4
A53: центральноазиатский газ | B53: 54.5 | C53: 56.8 | D53: 59.7 | E53: 61.3 | F53: 35.6 | G53: 35.2 | H53: 31.8 | I53: 31.6 | J53: 29.3 | K53: 26.4 | L53: 20 | M53: 18 | N53: 20.7
A54: азербайджанский газ | B54: – | C54: – | D54: – | E54: – | F54: – | G54: 0.8 | H54: 1.5 | I54: 1.6 | J54: 1.4 | K54: 0.2 | L54: – | M54: – | N54: –
A55: Закачка газа в ПХГ России | B55: 46.3 | C55: 50.3 | D55: 43 | E55: 51.6 | F55: 15.7 | G55: 47.7 | H55: 48.2 | I55: 44.1 | J55: 38.4 | K55: 35.1 | L55: 27.1 | M55: 24.7 | N55: 44.2
A56: Собственные технологические нужды ГТС и ПХГ | B56: 51.7 | C56: 52 | D56: 49.5 | E56: 49.6 | F56: 36.3 | G56: 43.6 | H56: 45.8 | I56: 40.9 | J56: 40.6 | K56: 33.2 | L56: 32.3 | M56: 32.3 | N56: 37.8
A57: Увеличение запаса газа в ГТС | B57: 10.7 | C57: 8.8 | D57: 10.5 | E57: 9.2 | F57: 6.5 | G57: 5.7 | H57: 5.9 | I57: 9.6 | J57: 5.6 | K57: 6.5 | L57: 4.1 | M57: 4.5 | N57: 3.7
A58: Всего | B58: 699.7 | C58: 717.8 | D58: 706.7 | E58: 714.3 | F58: 589.7 | G58: 661.2 | H58: 683.2 | I58: 666.2 | J58: 659.4 | K58: 627.5 | L58: 602.6 | M58: 622.6 | N58: 672.1
A60: Объем транспортировки газа по газопроводам «Северный поток», «Голубой поток», млрд м3
B61: За год, закончившийся 31 декабря
H62: 2011 | I62: 2012 | J62: 2013 | K62: 2014 | L62: 2015 | M62: 2016 | N62: 2017
A63: Газопровод «Северный поток» (через КС Портовая) | H63: 0.9 | I63: 11.8 | J63: 23.8 | K63: 35.6 | L63: 39.1 | M63: 43.8 | N63: 51
A64: Газопровод «Голубой поток» (через КС Береговая) | H64: 14 | I64: 14.7 | J64: 13.7 | K64: 14.4 | L64: 15.7 | M64: 13.1 | N64: 15.9
A66: Основные характеристики объектов транспорта газа дочерних обществ Группы Газпром на территории зарубежных стран
B67: За период и по состоянию на конец года
H68: 2011 | I68: 2012 | J68: 2013 | K68: 2014 | L68: 2015 | M68: 2016 | N68: 2017
A69: Беларусь (ОАО «Газпром трансгаз Беларусь» и участок магистрального газопровода Ямал – Европа на территории Беларуси)
A70: Протяженность, тыс. км | H70: 7.9 | I70: 7.9 | J70: 7.9 | K70: 7.9 | L70: 7.9 | M70: 7.9 | N70: 7.9
A71: Количество КС, ед. | H71: 10 | I71: 10 | J71: 10 | K71: 10 | L71: 10 | M71: 10 | N71: 10
A72: Поступление газа в ГТС, млрд м3 | H72: 64.3 | I72: 64.5 | J72: 69.1 | K72: 65.2 | L72: 64.2 | M72: 60.3 | N72: 61.2
A73: в т. ч. транзит | H73: 44.3 | I73: 44.3 | J73: 48.8 | K73: 45.1 | L73: 45.4 | M73: 41.7 | N73: 42.2
A74: Армения (ЗАО «Газпром Армения»)
A75: Протяженность, тыс. км | H75: 1.9 | I75: 1.9 | J75: 1.8 | K75: 1.7 | L75: 1.6 | M75: 1.6 | N75: 1.7
A76: Количество КС, ед. | H76: – | I76: – | J76: – | K76: – | L76: – | M76: – | N76: –
A77: Поступление газа в ГТС, млрд м3 | H77: 2.1 | I77: 2.5 | J77: 2.4 | K77: 2.5 | L77: 2.3 | M77: 2.2 | N77: 2.4
A78: в т. ч. транзит | H78: – | I78: – | J78: – | K78: – | L78: – | M78: – | N78: –
A79: Кыргызстан (ОсОО «Газпром Кыргызстан»)*
A80: Протяженность, тыс. км | H80: x | I80: x | J80: x | K80: 0.7 | L80: 0.7 | M80: 0.7 | N80: 0.8
A81: Количество КС, ед. | H81: x | I81: x | J81: x | K81: 1 | L81: 1 | M81: 1 | N81: 1
A82: Поступление газа в ГТС, млрд м3 | H82: x | I82: x | J82: x | K82: 4.3 | L82: 4.6 | M82: 4.5 | N82: 6.6
A83: в т. ч. транзит | H83: x | I83: x | J83: x | K83: 4 | L83: 4.4 | M83: 4.2 | N83: 6.4
A84: * Показатели приведены начиная с года установления контроля со стороны Группы Газпром
A86: Вернуться к Содержанию

Sheet Газотранспортные проекты
A1: Основные газотранспортные проекты Группы Газпром
A2: Наименование | B2: Назначение | C2: Проектные характеристики
C3: Протяженность | D3: Количество КС / общая мощность КС | E3: Годовая производительность | F3: Срок реализации
A4: Лупинги газопровода Грязовец — Выборг с целью замыкания второй нитки на участке Грязовец —Волхов (расширение) | B4: Увеличение поставок газа потребителям г. Санкт-Петербурга и Ленинградской области | C4: 213 км | D4: – | E4: 7,0 млрд м3 | F4: 2017– 2019 гг.
A5: «Северный поток — 2» | B5: Поставка газа потребителям в страны Западной и Центральной Европы | C5: Около 1 225 км (будет уточнена по результатам детального проектирования) | D5: – | E5: 55 млрд м3 | F5: IV кв. 2019 г.
A6: «Турецкий поток» | B6: Поставки природного российского газа через акваторию Черного моря в Турцию и далее до границы с сопредельными государствами | C6: Две нитки протяженностью 937 км и 939 км (морской участок) | D6: Необходимость строительства КС на территории Турции будет уточнена по результатам разработки турецкими партнерами проектной документации по сухопутному участку газопровода. | E6: 31,5 млрд м3 | F6: Декабрь 2019 г.
A7: Мурманск — Волхов | B7: Транспортировка газа Штокмановского месторождения в ЕСГ России | C7: 1 365 км | D7: До 10 КС / 1 225 МВт | E7: До 46 млрд м3 (зависит от объемов добычи на Штокмановском месторождении) | F7: Срок строительства и ввода газопровода в эксплуатацию будет определен после принятия инвестиционного решения по Штокмановскому месторождению.
A8: «Бованенково — Ухта — 2» | B8: Система газопроводов для транспортировки газа с месторождений полуострова Ямал | C8: 1 108 км | D8: 9 КС / 830 МВт | E8: 57,5 млрд м3 | F8: 2014–2020 гг.
A9: «Ухта — Торжок — 2» | B9: Поставка дополнительных объемов газа на Северо-Запад России для газоснабжения российских потребителей, а также поставок на экспорт по газопроводу «Северный поток — 2» | C9: 970 км | D9: 7 КС / 625 МВт | E9: 45 млрд м3 | F9: 2014–2020 гг.
A10: «Сила Сибири» | B10: Транспортировка газа с Чаяндинского НГКМ и Ковыктинского ГКМ для газоснабжения регионов Дальневосточного федерального округа и поставок газа на рынок КНР | C10: 2 960 км, в т. ч. 2 156 км — протяженность участка Чаяндинское НГКМ — граница КНР | D10: 9 КС / 1 234 МВт, в т.ч. 8 КС / 1 186 МВт — на участке Чаяндинское НГКМ — граница КНР | E10: До 48 млрд м3 | F10: Поэтапный ввод начиная с декабря 2019 г. в соответствии с обязательствами по контракту на поставку российского трубопроводного газа в КНР по «восточному» маршруту.
A11: «Сила Сибири — 2» | B11: Организация поставок газа месторождений Западной Сибири в КНР, диверсификация экспортных маршрутов | C11: 2 622 км (будет уточнена по результатам проектирования) | D11: 12 КС (будет уточнено по результатам проектирования) | E11: 30 млрд м3 | F11: Выполнен технико-экономический анализ. Продолжаются переговоры между ПАО «Газпром» и CNPC по согласованию коммерческих и технических условий поставок газа.
A12: Развитие газотранспортных мощностей ЕСГ Северо-Западного региона, участок Грязовец — КС Славянская | B12: Обеспечение дополнительных поставок газа потребителям Северо-Западного региона и на экспорт. | C12: 870 км | D12: 8 КС / 1 500 МВт | E12: Около 80 млрд м3 | F12: Поэтапный ввод начиная с декабря 2019 г.
A13: Сахалин — Хабаровск — Владивосток | B13: Обеспечение дополнительных поставок газа потребителям Хабаровского и Приморского краев, а также на экспорт | C13: Около 380 км | D13: 4 КС / 288 МВт | E13: Около 20 млрд м3 | F13: Поэтапный ввод начиная с 2020 г.
A14: Примечание. Информация приведена по состоянию на 31 декабря 2017 г.
A16: Вернуться к Содержанию

Sheet Подземное хранение
A1: Подземное хранение газа
A2: Характеристика российских ПХГ Газпрома
B3: По состоянию на 31 декабря
B4: 2005 | C4: 2006 | D4: 2007 | E4: 2008 | F4: 2009 | G4: 2010 | H4: 2011 | I4: 2012 | J4: 2013 | K4: 2014 | L4: 2015 | M4: 2016 | N4: 2017
A5: Количество объектов подземного хранения газа в России, ед. | B5: 24 | C5: 25 | D5: 25 | E5: 25 | F5: 25 | G5: 25 | H5: 25 | I5: 25 | J5: 26 | K5: 26 | L5: 26 | M5: 26 | N5: 26
A6: Объем активной емкости по обустройству, млрд м3 | B6: 64.25 | C6: 64.65 | D6: 64.94 | E6: 65.2 | F6: 65.2 | G6: 65.41 | H6: 66.7 | I6: 68.16 | J6: 70.41 | K6: 71.1 | L6: 73.56 | M6: 73.62 | N6: 74.93
A7: Количество эксплуатационных скважин на ПХГ, ед. | B7: 2509 | C7: 2588 | D7: 2618 | E7: 2615 | F7: 2601 | G7: 2564 | H7: 2602 | I7: 2621 | J7: 2689 | K7: 2685 | L7: 2686 | M7: 2681 | N7: 2694
A9: Хранение газа на территории России
B10: Сезон закачки
B11: 2005 | C11: 2006 | D11: 2007 | E11: 2008 | F11: 2009 | G11: 2010 | H11: 2011 | I11: 2012 | J11: 2013 | K11: 2014 | L11: 2015 | M11: 2016 | N11: 2017
A12: Закачка газа в ПХГ, млн м3
A13: I кв. | B13: – | C13: – | D13: 1074.8 | E13: 107.1 | F13: 161.4 | G13: =ROUND(866.627,1) -> 866.6 | H13: – | I13: 357.6 | J13: 55.7 | K13: 189.4 | L13: – | M13: – | N13: 23.2
A14: II кв. | B14: 19513.3 | C14: 21189.2 | D14: 21295.6 | E14: 24370.5 | F14: 3075 | G14: =ROUND(24097.694,1) -> 24097.7 | H14: 21291.8 | I14: 23793.6 | J14: 21407.9 | K14: 14963.8 | L14: 10158.4 | M14: 8468.8 | N14: 17443.9
A15: III кв. | B15: 22416.6 | C15: 25659.5 | D15: 19766.1 | E15: 24020.4 | F15: 10116.9 | G15: =ROUND(20680.963,1) -> 20681 | H15: 24248.5 | I15: 18006.8 | J15: 13784.8 | K15: 16790.1 | L15: 14498.1 | M15: 14209.2 | N15: 24434.7
A16: IV кв. | B16: 4385.1 | C16: 3500.8 | D16: 859.5 | E16: 3150.4 | F16: 2319.1 | G16: =ROUND(2085.394,1) -> 2085.4 | H16: 2657.2 | I16: 1938.7 | J16: 3120.1 | K16: 3191.2 | L16: 2425.3 | M16: 1973.1 | N16: 2275.4
A17: Всего за сезон | B17: 46315 | C17: =SUM(C13:C16) -> 50349.5 | D17: =SUM(D13:D16) -> 42996 | E17: =SUM(E13:E16) -> 51648.4 | F17: =SUM(F13:F16) -> 15672.4 | G17: =SUM(G13:G16) -> 47730.7 | H17: 48197.5 | I17: 44096.7 | J17: 38368.5 | K17: 35134.5 | L17: 27081.8 | M17: 24651.1 | N17: 44177.2
B18: Сезон отбора
B19: 2005-2006 | C19: 2006−2007 | D19: 2007−2008 | E19: 2008−2009 | F19: 2009−2010 | G19: 2010−2011 | H19: 2011−2012 | I19: 2012−2013 | J19: 2013−2014 | K19: 2014−2015 | L19: 2015−2016 | M19: 2016-2017 | N19: 2017-2018
A20: Отбор газа из ПХГ, млн м3
A21: III кв. | B21: 185.7 | C21: 4.1 | D21: 89.7 | E21: 107.1 | F21: 155.8 | G21: 135.1 | H21: 300 | I21: 143.9 | J21: 63.2 | K21: 41.9 | L21: 92.8 | M21: 114.2 | N21: 164.4
A22: IV кв. | B22: 12873.2 | C22: 12743.4 | D22: 21688.7 | E22: 7634.2 | F22: 18980.5 | G22: 14428.8 | H22: 13664.6 | I22: 14418.3 | J22: 9777 | K22: 8262.5 | L22: 5172.1 | M22: 18834.6 | N22: 17117.2
A23: I кв. следующего года | B23: 34936 | C23: 19763.6 | D23: 28347.1 | E23: 8653.9 | F23: 26176.9 | G23: 31740.7 | H23: 29258.1 | I23: 21815.7 | J23: 21662.3 | K23: 16353.2 | L23: 24653.1 | M23: 26175.1 | N23: 31 036,3
A24: II кв. следующего года | B24: 518.1 | C24: 116.5 | D24: 18.5 | E24: 2234 | F24: 48.5 | G24: 1366.2 | H24: 481.9 | I24: 1091.9 | J24: 2714.6 | K24: 2653.2 | L24: 1234.2 | M24: 2022.8 | N24: 430.6
A25: Всего за сезон | B25: 48513 | C25: =SUM(C21:C24) -> 32627.6 | D25: =SUM(D21:D24) -> 50144 | E25: =SUM(E21:E24) -> 18629.2 | F25: =SUM(F21:F24) -> 45361.7 | G25: =SUM(G21:G24) -> 47670.8 | H25: 43704.5 | I25: 37469.8 | J25: 34217.1 | K25: 27310.8 | L25: 31152.2 | M25: 47146.7 | N25: 48748.5
A26: Максимальная возможная суточная производительность на начало сезона отбора, млн м3/сут. | B26: 568 | C26: 600 | D26: 608 | E26: 620 | F26: 620 | G26: 620 | H26: 647.7 | I26: 671.1 | J26: 727.8 | K26: 770.4 | L26: 789.9 | M26: 801.3 | N26: 805.3
A28: Закачка и отбор газа Газпрома из ПХГ зарубежных стран, млн м3
B29: Сезон закачки I−IV кв.
B30: 2005 | C30: 2006 | D30: 2007 | E30: 2008 | F30: 2009 | G30: 2010 | H30: 2011 | I30: 2012 | J30: 2013 | K30: 2014 | L30: 2015 | M30: 2016 | N30: 2017
A31: Закачка газа в ПХГ за рубежом
A32: Страны БСС
A33: Армения | B33: 84 | C33: 101 | D33: 87 | E33: 89 | F33: 70 | G33: 46.1 | H33: 23.1 | I33: 127.4 | J33: 29.2 | K33: 68.9 | L33: 40.6 | M33: 37.2 | N33: 71.3
A34: Беларусь | B34: – | C34: – | D34: – | E34: – | F34: – | G34: – | H34: 748 | I34: 940.8 | J34: 928.8 | K34: 962.3 | L34: 916.7 | M34: 857.1 | N34: 948.8
A35: Латвия | B35: 1466.9 | C35: 1588.9 | D35: 135.3 | E35: 1300.1 | F35: 588.1 | G35: =ROUND(1639.45,1) -> 1639.5 | H35: 1567.5 | I35: 1599.5 | J35: 1536.7 | K35: 1907.1 | L35: 1550 | M35: 1250 | N35: 254.8
A36: Всего в ПХГ в странах БСС | B36: =SUM(B33:B35) -> 1550.9 | C36: 1689.9 | D36: 222.3 | E36: 1389.1 | F36: 658.1 | G36: 1685.6 | H36: =SUM(H33:H35) -> 2338.6 | I36: 2667.7 | J36: 2494.7 | K36: 2938.3 | L36: 2507.3 | M36: 2144.3 | N36: 1 274,9
A37: Дальнее зарубежье *
A38: Австрия | B38: 440.4 | C38: 449 | D38: 944.8 | E38: 858.6 | F38: 474.1 | G38: =ROUND(580.758,1) -> 580.8 | H38: 1093.7 | I38: 1407.1 | J38: 1472 | K38: 1303.5 | L38: 709.8 | M38: 683.9 | N38: 2222.5
A39: Великобритания | B39: 76.8 | C39: 294.4 | D39: 414.5 | E39: 528.9 | F39: 225.8 | G39: =ROUND(233.672,1) -> 233.7 | H39: 225.2 | I39: 224.3 | J39: 226.5 | K39: 224 | L39: 224.4 | M39: – | N39: –
A40: Венгрия | B40: – | C40: – | D40: – | E40: – | F40: – | G40: – | H40: – | I40: – | J40: – | K40: 699.9 | L40: – | M40: – | N40: 898.4
A41: Германия | B41: 374.9 | C41: 1142.7 | D41: 1111 | E41: 1384.8 | F41: 583.6 | G41: =ROUND(705.293,1) -> 705.3 | H41: 155.2 | I41: 2149.5 | J41: 1464.2 | K41: 886.1 | L41: 797.2 | M41: 654.1 | N41: 1840
A42: Нидерланды | B42: – | C42: – | D42: – | E42: – | F42: 328 | G42: =ROUND(853.78,1) -> 853.8 | H42: 1582.6 | I42: 1276.7 | J42: 617.3 | K42: 1313.1 | L42: 1176.9 | M42: 1195 | N42: 1782
A43: Сербия | B43: – | C43: – | D43: – | E43: – | F43: – | G43: – | H43: 279.4 | I43: 336.2 | J43: 93.5 | K43: 118.4 | L43: – | M43: – | N43: 12.6
A44: Словакия | B44: – | C44: – | D44: – | E44: – | F44: – | G44: – | H44: – | I44: – | J44: – | K44: – | L44: – | M44: – | N44: 738
A45: Франция | B45: – | C45: – | D45: – | E45: 273.9 | F45: 250 | G45: =ROUND(298.162,1) -> 298.2 | H45: – | I45: – | J45: – | K45: – | L45: – | M45: – | N45: –
A46: Чехия | B46: – | C46: – | D46: – | E46: – | F46: – | G46: – | H46: – | I46: – | J46: – | K46: – | L46: – | M46: 105.3 | N46: 190.8
A47: Краткосрочные контракты на хранение в ПХГ Европы | B47: – | C47: – | D47: – | E47: – | F47: – | G47: – | H47: – | I47: – | J47: – | K47: – | L47: – | M47: – | N47: 909.9
A48: Всего в ПХГ в странах дальнего зарубежья | B48: =SUM(B38:B46) -> 892.1 | C48: 1886.1 | D48: 2470.3 | E48: 3046.2 | F48: 1861.5 | G48: 2671.8 | H48: 3336.1 | I48: 5393.8 | J48: 3873.5 | K48: 4545 | L48: 2908.3 | M48: =SUM(M38:M47) -> 2638.3 | N48: 8 594,2
A49: Всего за сезон | B49: 2443 | C49: 3576 | D49: 2692.6 | E49: 4435.3 | F49: 2519.6 | G49: 4357.4 | H49: 5674.7 | I49: 8061.5 | J49: 6368.2 | K49: 7483.3 | L49: 5415.6 | M49: =M48+M36 -> 4782.6 | N49: 9869.1
A50: * Приведены объемы закачки газа ПАО «Газпром» по контрактам ООО «Газпром экспорт».
B51: Сезон отбора III−IV кв., а также I−II кв. следующего года
B52: 2005-2006 | C52: 2006−2007 | D52: 2007−2008 | E52: 2008−2009 | F52: 2009−2010 | G52: 2010−2011 | H52: 2011−2012 | I52: 2012−2013 | J52: 2013−2014 | K52: 2014−2015 | L52: 2015−2016 | M52: 2016-2017 | N52: 2017-2018
A53: Отбор газа из ПХГ за рубежом*
A54: Страны БСС
A55: Армения | B55: 73 | C55: 78 | D55: 64 | E55: 80 | F55: 24 | G55: 21.2 | H55: 127.1 | I55: 18.2 | J55: 66.7 | K55: 23 | L55: 10.8 | M55: 30.6 | N55: 47.8
A56: Беларусь | B56: – | C56: – | D56: – | E56: – | F56: – | G56: – | H56: 783.5 | I56: 840.9 | J56: 813.1 | K56: 850 | L56: 815.2 | M56: 879.2 | N56: 959.2
A57: Латвия | B57: 911.1 | C57: 213.1 | D57: 288.3 | E57: 682.8 | F57: =ROUND(1009.162,1) -> 1009.2 | G57: 1658.5 | H57: 1529.8 | I57: 1410.8 | J57: 1318.4 | K57: 1541.7 | L57: 1257.1 | M57: 1087.3 | N57: 141.1
A58: Всего из ПХГ в странах БСС | B58: =SUM(B55:B57) -> 984.1 | C58: =SUM(C55:C57) -> 291.1 | D58: 352.3 | E58: 762.8 | F58: 1033.2 | G58: 1679.7 | H58: 2440.4 | I58: 2269.9 | J58: 2198.2 | K58: 2414.7 | L58: 2083.1 | M58: 1997.1 | N58: 1148.1
A59: Дальнее зарубежье **
A60: Австрия | B60: 200 | C60: 200 | D60: 652.8 | E60: 381.9 | F60: =ROUNDDOWN(480.151,1) -> 480.1 | G60: 543.7 | H60: 982.6 | I60: 1534.1 | J60: 1171.6 | K60: 835.8 | L60: 820 | M60: 1480.5 | N60: 1986.3
A61: Великобритания | B61: – | C61: 371.2 | D61: 422.4 | E61: 227.5 | F61: =ROUND(317.951,1) -> 318 | G61: 435 | H61: 225.2 | I61: 224.3 | J61: 226.5 | K61: 224 | L61: 224.4 | M61: – | N61: –
A62: Венгрия | B62: – | C62: – | D62: – | E62: – | F62: – | G62: – | H62: – | I62: – | J62: – | K62: 699.9 | L62: – | M62: – | N62: 898.4
A63: Германия | B63: 661.4 | C63: 887.4 | D63: 952.2 | E63: 790.1 | F63: =ROUND(731.396,1) -> 731.4 | G63: 481.8 | H63: 716.9 | I63: 2342.2 | J63: 1123.7 | K63: 753.4 | L63: 978.1 | M63: 936.9 | N63: 2116.4
A64: Нидерланды | B64: – | C64: – | D64: – | E64: – | F64: – | G64: – | H64: – | I64: – | J64: – | K64: 405.4 | L64: 1129.8 | M64: 1981.3 | N64: 1532.8
A65: Сербия | B65: – | C65: – | D65: – | E65: – | F65: – | G65: – | H65: 34.3 | I65: 145.7 | J65: 67.5 | K65: 0.5 | L65: 12 | M65: 0.5 | N65: 44.5
A66: Словакия | B66: – | C66: – | D66: – | E66: – | F66: – | G66: – | H66: – | I66: – | J66: – | K66: – | L66: – | M66: – | N66: 673
A67: Франция | B67: – | C67: – | D67: – | E67: 273.9 | F67: =ROUND(248.515,1) -> 248.5 | G67: 299.7 | H67: – | I67: – | J67: – | K67: – | L67: – | M67: – | N67: –
A68: Чехия | B68: – | C68: – | D68: – | E68: – | F68: – | G68: – | H68: – | I68: – | J68: – | K68: – | L68: – | M68: 104.5 | N68: 183.2
A69: Краткосрочные контракты на хранение в ПХГ Европы | B69: – | C69: – | D69: – | E69: – | F69: – | G69: – | H69: – | I69: – | J69: – | K69: – | L69: – | M69: – | N69: 974.9
A70: Всего из ПХГ в странах дальнего зарубежья | B70: =SUM(B60:B68) -> 861.4 | C70: =SUM(C60:C68) -> 1458.6 | D70: 2027.4 | E70: 1673.4 | F70: 1778 | G70: 1760.2 | H70: 1959 | I70: 4246.3 | J70: 2589.3 | K70: 2919 | L70: 3164.3 | M70: 4503.7 | N70: 8409.5
A71: Всего за сезон | B71: 1845.5 | C71: 1749.7 | D71: 2379.7 | E71: 2436.2 | F71: 2811.2 | G71: 3439.9 | H71: 4399.4 | I71: 6516.2 | J71: 4787.5 | K71: 5333.7 | L71: 5247.4 | M71: 6500.8 | N71: 9557.6
A72: * Отбор не отражает объемы газа, проданные в ПХГ.
A73: ** Приведены объемы отбора газа ПАО «Газпром» по контрактам ООО «Газпром экспорт».
